 Batch Number,Vendor Name,Invoice Number, Line,Line Amount,Account Description,Issue Date ,Total Amount Paid,Department,Proclasss
290715M,MOOLANDS LTD,2437,1,"6,698.00",STRATEGIC (NON CYCLICAL),03/08/2015,"6,698.00",Technical and Service Support,"Works - Construction, R&M"
280715M,MOOLANDS LTD,2642,1,"2,000.00",STRATEGIC (NON CYCLICAL),03/08/2015,"2,000.00",Technical and Service Support,"Works - Construction, R&M"
280715M,MOOLANDS LTD,2643,1,"2,405.00",STRATEGIC (NON CYCLICAL),03/08/2015,"2,405.00",Technical And Service Support,"Works - Construction, R&M"
290715M,"TOYE, KENNING & SPENCER LTD===",10291225,1,510,CLOTHING,03/08/2015,510,Property PFI,Clothing
800063965,*JAMES HUNTER (OUTFITTERS) LTD,108268,1,246.45,CLOTHING,03/08/2015,319.32,Operations Non Fire Stations,Clothing
800063965,*JAMES HUNTER (OUTFITTERS) LTD,108268,2,72.87,CLOTHING,03/08/2015,,Operations Non Fire Stations,Clothing
800063970,*JAMES HUNTER (OUTFITTERS) LTD,108273,1,72.87,CLOTHING,03/08/2015,319.32,Operations Non Fire Stations,Clothing
800063970,*JAMES HUNTER (OUTFITTERS) LTD,108273,2,246.45,CLOTHING,03/08/2015,,Operations Non Fire Stations,Clothing
280715M,SURREY BLIND & CURTAIN CO=====,14674,1,"1,120.50",FIXTURES & FITTINGS,03/08/2015,"1,120.50",Technical And Service Support,"Works - Construction, R&M"
280715M,BUREAU VERITAS HS&E LTD=======,15010868,1,"97,510.95",SCIENTIFIC SERVICES,03/08/2015,"97,510.95",Procurement,Environmental Services
030815H,APPLUS LLT,15057,1,"3,750.00",GENERAL,03/08/2015,"3,750.00",Procurement,Vehicle Management
141130,ARTHUR J. GALLAGHER (UK),18744087,1,"5,400.00",CONSULTANTS,03/08/2015,"7,200.00",Finance Services,Consultancy
141130,ARTHUR J. GALLAGHER (UK),18744087,2,"1,800.00",PAYMENTS IN ADVANCE,03/08/2015,,Do not include,Consultancy
270715M,C. S. TODD & ASSOCIATES LTD,22207,1,"2,500.00",CONSULTANTS,03/08/2015,"2,500.00",Fire Safety Regulation,Human Resources
290715M,GRADIENT CONSULTANTS LLP======,2365,1,105,ASBESTOS,03/08/2015,740,Technical and Service Support,"Works - Construction, R&M"
290715M,GRADIENT CONSULTANTS LLP======,2365,2,105,ASBESTOS,03/08/2015,,Technical and Service Support,"Works - Construction, R&M"
290715M,GRADIENT CONSULTANTS LLP======,2365,3,55,ASBESTOS,03/08/2015,,Technical and Service Support,"Works - Construction, R&M"
290715M,GRADIENT CONSULTANTS LLP======,2365,4,105,ASBESTOS,03/08/2015,,Technical and Service Support,"Works - Construction, R&M"
290715M,GRADIENT CONSULTANTS LLP======,2365,5,105,ASBESTOS,03/08/2015,,Technical and Service Support,"Works - Construction, R&M"
290715M,GRADIENT CONSULTANTS LLP======,2365,6,105,ASBESTOS,03/08/2015,,Technical and Service Support,"Works - Construction, R&M"
290715M,GRADIENT CONSULTANTS LLP======,2365,7,105,ASBESTOS,03/08/2015,,Technical and Service Support,"Works - Construction, R&M"
290715M,GRADIENT CONSULTANTS LLP======,2365,8,55,ASBESTOS,03/08/2015,,Technical and Service Support,"Works - Construction, R&M"
240715H,*LOCKHART CATERING EQUIPMENT,2478659,1,27.96,CATERING EQUIPMENT,03/08/2015,385.24,Operations Fire Stations,Catering
240715H,*LOCKHART CATERING EQUIPMENT,2478659,2,137.8,CATERING EQUIPMENT,03/08/2015,,Operations Fire Stations,Catering
240715H,*LOCKHART CATERING EQUIPMENT,2478659,3,67.68,CATERING EQUIPMENT,03/08/2015,,Operations Fire Stations,Catering
240715H,*LOCKHART CATERING EQUIPMENT,2478659,4,7.76,CATERING EQUIPMENT,03/08/2015,,Operations Fire Stations,Catering
240715H,*LOCKHART CATERING EQUIPMENT,2478659,5,28.86,CATERING EQUIPMENT,03/08/2015,,Operations Fire Stations,Catering
240715H,*LOCKHART CATERING EQUIPMENT,2478659,6,13.84,CATERING EQUIPMENT,03/08/2015,,Operations Fire Stations,Catering
240715H,*LOCKHART CATERING EQUIPMENT,2478659,7,61.92,CATERING EQUIPMENT,03/08/2015,,Operations Fire Stations,Catering
240715H,*LOCKHART CATERING EQUIPMENT,2478659,8,5.76,CATERING EQUIPMENT,03/08/2015,,Operations Fire Stations,Catering
240715H,*LOCKHART CATERING EQUIPMENT,2478659,9,8.98,CATERING EQUIPMENT,03/08/2015,,Operations Fire Stations,Catering
240715H,*LOCKHART CATERING EQUIPMENT,2478659,10,15.28,CATERING EQUIPMENT,03/08/2015,,Operations Fire Stations,Catering
240715H,*LOCKHART CATERING EQUIPMENT,2478659,11,5.82,CATERING EQUIPMENT,03/08/2015,,Operations Fire Stations,Catering
240715H,*LOCKHART CATERING EQUIPMENT,2478659,12,3.58,CATERING EQUIPMENT,03/08/2015,,Operations Fire Stations,Catering
800063480,ADECCO UK LIMITED=============,27155286,1,351.68,FRS STAFF AGENCY,03/08/2015,351.68,Finance Services,Human Resources
800063481,ADECCO UK LIMITED=============,27162052,1,439.6,FRS STAFF AGENCY,03/08/2015,439.6,Finance Services,Human Resources
800063482,ADECCO UK LIMITED=============,27168517,1,351.68,FRS STAFF AGENCY,03/08/2015,351.68,Finance Services,Human Resources
800063735,ADECCO UK LIMITED=============,27187702,1,900.2,FRS STAFF AGENCY,03/08/2015,900.2,National Operational Guidance Project,Human Resources
800063736,ADECCO UK LIMITED=============,27193988,1,900.2,FRS STAFF AGENCY,03/08/2015,900.2,National Operational Guidance Project,Human Resources
290715M,DRAEGER SAFETY UK LIMITED=====,2910024109,1,265,REPAIR & MAINTENANCE,03/08/2015,265,Technical And Service Support,Fire & Rescue
230715H,DRAEGER SAFETY UK LIMITED=====,2910024254,1,271.2,PROTECTIVE EQUIPT - PARTS,03/08/2015,271.2,Technical and Service Support,Fire & Rescue
280715M,BRISTOL UNIFORMS LTD==========,3122656,1,690,OPERATIONAL EQUIP-PURCHASE,03/08/2015,690,Operations Non Fire Stations,Clothing
290715M,EUROLOOS LTD,37730,1,850,OPERATIONAL EQUIP-PURCHASE,03/08/2015,850,Operations Non Fire Stations,Facilities & Management S
280715M,SAFEGUARD PEST CON. & ENV.LTD,38072,1,480,PEST CONTROL,03/08/2015,480,Technical And Service Support,Environmental Services
280715M,EVOLUTION ENVIRONMENTAL LTD,3822,1,695,DEVELOPMENT  EXPENSES-CONTRACT,03/08/2015,695,Technical and Service Support,"Works - Construction, R&M"
290715M,COMPUTACENTRE================,3880526069,1,875.74,ACQUISITIONS,03/08/2015,875.74,Information and Communication Technology,ICT
280715M,*HOMEPACK LTD=================,42056,1,97.2,OPERATIONAL EQUIP-PURCHASE,03/08/2015,291.6,Operations Fire Stations,Building Constr Materials
280715M,*HOMEPACK LTD=================,42056,2,97.2,OPERATIONAL EQUIP-PURCHASE,03/08/2015,,Operations Fire Stations,Building Constr Materials
280715M,*HOMEPACK LTD=================,42056,3,97.2,OPERATIONAL EQUIP-PURCHASE,03/08/2015,,Operations Fire Stations,Building Constr Materials
240715H,PERFORMING RIGHT SOCIETY LTD==,4588517,1,"28,857.80",LICENCES,03/08/2015,"28,857.80",Technical And Service Support,Arts & Leisure Services
150715M,CAPITA SECURE INFO SOLUTIONS,6060004723,1,"63,598.77",CAMS CONTRACT,03/08/2015,"63,598.77",CAMS Project,ICT
280715M,AECOM INFRASTRUCTURE &,6266551,1,"2,767.19",STRATEGIC (NON CYCLICAL),03/08/2015,"2,767.19",Technical and Service Support,Consultancy
280715M,AECOM INFRASTRUCTURE &,6267592,1,"6,736.06",PROF FEES-MISCELLANEOUS,03/08/2015,"6,736.06",Technical and Service Support,Consultancy
290715M,GEORGE JONES & SON LTD========,723,1,"10,558.00",STRATEGIC (NON CYCLICAL),03/08/2015,"10,558.00",Technical and Service Support,"Works - Construction, R&M"
290715M,CANON (UK) LTD===============,770533208,1,225.06,OFFICE EQUIPMENT,03/08/2015,675.18,HR Management,ICT
290715M,CANON (UK) LTD===============,770533208,2,225.06,OFFICE EQUIPMENT,03/08/2015,,Procurement,ICT
290715M,CANON (UK) LTD===============,770533208,3,225.06,OFFICE EQUIPMENT,03/08/2015,,Operations Non Fire Stations,ICT
280715M,FIRE SERVICE COLLEGE LTD======,803514,1,"2,100.00",PROFESSIONAL DEVELOPMENT,03/08/2015,"2,100.00",National Operational Guidance Project,Human Resources
141137,THOMPSONS SOLICITORS==========,8078,2,"2,000.00",CLAIMANT COSTS AGREED,03/08/2015,"2,000.00",Compensation Budgets,Legal Services
290715M,ARCHITECTURAL DECORATORS LTD==,AD23380,1,"30,811.52",STRATEGIC (NON CYCLICAL),03/08/2015,"30,811.52",Technical and Service Support,Building Constr Materials
280715M,PITNEY BOWES PURCHASE POWER,BC838167,1,"4,168.24",POSTAL SERVICES,03/08/2015,"4,168.24",Information Management,Mail Services
280715M,PITNEY BOWES FINANCE PLC======,BL05176966,1,"1,483.38",OFFICE EQUIPMENT,03/08/2015,"1,483.38",Information Management,ICT
280715M,E&S B DAVIS LTD,DAV/56657,1,295,OPERATIONAL EQUIP-PURCHASE,03/08/2015,295,Operations Fire Stations,Environmental Services
280715M,E&S B DAVIS LTD,DAV/56748,1,295,OPERATIONAL EQUIP-PURCHASE,03/08/2015,295,Operations Fire Stations,Environmental Services
280715M,E&S B DAVIS LTD,DAV/56825,1,"1,000.00",OPERATIONAL EQUIP-PURCHASE,03/08/2015,"1,000.00",Operations Fire Stations,Environmental Services
280715M,E&S B DAVIS LTD,DAV/57196,1,295,OPERATIONAL EQUIP-PURCHASE,03/08/2015,295,Operations Fire Stations,Environmental Services
280715M,E&S B DAVIS LTD,DAV/57318,1,295,OPERATIONAL EQUIP-PURCHASE,03/08/2015,295,Operations Fire Stations,Environmental Services
280715M,E&S B DAVIS LTD,DAV/57346,1,295,OPERATIONAL EQUIP-PURCHASE,03/08/2015,295,Operations Fire Stations,Environmental Services
280715M,E&S B DAVIS LTD,DAV/57397,1,885,OPERATIONAL EQUIP-PURCHASE,03/08/2015,885,Challenge Team,Environmental Services
280715M,E&S B DAVIS LTD,DAV/57468,1,590,OPERATIONAL EQUIP-PURCHASE,03/08/2015,590,Operations Fire Stations,Environmental Services
280715M,E&S B DAVIS LTD,DAV/57497,1,295,OPERATIONAL EQUIP-PURCHASE,03/08/2015,295,Operations Fire Stations,Environmental Services
280715M,E&S B DAVIS LTD,DAV/57626,1,295,OPERATIONAL EQUIP-PURCHASE,03/08/2015,295,Operations Fire Stations,Environmental Services
280715M,E&S B DAVIS LTD,DAV/57627,1,590,OPERATIONAL EQUIP-PURCHASE,03/08/2015,590,Operations Fire Stations,Environmental Services
280715M,E&S B DAVIS LTD,DAV/57641,1,295,OPERATIONAL EQUIP-PURCHASE,03/08/2015,295,Operations Fire Stations,Environmental Services
280715M,E&S B DAVIS LTD,DAV/57748,1,"1,180.00",OPERATIONAL EQUIP-PURCHASE,03/08/2015,"1,180.00",Operations Fire Stations,Environmental Services
280715M,E&S B DAVIS LTD,DAV57496,1,295,OPERATIONAL EQUIP-PURCHASE,03/08/2015,295,Operations Fire Stations,Environmental Services
290715M,HALL FUELS,I07723399,1,"1,846.60",FUEL,03/08/2015,"1,846.60",Operations Fire Stations,Vehicle Management
270715M,HALL FUELS,I07731909,1,"1,178.32",FUEL,03/08/2015,"1,178.32",Operations Fire Stations,Vehicle Management
141130,QBE INSURANCE (EUROPE) LTD====,INSTALMENT 1 15/16,1,"400,000.00",INSURANCE CLAIMS,03/08/2015,"400,000.00",Procurement,Vehicle Management
290715M,QA LIMITED,ISL128840,1,"4,344.00",PROFESSIONAL DEVELOPMENT,03/08/2015,"4,344.00",Information Management,Human Resources
280715M,SUTTON & EAST SURREY WATER PLC,SI033380 / SCR01999,1,608.67,CURRENT HYDRANT COSTS,03/08/2015,608.67,Operational Resilience,Utilities
220715H,GROUND CONTROL LIMITED,SIN057191,1,"1,375.00",GROUNDS MAINTENANCE,03/08/2015,"1,375.00",Technical And Service Support,"Works - Construction, R&M"
220715H,GROUND CONTROL LIMITED,SIN057194,1,"1,040.00",GROUNDS MAINTENANCE,03/08/2015,"1,040.00",Technical And Service Support,"Works - Construction, R&M"
230715H,SABRE SAFETY LTD,SUKIN15736,1,382.45,PROTECTIVE EQUIPT - PARTS,03/08/2015,477.95,Technical and Service Support,Fire & Rescue
230715H,SABRE SAFETY LTD,SUKIN15736,2,65,PROTECTIVE EQUIPT - PARTS,03/08/2015,,Technical and Service Support,Fire & Rescue
230715H,SABRE SAFETY LTD,SUKIN15736,3,30.5,REPAIR & MAINTENANCE,03/08/2015,,Technical And Service Support,Fire & Rescue
310715M,NORTHERN DIVER (INTERNATIONAL),161371,1,120,OPERATIONAL EQUIP-PURCHASE,06/08/2015,452.5,Technical And Service Support,Fire & Rescue
310715M,NORTHERN DIVER (INTERNATIONAL),161371,2,120,OPERATIONAL EQUIP-PURCHASE,06/08/2015,,Technical And Service Support,Fire & Rescue
310715M,NORTHERN DIVER (INTERNATIONAL),161371,3,115,OPERATIONAL EQUIP-PURCHASE,06/08/2015,,Technical And Service Support,Fire & Rescue
310715M,NORTHERN DIVER (INTERNATIONAL),161371,4,90,OPERATIONAL EQUIP-PURCHASE,06/08/2015,,Technical And Service Support,Fire & Rescue
310715M,NORTHERN DIVER (INTERNATIONAL),161371,5,7.5,OPERATIONAL EQUIP-PURCHASE,06/08/2015,,Technical And Service Support,Fire & Rescue
310715M,MOOLANDS LTD,2579,1,316,TACTICAL DAY TO DAY,06/08/2015,316,Technical And Service Support,"Works - Construction, R&M"
141136,THAMES WATER UTILITIES LTD====,0077450054G,1,525.79,WATER & SEWERAGE RATES,06/08/2015,525.79,Technical And Service Support,Utilities
141136,THAMES WATER UTILITIES LTD====,0229569091G,1,300.48,WATER & SEWERAGE RATES,06/08/2015,300.48,Technical And Service Support,Utilities
141131,CORONA ENERGY RETAIL 4 LTD,1026806151,1,338.39,GAS,06/08/2015,"7,671.06",Technical And Service Support,Utilities
141131,CORONA ENERGY RETAIL 4 LTD,1026806151,2,5.94,GAS,06/08/2015,,Technical And Service Support,Utilities
141131,CORONA ENERGY RETAIL 4 LTD,1026806151,3,133.65,GAS,06/08/2015,,Technical And Service Support,Utilities
141131,CORONA ENERGY RETAIL 4 LTD,1026806151,4,220.78,GAS,06/08/2015,,Technical And Service Support,Utilities
141131,CORONA ENERGY RETAIL 4 LTD,1026806151,5,248.55,GAS,06/08/2015,,Technical And Service Support,Utilities
141131,CORONA ENERGY RETAIL 4 LTD,1026806151,6,420.65,GAS,06/08/2015,,Technical And Service Support,Utilities
141131,CORONA ENERGY RETAIL 4 LTD,1026806151,7,210.57,GAS,06/08/2015,,Technical And Service Support,Utilities
141131,CORONA ENERGY RETAIL 4 LTD,1026806151,8,279.09,GAS,06/08/2015,,Technical And Service Support,Utilities
141131,CORONA ENERGY RETAIL 4 LTD,1026806151,9,203.18,GAS,06/08/2015,,Technical And Service Support,Utilities
141131,CORONA ENERGY RETAIL 4 LTD,1026806151,10,169.86,GAS,06/08/2015,,Technical And Service Support,Utilities
141131,CORONA ENERGY RETAIL 4 LTD,1026806151,11,155.94,GAS,06/08/2015,,Technical And Service Support,Utilities
141131,CORONA ENERGY RETAIL 4 LTD,1026806151,12,313.34,GAS,06/08/2015,,Technical And Service Support,Utilities
141131,CORONA ENERGY RETAIL 4 LTD,1026806151,13,539.85,GAS,06/08/2015,,Technical And Service Support,Utilities
141131,CORONA ENERGY RETAIL 4 LTD,1026806151,14,200.27,GAS,06/08/2015,,Technical And Service Support,Utilities
141131,CORONA ENERGY RETAIL 4 LTD,1026806151,15,23.06,GAS,06/08/2015,,Technical And Service Support,Utilities
141131,CORONA ENERGY RETAIL 4 LTD,1026806151,16,21.05,GAS,06/08/2015,,Technical And Service Support,Utilities
141131,CORONA ENERGY RETAIL 4 LTD,1026806151,17,19.85,GAS,06/08/2015,,Technical And Service Support,Utilities
141131,CORONA ENERGY RETAIL 4 LTD,1026806151,18,246.11,GAS,06/08/2015,,Technical And Service Support,Utilities
141131,CORONA ENERGY RETAIL 4 LTD,1026806151,19,756.27,GAS,06/08/2015,,Technical And Service Support,Utilities
141131,CORONA ENERGY RETAIL 4 LTD,1026806151,20,254.63,GAS,06/08/2015,,Technical And Service Support,Utilities
141131,CORONA ENERGY RETAIL 4 LTD,1026806151,21,295.22,GAS,06/08/2015,,Technical And Service Support,Utilities
141131,CORONA ENERGY RETAIL 4 LTD,1026806151,22,108.05,GAS,06/08/2015,,Technical And Service Support,Utilities
141131,CORONA ENERGY RETAIL 4 LTD,1026806151,23,266.1,GAS,06/08/2015,,Technical And Service Support,Utilities
141131,CORONA ENERGY RETAIL 4 LTD,1026806151,24,322.77,GAS,06/08/2015,,Technical And Service Support,Utilities
141131,CORONA ENERGY RETAIL 4 LTD,1026806151,25,335.81,GAS,06/08/2015,,Technical And Service Support,Utilities
141131,CORONA ENERGY RETAIL 4 LTD,1026806151,26,357.08,GAS,06/08/2015,,Technical And Service Support,Utilities
141131,CORONA ENERGY RETAIL 4 LTD,1026806151,27,141.08,GAS,06/08/2015,,Technical And Service Support,Utilities
141131,CORONA ENERGY RETAIL 4 LTD,1026806151,28,25.83,GAS,06/08/2015,,Technical And Service Support,Utilities
141131,CORONA ENERGY RETAIL 4 LTD,1026806151,29,692.02,GAS,06/08/2015,,Technical And Service Support,Utilities
141131,CORONA ENERGY RETAIL 4 LTD,1026806151,30,21.05,GAS,06/08/2015,,Technical And Service Support,Utilities
141131,CORONA ENERGY RETAIL 4 LTD,1026806151,31,345.02,GAS,06/08/2015,,Technical And Service Support,Utilities
141132,CORONA ENERGY RETAIL 4 LTD,1026806152,1,201.15,GAS,06/08/2015,"9,462.52",Technical And Service Support,Utilities
141132,CORONA ENERGY RETAIL 4 LTD,1026806152,2,92.1,GAS,06/08/2015,,Technical And Service Support,Utilities
141132,CORONA ENERGY RETAIL 4 LTD,1026806152,3,170.08,GAS,06/08/2015,,Technical And Service Support,Utilities
141132,CORONA ENERGY RETAIL 4 LTD,1026806152,4,293.46,GAS,06/08/2015,,Technical And Service Support,Utilities
141132,CORONA ENERGY RETAIL 4 LTD,1026806152,5,357.35,GAS,06/08/2015,,Technical And Service Support,Utilities
141132,CORONA ENERGY RETAIL 4 LTD,1026806152,6,20.91,GAS,06/08/2015,,Technical And Service Support,Utilities
141132,CORONA ENERGY RETAIL 4 LTD,1026806152,7,361.85,GAS,06/08/2015,,Technical And Service Support,Utilities
141132,CORONA ENERGY RETAIL 4 LTD,1026806152,8,206.35,GAS,06/08/2015,,Technical And Service Support,Utilities
141132,CORONA ENERGY RETAIL 4 LTD,1026806152,9,245.89,GAS,06/08/2015,,Technical And Service Support,Utilities
141132,CORONA ENERGY RETAIL 4 LTD,1026806152,10,285.14,GAS,06/08/2015,,Technical And Service Support,Utilities
141132,CORONA ENERGY RETAIL 4 LTD,1026806152,11,317.94,GAS,06/08/2015,,Technical And Service Support,Utilities
141132,CORONA ENERGY RETAIL 4 LTD,1026806152,12,229.67,GAS,06/08/2015,,Technical And Service Support,Utilities
141132,CORONA ENERGY RETAIL 4 LTD,1026806152,13,220.1,GAS,06/08/2015,,Technical And Service Support,Utilities
141132,CORONA ENERGY RETAIL 4 LTD,1026806152,14,319.12,GAS,06/08/2015,,Technical And Service Support,Utilities
141132,CORONA ENERGY RETAIL 4 LTD,1026806152,15,355.62,GAS,06/08/2015,,Technical And Service Support,Utilities
141132,CORONA ENERGY RETAIL 4 LTD,1026806152,16,42.56,GAS,06/08/2015,,Technical And Service Support,Utilities
141132,CORONA ENERGY RETAIL 4 LTD,1026806152,17,83.42,GAS,06/08/2015,,Technical And Service Support,Utilities
141132,CORONA ENERGY RETAIL 4 LTD,1026806152,18,"1,442.64",GAS,06/08/2015,,Technical And Service Support,Utilities
141132,CORONA ENERGY RETAIL 4 LTD,1026806152,19,182.07,GAS,06/08/2015,,Technical And Service Support,Utilities
141132,CORONA ENERGY RETAIL 4 LTD,1026806152,20,96.54,GAS,06/08/2015,,Technical And Service Support,Utilities
141132,CORONA ENERGY RETAIL 4 LTD,1026806152,21,182.31,GAS,06/08/2015,,Technical And Service Support,Utilities
141132,CORONA ENERGY RETAIL 4 LTD,1026806152,22,598.78,GAS,06/08/2015,,Technical And Service Support,Utilities
141132,CORONA ENERGY RETAIL 4 LTD,1026806152,23,211.58,GAS,06/08/2015,,Technical And Service Support,Utilities
141132,CORONA ENERGY RETAIL 4 LTD,1026806152,24,"1,103.24",GAS,06/08/2015,,Technical And Service Support,Utilities
141132,CORONA ENERGY RETAIL 4 LTD,1026806152,25,170.34,GAS,06/08/2015,,Technical And Service Support,Utilities
141132,CORONA ENERGY RETAIL 4 LTD,1026806152,26,308.12,GAS,06/08/2015,,Technical And Service Support,Utilities
141132,CORONA ENERGY RETAIL 4 LTD,1026806152,27,223.51,GAS,06/08/2015,,Technical And Service Support,Utilities
141132,CORONA ENERGY RETAIL 4 LTD,1026806152,28,248.6,GAS,06/08/2015,,Technical And Service Support,Utilities
141132,CORONA ENERGY RETAIL 4 LTD,1026806152,29,592.05,GAS,06/08/2015,,Technical And Service Support,Utilities
141132,CORONA ENERGY RETAIL 4 LTD,1026806152,30,88.35,GAS,06/08/2015,,Technical And Service Support,Utilities
141132,CORONA ENERGY RETAIL 4 LTD,1026806152,31,211.68,GAS,06/08/2015,,Technical And Service Support,Utilities
141133,CORONA ENERGY RETAIL 4 LTD,1026806153,1,334,GAS,06/08/2015,"8,858.26",Technical And Service Support,Utilities
141133,CORONA ENERGY RETAIL 4 LTD,1026806153,2,281.11,GAS,06/08/2015,,Technical And Service Support,Utilities
141133,CORONA ENERGY RETAIL 4 LTD,1026806153,3,518.35,GAS,06/08/2015,,Technical And Service Support,Utilities
141133,CORONA ENERGY RETAIL 4 LTD,1026806153,4,722.76,GAS,06/08/2015,,Technical And Service Support,Utilities
141133,CORONA ENERGY RETAIL 4 LTD,1026806153,5,333.36,GAS,06/08/2015,,Technical And Service Support,Utilities
141133,CORONA ENERGY RETAIL 4 LTD,1026806153,6,381.97,GAS,06/08/2015,,Technical And Service Support,Utilities
141133,CORONA ENERGY RETAIL 4 LTD,1026806153,7,762.77,GAS,06/08/2015,,Technical And Service Support,Utilities
141133,CORONA ENERGY RETAIL 4 LTD,1026806153,8,116.05,GAS,06/08/2015,,Technical And Service Support,Utilities
141133,CORONA ENERGY RETAIL 4 LTD,1026806153,9,212.52,GAS,06/08/2015,,Technical And Service Support,Utilities
141133,CORONA ENERGY RETAIL 4 LTD,1026806153,10,258.86,GAS,06/08/2015,,Technical And Service Support,Utilities
141133,CORONA ENERGY RETAIL 4 LTD,1026806153,11,316.83,GAS,06/08/2015,,Technical And Service Support,Utilities
141133,CORONA ENERGY RETAIL 4 LTD,1026806153,12,360.6,GAS,06/08/2015,,Technical And Service Support,Utilities
141133,CORONA ENERGY RETAIL 4 LTD,1026806153,13,413.84,GAS,06/08/2015,,Technical And Service Support,Utilities
141133,CORONA ENERGY RETAIL 4 LTD,1026806153,14,195.83,GAS,06/08/2015,,Technical And Service Support,Utilities
141133,CORONA ENERGY RETAIL 4 LTD,1026806153,15,268.81,GAS,06/08/2015,,Technical And Service Support,Utilities
141133,CORONA ENERGY RETAIL 4 LTD,1026806153,16,69.3,GAS,06/08/2015,,Technical And Service Support,Utilities
141133,CORONA ENERGY RETAIL 4 LTD,1026806153,17,351.96,GAS,06/08/2015,,Technical And Service Support,Utilities
141133,CORONA ENERGY RETAIL 4 LTD,1026806153,18,274.87,GAS,06/08/2015,,Technical And Service Support,Utilities
141133,CORONA ENERGY RETAIL 4 LTD,1026806153,19,9,GAS,06/08/2015,,Technical And Service Support,Utilities
141133,CORONA ENERGY RETAIL 4 LTD,1026806153,20,318.68,GAS,06/08/2015,,Technical And Service Support,Utilities
141133,CORONA ENERGY RETAIL 4 LTD,1026806153,21,340.57,GAS,06/08/2015,,Technical And Service Support,Utilities
141133,CORONA ENERGY RETAIL 4 LTD,1026806153,22,31.2,GAS,06/08/2015,,Technical And Service Support,Utilities
141133,CORONA ENERGY RETAIL 4 LTD,1026806153,23,249.91,GAS,06/08/2015,,Technical And Service Support,Utilities
141133,CORONA ENERGY RETAIL 4 LTD,1026806153,24,182.62,GAS,06/08/2015,,Technical And Service Support,Utilities
141133,CORONA ENERGY RETAIL 4 LTD,1026806153,25,402.2,GAS,06/08/2015,,Technical And Service Support,Utilities
141133,CORONA ENERGY RETAIL 4 LTD,1026806153,26,285.34,GAS,06/08/2015,,Technical And Service Support,Utilities
141133,CORONA ENERGY RETAIL 4 LTD,1026806153,27,126.81,GAS,06/08/2015,,Technical And Service Support,Utilities
141133,CORONA ENERGY RETAIL 4 LTD,1026806153,28,323.3,GAS,06/08/2015,,Technical And Service Support,Utilities
141133,CORONA ENERGY RETAIL 4 LTD,1026806153,29,414.84,GAS,06/08/2015,,Technical And Service Support,Utilities
141134,CORONA ENERGY RETAIL 4 LTD,1026806154,1,460.26,GAS,06/08/2015,"3,103.24",Technical And Service Support,Utilities
141134,CORONA ENERGY RETAIL 4 LTD,1026806154,2,25.59,GAS,06/08/2015,,Technical And Service Support,Utilities
141134,CORONA ENERGY RETAIL 4 LTD,1026806154,3,251.06,GAS,06/08/2015,,Technical And Service Support,Utilities
141134,CORONA ENERGY RETAIL 4 LTD,1026806154,4,282.6,GAS,06/08/2015,,Technical And Service Support,Utilities
141134,CORONA ENERGY RETAIL 4 LTD,1026806154,5,631.6,GAS,06/08/2015,,Technical And Service Support,Utilities
141134,CORONA ENERGY RETAIL 4 LTD,1026806154,6,315.66,GAS,06/08/2015,,Technical And Service Support,Utilities
141134,CORONA ENERGY RETAIL 4 LTD,1026806154,7,336.23,GAS,06/08/2015,,Technical And Service Support,Utilities
141134,CORONA ENERGY RETAIL 4 LTD,1026806154,8,156.27,GAS,06/08/2015,,Technical And Service Support,Utilities
141134,CORONA ENERGY RETAIL 4 LTD,1026806154,9,170.33,GAS,06/08/2015,,Technical And Service Support,Utilities
141134,CORONA ENERGY RETAIL 4 LTD,1026806154,10,174.16,GAS,06/08/2015,,Technical And Service Support,Utilities
141134,CORONA ENERGY RETAIL 4 LTD,1026806154,11,158.77,GAS,06/08/2015,,Technical And Service Support,Utilities
141134,CORONA ENERGY RETAIL 4 LTD,1026806154,12,140.71,GAS,06/08/2015,,Technical And Service Support,Utilities
280715M,*SPRUE SAFETY PRODUCTS LTD====,1078399,1,"4,000.00",FIRE DETECTORS,06/08/2015,"4,000.00",Operations Non Fire Stations,Health & Safety
280715M,*SPRUE SAFETY PRODUCTS LTD====,1078400,1,"2,200.00",FIRE DETECTORS,06/08/2015,"2,200.00",Operations Non Fire Stations,Health & Safety
800063974,*JAMES HUNTER (OUTFITTERS) LTD,108202,1,289.84,CLOTHING,06/08/2015,289.84,Operations Non Fire Stations,Clothing
800063996,*JAMES HUNTER (OUTFITTERS) LTD,108224,1,362.23,CLOTHING,06/08/2015,362.23,Operations Fire Stations,Clothing
800063997,*JAMES HUNTER (OUTFITTERS) LTD,108225,1,362.23,CLOTHING,06/08/2015,362.23,Operations Fire Stations,Clothing
800064009,*JAMES HUNTER (OUTFITTERS) LTD,108238,1,293.13,CLOTHING,06/08/2015,293.13,Operations Fire Stations,Clothing
800064017,*JAMES HUNTER (OUTFITTERS) LTD,108246,1,293.13,CLOTHING,06/08/2015,293.13,Operations Fire Stations,Clothing
800063968,*JAMES HUNTER (OUTFITTERS) LTD,108271,1,282.83,CLOTHING,06/08/2015,282.83,Fire Safety Regulation,Clothing
030815H,VERSEIDAG-SEEMEE UK LTD=======,121416,1,585,OPERATIONAL EQUIP-PURCHASE,06/08/2015,687,Technical And Service Support,Fire & Rescue
030815H,VERSEIDAG-SEEMEE UK LTD=======,121416,2,102,OPERATIONAL EQUIP-PURCHASE,06/08/2015,,Technical And Service Support,Fire & Rescue
800063781,*NPS (SHOES) LTD,14935,1,30.05,CLOTHING,06/08/2015,569.3,Operations Fire Stations,Clothing
800063781,*NPS (SHOES) LTD,14935,2,30.05,CLOTHING,06/08/2015,,Operations Fire Stations,Clothing
800063781,*NPS (SHOES) LTD,14935,3,30.05,CLOTHING,06/08/2015,,Operations Fire Stations,Clothing
800063781,*NPS (SHOES) LTD,14935,4,30.05,CLOTHING,06/08/2015,,Operations Fire Stations,Clothing
800063781,*NPS (SHOES) LTD,14935,5,30.05,CLOTHING,06/08/2015,,Operations Fire Stations,Clothing
800063781,*NPS (SHOES) LTD,14935,6,30.05,CLOTHING,06/08/2015,,Operations Fire Stations,Clothing
800063781,*NPS (SHOES) LTD,14935,7,35,CLOTHING,06/08/2015,,Operations Fire Stations,Clothing
800063781,*NPS (SHOES) LTD,14935,8,30.05,CLOTHING,06/08/2015,,Operations Fire Stations,Clothing
800063781,*NPS (SHOES) LTD,14935,9,29.45,CLOTHING,06/08/2015,,Operations Fire Stations,Clothing
800063781,*NPS (SHOES) LTD,14935,10,29.45,CLOTHING,06/08/2015,,Operations Fire Stations,Clothing
800063781,*NPS (SHOES) LTD,14935,11,29.45,CLOTHING,06/08/2015,,Operations Fire Stations,Clothing
800063781,*NPS (SHOES) LTD,14935,12,29.45,CLOTHING,06/08/2015,,Operations Fire Stations,Clothing
800063781,*NPS (SHOES) LTD,14935,13,29.45,CLOTHING,06/08/2015,,Operations Fire Stations,Clothing
800063781,*NPS (SHOES) LTD,14935,14,29.45,CLOTHING,06/08/2015,,Operations Fire Stations,Clothing
800063781,*NPS (SHOES) LTD,14935,15,29.45,CLOTHING,06/08/2015,,Operations Fire Stations,Clothing
800063781,*NPS (SHOES) LTD,14935,16,29.45,CLOTHING,06/08/2015,,Operations Fire Stations,Clothing
800063781,*NPS (SHOES) LTD,14935,17,29.45,CLOTHING,06/08/2015,,Operations Fire Stations,Clothing
800063781,*NPS (SHOES) LTD,14935,18,29.45,CLOTHING,06/08/2015,,Operations Fire Stations,Clothing
800063781,*NPS (SHOES) LTD,14935,19,29.45,CLOTHING,06/08/2015,,Operations Fire Stations,Clothing
030815H,BLIZZARD PROTECTION SYSTEMS LT,15/0476,1,275.98,GENERAL CONSUMABLES,06/08/2015,275.98,Procurement,Healthcare
141136,THAMES WATER UTILITIES LTD====,1587371098G,1,499.1,WATER & SEWERAGE RATES,06/08/2015,499.1,Technical And Service Support,Utilities
030815H,GREATER LONDON AUTHORITY======,1800004983,1,"24,432.81",GLA GROUP SHARED SERVICES,06/08/2015,"24,432.81",Legal & Democratic Services,Fire & Rescue
030815H,GREATER LONDON AUTHORITY======,1800004985,1,"48,819.84",GLA GROUP SHARED SERVICES,06/08/2015,"48,819.84",Legal & Democratic Services,Fire & Rescue
141137,ARTHUR J. GALLAGHER (UK),18683100,1,"12,801.18",PREMIUMS,06/08/2015,"17,068.24",Central Finance,Consultancy
141137,ARTHUR J. GALLAGHER (UK),18683100,2,"4,267.06",PAYMENTS IN ADVANCE,06/08/2015,,Do not include,Consultancy
141137,ARTHUR J. GALLAGHER (UK),18683385,1,"365,620.50",INSURANCE PREMIUMS,06/08/2015,"729,333.00",Procurement,Consultancy
141137,ARTHUR J. GALLAGHER (UK),18683385,2,"121,873.50",PAYMENTS IN ADVANCE,06/08/2015,,Do not include,Consultancy
141137,ARTHUR J. GALLAGHER (UK),18683385,3,"181,379.25",INSURANCE,06/08/2015,,Procurement,Consultancy
141137,ARTHUR J. GALLAGHER (UK),18683385,4,"60,459.75",PAYMENTS IN ADVANCE,06/08/2015,,Do not include,Consultancy
141137,ARTHUR J. GALLAGHER (UK),18718369,1,"19,032.24",INSURANCE PREMIUMS,06/08/2015,"26,576.32",Procurement,Consultancy
141137,ARTHUR J. GALLAGHER (UK),18718369,2,"6,344.08",PAYMENTS IN ADVANCE,06/08/2015,,Do not include,Consultancy
141137,ARTHUR J. GALLAGHER (UK),18718369,3,900,CONTRACT HIRE,06/08/2015,,HR Development,Consultancy
141137,ARTHUR J. GALLAGHER (UK),18718369,4,300,PAYMENTS IN ADVANCE,06/08/2015,,Do not include,Consultancy
141137,ARTHUR J. GALLAGHER (UK),18718391,1,"4,173.56",INSURANCE PREMIUMS,06/08/2015,"5,564.75",Procurement,Consultancy
141137,ARTHUR J. GALLAGHER (UK),18718391,2,"1,391.19",PAYMENTS IN ADVANCE,06/08/2015,,Do not include,Consultancy
141137,ARTHUR J. GALLAGHER (UK),18780431,1,"16,695.00",PREMIUMS,06/08/2015,"22,260.00",Central Finance,Consultancy
141137,ARTHUR J. GALLAGHER (UK),18780431,2,"5,565.00",PAYMENTS IN ADVANCE,06/08/2015,,Do not include,Consultancy
141137,ARTHUR J. GALLAGHER (UK),187806525,1,"15,900.00",PREMIUMS,06/08/2015,"21,200.00",Central Finance,Consultancy
141137,ARTHUR J. GALLAGHER (UK),187806525,2,"5,300.00",PAYMENTS IN ADVANCE,06/08/2015,,Do not include,Consultancy
141137,ARTHUR J. GALLAGHER (UK),18780971,1,"15,029.48",PREMIUMS,06/08/2015,"20,039.30",Central Finance,Consultancy
141137,ARTHUR J. GALLAGHER (UK),18780971,2,"5,009.82",PAYMENTS IN ADVANCE,06/08/2015,,Do not include,Consultancy
141137,ARTHUR J. GALLAGHER (UK),18785897,1,"111,159.90",PREMIUMS,06/08/2015,"148,213.20",Central Finance,Consultancy
141137,ARTHUR J. GALLAGHER (UK),18785897,2,"37,053.30",PAYMENTS IN ADVANCE,06/08/2015,,Do not include,Consultancy
141137,ARTHUR J. GALLAGHER (UK),18786123,1,"1,047.81",PREMIUMS,06/08/2015,"1,397.08",Central Finance,Consultancy
141137,ARTHUR J. GALLAGHER (UK),18786123,2,349.27,PAYMENTS IN ADVANCE,06/08/2015,,Do not include,Consultancy
141137,ARTHUR J. GALLAGHER (UK),18786265,1,"110,634.35",PREMIUMS,06/08/2015,"147,512.46",Central Finance,Consultancy
141137,ARTHUR J. GALLAGHER (UK),18786265,2,"36,878.11",PAYMENTS IN ADVANCE,06/08/2015,,Do not include,Consultancy
141137,ARTHUR J. GALLAGHER (UK),18786446,1,"86,718.60",PREMIUMS,06/08/2015,"289,062.00",Central Finance,Consultancy
141137,ARTHUR J. GALLAGHER (UK),18786446,2,"28,906.20",PAYMENTS IN ADVANCE,06/08/2015,,Do not include,Consultancy
141137,ARTHUR J. GALLAGHER (UK),18786446,3,"130,077.90",PREMIUMS,06/08/2015,,Central Finance,Consultancy
141137,ARTHUR J. GALLAGHER (UK),18786446,4,"43,359.30",PAYMENTS IN ADVANCE,06/08/2015,,Do not include,Consultancy
141137,ARTHUR J. GALLAGHER (UK),18786732,1,"4,038.60",PREMIUMS,06/08/2015,"5,384.80",Central Finance,Consultancy
141137,ARTHUR J. GALLAGHER (UK),18786732,2,"1,346.20",PAYMENTS IN ADVANCE,06/08/2015,,Do not include,Consultancy
141137,ARTHUR J. GALLAGHER (UK),18787855,1,"3,992.99",PREMIUMS,06/08/2015,"5,323.98",Central Finance,Consultancy
141137,ARTHUR J. GALLAGHER (UK),18787855,2,"1,330.99",PAYMENTS IN ADVANCE,06/08/2015,,Do not include,Consultancy
141137,MR QUINTIN FRASER,197159,1,975,COUNSELS FEES,06/08/2015,975,Compensation Budgets,Legal Services
310715M,ASPECTS=======================,215441,1,580,REFRESHMENTS,06/08/2015,580,Property PFI,Catering
141137,LONDON PENSIONS FUND AUTHORITY,220,1,"85,209.31",LOCAL GOVT PENSION SCHEME PAYM,06/08/2015,"85,209.31",Central Finance,Financial Services
141136,THAMES WATER UTILITIES LTD====,2406058171G,1,673.97,WATER & SEWERAGE RATES,06/08/2015,673.97,Technical And Service Support,Utilities
310715M,BERKELEY CATERING LIMITED,241941,1,724.1,DAY TO DAY MINOR IMPS,06/08/2015,724.1,Property PFI,Catering
141136,THAMES WATER UTILITIES LTD====,2426928469G,1,"1,676.56",WATER & SEWERAGE RATES,06/08/2015,"1,676.56",Technical And Service Support,Utilities
800063529,ADECCO UK LIMITED=============,27187691,1,"1,035.12",FRS STAFF AGENCY,06/08/2015,"1,035.12",Technical And Service Support,Human Resources
800063530,ADECCO UK LIMITED=============,27193978,1,"1,293.90",FRS STAFF AGENCY,06/08/2015,"1,293.90",Technical And Service Support,Human Resources
800063648,ADECCO UK LIMITED=============,27193992,1,900.2,FRS STAFF AGENCY,06/08/2015,900.2,National Operational Guidance Project,Human Resources
030815H,RS COMPONENTS LTD=============,280043824,1,154.8,OPERATIONAL EQUIP-PURCHASE,06/08/2015,375.16,Technical And Service Support,Building Constr Materials
030815H,RS COMPONENTS LTD=============,280043824,2,164.1,OPERATIONAL EQUIP-PURCHASE,06/08/2015,,Technical And Service Support,Building Constr Materials
030815H,RS COMPONENTS LTD=============,280043824,3,24.04,STATIONERY CONSUMABLES,06/08/2015,,Technical And Service Support,Building Constr Materials
030815H,RS COMPONENTS LTD=============,280043824,4,32.22,STATIONERY CONSUMABLES,06/08/2015,,Technical And Service Support,Building Constr Materials
030815H,BRISTOL UNIFORMS LTD==========,309198,1,766.38,CLOTHING,06/08/2015,766.38,Procurement,Clothing
030815H,BRISTOL UNIFORMS LTD==========,309199,1,"4,027.79",CLOTHING,06/08/2015,"4,027.79",Procurement,Clothing
030815H,BRISTOL UNIFORMS LTD==========,309200,1,"197,575.56",CLOTHING,06/08/2015,"197,575.56",Procurement,Clothing
310715M,EUROLOOS LTD,37731,1,"4,485.00",OPERATIONAL EQUIP-PURCHASE,06/08/2015,"4,485.00",Operations Non Fire Stations,Facilities & Management S
310715M,COMPUTACENTRE================,3780023393,1,"6,364.27",MAINTENANCE & SUPPORT,06/08/2015,"6,364.27",Information and Communication Technology,ICT
141136,THAMES WATER UTILITIES LTD====,4017462014G,1,476.82,WATER & SEWERAGE RATES,06/08/2015,476.82,Technical And Service Support,Utilities
141137,MR JACK FERRO=================,421677*,1,"2,000.00",COUNSELS FEES,06/08/2015,"2,000.00",Compensation Budgets,Legal Services
800064060,*GREENHAM TRADING LTD=========,5690340,1,14.75,HYGIENE,06/08/2015,321.56,Operations Fire Stations,Cleaning & Janitorial
800064060,*GREENHAM TRADING LTD=========,5690340,2,6.84,HYGIENE,06/08/2015,,Operations Fire Stations,Cleaning & Janitorial
800064060,*GREENHAM TRADING LTD=========,5690340,3,24.7,HYGIENE,06/08/2015,,Operations Fire Stations,Cleaning & Janitorial
800064060,*GREENHAM TRADING LTD=========,5690340,4,185.96,HYGIENE,06/08/2015,,Operations Fire Stations,Cleaning & Janitorial
800064060,*GREENHAM TRADING LTD=========,5690340,5,21.62,HYGIENE,06/08/2015,,Operations Fire Stations,Cleaning & Janitorial
800064060,*GREENHAM TRADING LTD=========,5690340,6,21.62,HYGIENE,06/08/2015,,Operations Fire Stations,Cleaning & Janitorial
800064060,*GREENHAM TRADING LTD=========,5690340,7,21.62,HYGIENE,06/08/2015,,Operations Fire Stations,Cleaning & Janitorial
800064060,*GREENHAM TRADING LTD=========,5690340,8,24.45,HYGIENE,06/08/2015,,Operations Fire Stations,Cleaning & Janitorial
800064100,*OCS GROUP UK LTD,5800013748,1,"2,298.45",REFRESHMENTS,06/08/2015,"2,298.45",EU Fired-Up Project,Catering
141136,THAMES WATER UTILITIES LTD====,5846539352G,1,259.65,WATER & SEWERAGE RATES,06/08/2015,259.65,Technical And Service Support,Utilities
310715M,CAPITA SECURE INFO SOLUTIONS,6060004718,1,225,RADIO,06/08/2015,525,Operations Fire Stations,ICT
310715M,CAPITA SECURE INFO SOLUTIONS,6060004718,2,300,RADIO,06/08/2015,,Operations Fire Stations,ICT
141136,THAMES WATER UTILITIES LTD====,6272027028G,1,"1,787.03",WATER & SEWERAGE RATES,06/08/2015,"1,787.03",Technical And Service Support,Utilities
290715M,AQA EDUCATION,75334,1,338,PROFESSIONAL DEVELOPMENT,06/08/2015,338,LIFE - LFB Funded,Education
200715M,BLUESKY SHAREPOINT CONSULTING,INV-1523,1,"8,500.00",CONSULTANTS,06/08/2015,"8,500.00",National Operational Guidance Project,Consultancy
310715M,CROSS SECTOR LEADERSHIP EXCH,LIF2015-0057,1,400,PROFESSIONAL DEVELOPMENT,06/08/2015,400,Community Safety Delivery,Human Resources
310715M,AIRSO=========================,OER1/15,1,432.5,PROFESSIONAL DEVELOPMENT,06/08/2015,432.5,Operational Procedures,Human Resources
310715M,RADIOCOMS SYSTEMS LIMITED=====,RSLSI15004434,1,"1,539.30",RADIO,06/08/2015,"1,696.95",Information and Communication Technology,ICT
310715M,RADIOCOMS SYSTEMS LIMITED=====,RSLSI15004434,2,157.65,RADIO,06/08/2015,,Information and Communication Technology,ICT
141137,VEOLIA WATER PROJECTS LTD=====,SI-15-0003494,1,"2,552.76",ELECTRICITY,06/08/2015,"2,552.76",Technical And Service Support,Utilities
800063216,*THOMAS KNEALE & CO LTD,TK110667,1,10.89,CLOTHING,06/08/2015,"1,088.22",Operations Fire Stations,Furniture
800063216,*THOMAS KNEALE & CO LTD,TK110667,2,0.99,CLOTHING,06/08/2015,,Operations Fire Stations,Furniture
800063216,*THOMAS KNEALE & CO LTD,TK110667,3,1.48,CLOTHING,06/08/2015,,Operations Fire Stations,Furniture
800063216,*THOMAS KNEALE & CO LTD,TK110667,4,1.48,CLOTHING,06/08/2015,,Operations Fire Stations,Furniture
800063216,*THOMAS KNEALE & CO LTD,TK110667,5,10.89,CLOTHING,06/08/2015,,Operations Fire Stations,Furniture
800063216,*THOMAS KNEALE & CO LTD,TK110667,6,3.47,CLOTHING,06/08/2015,,Operations Fire Stations,Furniture
800063216,*THOMAS KNEALE & CO LTD,TK110667,7,1.48,CLOTHING,06/08/2015,,Operations Fire Stations,Furniture
800063216,*THOMAS KNEALE & CO LTD,TK110667,8,2.84,OFFICE FURNITURE,06/08/2015,,Operations Fire Stations,Furniture
800063216,*THOMAS KNEALE & CO LTD,TK110667,9,1.48,CLOTHING,06/08/2015,,Operations Fire Stations,Furniture
800063216,*THOMAS KNEALE & CO LTD,TK110667,10,3.47,CLOTHING,06/08/2015,,Operations Fire Stations,Furniture
800063216,*THOMAS KNEALE & CO LTD,TK110667,11,10.89,CLOTHING,06/08/2015,,Operations Fire Stations,Furniture
800063216,*THOMAS KNEALE & CO LTD,TK110667,12,3.47,CLOTHING,06/08/2015,,Operations Fire Stations,Furniture
800063216,*THOMAS KNEALE & CO LTD,TK110667,13,1.48,CLOTHING,06/08/2015,,Operations Fire Stations,Furniture
800063216,*THOMAS KNEALE & CO LTD,TK110667,14,2.84,OFFICE FURNITURE,06/08/2015,,Operations Fire Stations,Furniture
800063216,*THOMAS KNEALE & CO LTD,TK110667,15,0.99,CLOTHING,06/08/2015,,Operations Fire Stations,Furniture
800063216,*THOMAS KNEALE & CO LTD,TK110667,16,10.89,CLOTHING,06/08/2015,,Operations Fire Stations,Furniture
800063216,*THOMAS KNEALE & CO LTD,TK110667,17,3.47,CLOTHING,06/08/2015,,Operations Fire Stations,Furniture
800063216,*THOMAS KNEALE & CO LTD,TK110667,18,1.48,CLOTHING,06/08/2015,,Operations Fire Stations,Furniture
800063216,*THOMAS KNEALE & CO LTD,TK110667,19,10.89,CLOTHING,06/08/2015,,Operations Fire Stations,Furniture
800063216,*THOMAS KNEALE & CO LTD,TK110667,20,1.48,CLOTHING,06/08/2015,,Operations Fire Stations,Furniture
800063216,*THOMAS KNEALE & CO LTD,TK110667,21,10.89,CLOTHING,06/08/2015,,Operations Fire Stations,Furniture
800063216,*THOMAS KNEALE & CO LTD,TK110667,22,0.99,CLOTHING,06/08/2015,,Operations Fire Stations,Furniture
800063216,*THOMAS KNEALE & CO LTD,TK110667,23,6.94,CLOTHING,06/08/2015,,Operations Fire Stations,Furniture
800063216,*THOMAS KNEALE & CO LTD,TK110667,24,2.96,CLOTHING,06/08/2015,,Operations Fire Stations,Furniture
800063216,*THOMAS KNEALE & CO LTD,TK110667,25,3.47,CLOTHING,06/08/2015,,Operations Fire Stations,Furniture
800063216,*THOMAS KNEALE & CO LTD,TK110667,26,10.89,CLOTHING,06/08/2015,,Operations Fire Stations,Furniture
800063216,*THOMAS KNEALE & CO LTD,TK110667,27,1.48,CLOTHING,06/08/2015,,Operations Fire Stations,Furniture
800063216,*THOMAS KNEALE & CO LTD,TK110667,28,10.89,CLOTHING,06/08/2015,,Operations Fire Stations,Furniture
800063216,*THOMAS KNEALE & CO LTD,TK110667,29,10.89,CLOTHING,06/08/2015,,Operations Fire Stations,Furniture
800063216,*THOMAS KNEALE & CO LTD,TK110667,30,10.89,CLOTHING,06/08/2015,,Operations Fire Stations,Furniture
800063216,*THOMAS KNEALE & CO LTD,TK110667,31,3.47,CLOTHING,06/08/2015,,Operations Fire Stations,Furniture
800063216,*THOMAS KNEALE & CO LTD,TK110667,32,10.89,CLOTHING,06/08/2015,,Operations Fire Stations,Furniture
800063216,*THOMAS KNEALE & CO LTD,TK110667,33,0.99,CLOTHING,06/08/2015,,Operations Fire Stations,Furniture
800063216,*THOMAS KNEALE & CO LTD,TK110667,34,10.89,CLOTHING,06/08/2015,,Operations Fire Stations,Furniture
800063216,*THOMAS KNEALE & CO LTD,TK110667,35,0.99,CLOTHING,06/08/2015,,Operations Fire Stations,Furniture
800063216,*THOMAS KNEALE & CO LTD,TK110667,36,10.89,CLOTHING,06/08/2015,,Operations Fire Stations,Furniture
800063216,*THOMAS KNEALE & CO LTD,TK110667,37,0.99,CLOTHING,06/08/2015,,Operations Fire Stations,Furniture
800063216,*THOMAS KNEALE & CO LTD,TK110667,38,2.96,CLOTHING,06/08/2015,,Operations Fire Stations,Furniture
800063216,*THOMAS KNEALE & CO LTD,TK110667,39,6.94,CLOTHING,06/08/2015,,Operations Fire Stations,Furniture
800063216,*THOMAS KNEALE & CO LTD,TK110667,40,10.89,CLOTHING,06/08/2015,,Operations Fire Stations,Furniture
800063216,*THOMAS KNEALE & CO LTD,TK110667,41,10.89,CLOTHING,06/08/2015,,Operations Fire Stations,Furniture
800063216,*THOMAS KNEALE & CO LTD,TK110667,42,1.48,CLOTHING,06/08/2015,,Operations Fire Stations,Furniture
800063216,*THOMAS KNEALE & CO LTD,TK110667,43,3.47,CLOTHING,06/08/2015,,Operations Fire Stations,Furniture
800063216,*THOMAS KNEALE & CO LTD,TK110667,44,1.48,CLOTHING,06/08/2015,,Operations Fire Stations,Furniture
800063216,*THOMAS KNEALE & CO LTD,TK110667,45,10.89,CLOTHING,06/08/2015,,Operations Fire Stations,Furniture
800063216,*THOMAS KNEALE & CO LTD,TK110667,46,0.99,CLOTHING,06/08/2015,,Operations Fire Stations,Furniture
800063216,*THOMAS KNEALE & CO LTD,TK110667,47,10.89,CLOTHING,06/08/2015,,Operations Fire Stations,Furniture
800063216,*THOMAS KNEALE & CO LTD,TK110667,48,3.47,CLOTHING,06/08/2015,,Operations Fire Stations,Furniture
800063216,*THOMAS KNEALE & CO LTD,TK110667,49,1.48,CLOTHING,06/08/2015,,Operations Fire Stations,Furniture
800063216,*THOMAS KNEALE & CO LTD,TK110667,50,10.89,CLOTHING,06/08/2015,,Operations Fire Stations,Furniture
800063216,*THOMAS KNEALE & CO LTD,TK110667,51,3.47,CLOTHING,06/08/2015,,Operations Fire Stations,Furniture
800063216,*THOMAS KNEALE & CO LTD,TK110667,52,4.98,OFFICE FURNITURE,06/08/2015,,Operations Fire Stations,Furniture
800063216,*THOMAS KNEALE & CO LTD,TK110667,53,6.94,CLOTHING,06/08/2015,,Operations Fire Stations,Furniture
800063216,*THOMAS KNEALE & CO LTD,TK110667,54,2.96,CLOTHING,06/08/2015,,Operations Fire Stations,Furniture
800063216,*THOMAS KNEALE & CO LTD,TK110667,55,10.89,CLOTHING,06/08/2015,,Operations Fire Stations,Furniture
800063216,*THOMAS KNEALE & CO LTD,TK110667,56,3.47,CLOTHING,06/08/2015,,Operations Fire Stations,Furniture
800063216,*THOMAS KNEALE & CO LTD,TK110667,57,1.48,CLOTHING,06/08/2015,,Operations Fire Stations,Furniture
800063216,*THOMAS KNEALE & CO LTD,TK110667,58,10.89,CLOTHING,06/08/2015,,Operations Fire Stations,Furniture
800063216,*THOMAS KNEALE & CO LTD,TK110667,59,10.89,CLOTHING,06/08/2015,,Operations Fire Stations,Furniture
800063216,*THOMAS KNEALE & CO LTD,TK110667,60,3.47,CLOTHING,06/08/2015,,Operations Fire Stations,Furniture
800063216,*THOMAS KNEALE & CO LTD,TK110667,61,10.89,CLOTHING,06/08/2015,,Operations Fire Stations,Furniture
800063216,*THOMAS KNEALE & CO LTD,TK110667,62,0.99,CLOTHING,06/08/2015,,Operations Fire Stations,Furniture
800063216,*THOMAS KNEALE & CO LTD,TK110667,63,6.94,CLOTHING,06/08/2015,,Operations Fire Stations,Furniture
800063216,*THOMAS KNEALE & CO LTD,TK110667,64,2.96,CLOTHING,06/08/2015,,Operations Fire Stations,Furniture
800063216,*THOMAS KNEALE & CO LTD,TK110667,65,3.47,CLOTHING,06/08/2015,,Operations Fire Stations,Furniture
800063216,*THOMAS KNEALE & CO LTD,TK110667,66,10.89,CLOTHING,06/08/2015,,Operations Fire Stations,Furniture
800063216,*THOMAS KNEALE & CO LTD,TK110667,67,3.47,CLOTHING,06/08/2015,,Operations Fire Stations,Furniture
800063216,*THOMAS KNEALE & CO LTD,TK110667,68,10.89,CLOTHING,06/08/2015,,Operations Fire Stations,Furniture
800063216,*THOMAS KNEALE & CO LTD,TK110667,69,3.47,CLOTHING,06/08/2015,,Operations Fire Stations,Furniture
800063216,*THOMAS KNEALE & CO LTD,TK110667,70,1.48,CLOTHING,06/08/2015,,Operations Fire Stations,Furniture
800063216,*THOMAS KNEALE & CO LTD,TK110667,71,1.48,CLOTHING,06/08/2015,,Operations Fire Stations,Furniture
800063216,*THOMAS KNEALE & CO LTD,TK110667,72,3.47,CLOTHING,06/08/2015,,Operations Fire Stations,Furniture
800063216,*THOMAS KNEALE & CO LTD,TK110667,73,10.89,CLOTHING,06/08/2015,,Operations Fire Stations,Furniture
800063216,*THOMAS KNEALE & CO LTD,TK110667,74,3.47,CLOTHING,06/08/2015,,Operations Fire Stations,Furniture
800063216,*THOMAS KNEALE & CO LTD,TK110667,75,10.89,CLOTHING,06/08/2015,,Operations Fire Stations,Furniture
800063216,*THOMAS KNEALE & CO LTD,TK110667,76,0.99,CLOTHING,06/08/2015,,Operations Fire Stations,Furniture
800063216,*THOMAS KNEALE & CO LTD,TK110667,77,10.89,CLOTHING,06/08/2015,,Operations Fire Stations,Furniture
800063216,*THOMAS KNEALE & CO LTD,TK110667,78,3.47,CLOTHING,06/08/2015,,Operations Fire Stations,Furniture
800063216,*THOMAS KNEALE & CO LTD,TK110667,79,1.48,CLOTHING,06/08/2015,,Operations Fire Stations,Furniture
800063216,*THOMAS KNEALE & CO LTD,TK110667,80,1.48,CLOTHING,06/08/2015,,Operations Fire Stations,Furniture
800063216,*THOMAS KNEALE & CO LTD,TK110667,81,1.98,CLOTHING,06/08/2015,,Operations Fire Stations,Furniture
800063216,*THOMAS KNEALE & CO LTD,TK110667,82,10.89,CLOTHING,06/08/2015,,Operations Fire Stations,Furniture
800063216,*THOMAS KNEALE & CO LTD,TK110667,83,10.89,CLOTHING,06/08/2015,,Operations Fire Stations,Furniture
800063216,*THOMAS KNEALE & CO LTD,TK110667,84,3.47,CLOTHING,06/08/2015,,Operations Fire Stations,Furniture
800063216,*THOMAS KNEALE & CO LTD,TK110667,85,1.48,CLOTHING,06/08/2015,,Operations Fire Stations,Furniture
800063216,*THOMAS KNEALE & CO LTD,TK110667,86,3.47,CLOTHING,06/08/2015,,Operations Fire Stations,Furniture
800063216,*THOMAS KNEALE & CO LTD,TK110667,87,1.48,CLOTHING,06/08/2015,,Operations Fire Stations,Furniture
800063216,*THOMAS KNEALE & CO LTD,TK110667,88,10.89,CLOTHING,06/08/2015,,Operations Fire Stations,Furniture
800063216,*THOMAS KNEALE & CO LTD,TK110667,89,0.99,CLOTHING,06/08/2015,,Operations Fire Stations,Furniture
800063216,*THOMAS KNEALE & CO LTD,TK110667,90,3.47,CLOTHING,06/08/2015,,Operations Fire Stations,Furniture
800063216,*THOMAS KNEALE & CO LTD,TK110667,91,10.89,CLOTHING,06/08/2015,,Operations Fire Stations,Furniture
800063216,*THOMAS KNEALE & CO LTD,TK110667,92,10.89,CLOTHING,06/08/2015,,Operations Fire Stations,Furniture
800063216,*THOMAS KNEALE & CO LTD,TK110667,93,2.96,CLOTHING,06/08/2015,,Operations Fire Stations,Furniture
800063216,*THOMAS KNEALE & CO LTD,TK110667,94,3.47,CLOTHING,06/08/2015,,Operations Fire Stations,Furniture
800063216,*THOMAS KNEALE & CO LTD,TK110667,95,1.48,CLOTHING,06/08/2015,,Operations Fire Stations,Furniture
800063216,*THOMAS KNEALE & CO LTD,TK110667,96,10.89,CLOTHING,06/08/2015,,Operations Fire Stations,Furniture
800063216,*THOMAS KNEALE & CO LTD,TK110667,97,10.89,CLOTHING,06/08/2015,,Operations Fire Stations,Furniture
800063216,*THOMAS KNEALE & CO LTD,TK110667,98,0.99,CLOTHING,06/08/2015,,Operations Fire Stations,Furniture
800063216,*THOMAS KNEALE & CO LTD,TK110667,99,6.94,CLOTHING,06/08/2015,,Operations Fire Stations,Furniture
800063216,*THOMAS KNEALE & CO LTD,TK110667,100,10.89,CLOTHING,06/08/2015,,Operations Fire Stations,Furniture
800063216,*THOMAS KNEALE & CO LTD,TK110667,101,10.89,CLOTHING,06/08/2015,,Operations Fire Stations,Furniture
800063216,*THOMAS KNEALE & CO LTD,TK110667,102,6.94,CLOTHING,06/08/2015,,Operations Fire Stations,Furniture
800063216,*THOMAS KNEALE & CO LTD,TK110667,103,2.96,CLOTHING,06/08/2015,,Operations Fire Stations,Furniture
800063216,*THOMAS KNEALE & CO LTD,TK110667,104,10.89,CLOTHING,06/08/2015,,Operations Fire Stations,Furniture
800063216,*THOMAS KNEALE & CO LTD,TK110667,105,3.47,CLOTHING,06/08/2015,,Operations Fire Stations,Furniture
800063216,*THOMAS KNEALE & CO LTD,TK110667,106,3.47,CLOTHING,06/08/2015,,Operations Fire Stations,Furniture
800063216,*THOMAS KNEALE & CO LTD,TK110667,107,2.96,CLOTHING,06/08/2015,,Operations Fire Stations,Furniture
800063216,*THOMAS KNEALE & CO LTD,TK110667,108,10.89,CLOTHING,06/08/2015,,Operations Fire Stations,Furniture
800063216,*THOMAS KNEALE & CO LTD,TK110667,109,0.99,CLOTHING,06/08/2015,,Operations Fire Stations,Furniture
800063216,*THOMAS KNEALE & CO LTD,TK110667,110,3.47,CLOTHING,06/08/2015,,Operations Fire Stations,Furniture
800063216,*THOMAS KNEALE & CO LTD,TK110667,111,1.48,CLOTHING,06/08/2015,,Operations Fire Stations,Furniture
800063216,*THOMAS KNEALE & CO LTD,TK110667,112,1.48,CLOTHING,06/08/2015,,Operations Fire Stations,Furniture
800063216,*THOMAS KNEALE & CO LTD,TK110667,113,3.47,CLOTHING,06/08/2015,,Operations Fire Stations,Furniture
800063216,*THOMAS KNEALE & CO LTD,TK110667,114,10.89,CLOTHING,06/08/2015,,Operations Fire Stations,Furniture
800063216,*THOMAS KNEALE & CO LTD,TK110667,115,10.89,CLOTHING,06/08/2015,,Operations Fire Stations,Furniture
800063216,*THOMAS KNEALE & CO LTD,TK110667,116,10.89,CLOTHING,06/08/2015,,Operations Fire Stations,Furniture
800063216,*THOMAS KNEALE & CO LTD,TK110667,117,0.99,CLOTHING,06/08/2015,,Operations Fire Stations,Furniture
800063216,*THOMAS KNEALE & CO LTD,TK110667,118,4.98,OFFICE FURNITURE,06/08/2015,,Operations Fire Stations,Furniture
800063216,*THOMAS KNEALE & CO LTD,TK110667,119,10.89,CLOTHING,06/08/2015,,Operations Fire Stations,Furniture
800063216,*THOMAS KNEALE & CO LTD,TK110667,120,6.94,CLOTHING,06/08/2015,,Operations Fire Stations,Furniture
800063216,*THOMAS KNEALE & CO LTD,TK110667,121,2.96,CLOTHING,06/08/2015,,Operations Fire Stations,Furniture
800063216,*THOMAS KNEALE & CO LTD,TK110667,122,10.89,CLOTHING,06/08/2015,,Operations Fire Stations,Furniture
800063216,*THOMAS KNEALE & CO LTD,TK110667,123,10.89,CLOTHING,06/08/2015,,Operations Fire Stations,Furniture
800063216,*THOMAS KNEALE & CO LTD,TK110667,124,6.94,CLOTHING,06/08/2015,,Operations Fire Stations,Furniture
800063216,*THOMAS KNEALE & CO LTD,TK110667,125,2.96,CLOTHING,06/08/2015,,Operations Fire Stations,Furniture
800063216,*THOMAS KNEALE & CO LTD,TK110667,126,10.89,CLOTHING,06/08/2015,,Operations Fire Stations,Furniture
800063216,*THOMAS KNEALE & CO LTD,TK110667,127,0.99,CLOTHING,06/08/2015,,Operations Fire Stations,Furniture
800063216,*THOMAS KNEALE & CO LTD,TK110667,128,10.89,CLOTHING,06/08/2015,,Operations Fire Stations,Furniture
800063216,*THOMAS KNEALE & CO LTD,TK110667,129,3.47,CLOTHING,06/08/2015,,Operations Fire Stations,Furniture
800063216,*THOMAS KNEALE & CO LTD,TK110667,130,1.48,CLOTHING,06/08/2015,,Operations Fire Stations,Furniture
800063216,*THOMAS KNEALE & CO LTD,TK110667,131,10.89,CLOTHING,06/08/2015,,Operations Fire Stations,Furniture
800063216,*THOMAS KNEALE & CO LTD,TK110667,132,0.99,CLOTHING,06/08/2015,,Operations Fire Stations,Furniture
800063216,*THOMAS KNEALE & CO LTD,TK110667,133,10.89,CLOTHING,06/08/2015,,Operations Fire Stations,Furniture
800063216,*THOMAS KNEALE & CO LTD,TK110667,134,3.47,CLOTHING,06/08/2015,,Operations Fire Stations,Furniture
800063216,*THOMAS KNEALE & CO LTD,TK110667,135,1.48,CLOTHING,06/08/2015,,Operations Fire Stations,Furniture
800063216,*THOMAS KNEALE & CO LTD,TK110667,136,6.94,CLOTHING,06/08/2015,,Operations Fire Stations,Furniture
800063216,*THOMAS KNEALE & CO LTD,TK110667,137,2.96,CLOTHING,06/08/2015,,Operations Fire Stations,Furniture
800063216,*THOMAS KNEALE & CO LTD,TK110667,138,10.89,CLOTHING,06/08/2015,,Operations Fire Stations,Furniture
800063216,*THOMAS KNEALE & CO LTD,TK110667,139,3.47,CLOTHING,06/08/2015,,Operations Fire Stations,Furniture
800063216,*THOMAS KNEALE & CO LTD,TK110667,140,1.48,CLOTHING,06/08/2015,,Operations Fire Stations,Furniture
800063216,*THOMAS KNEALE & CO LTD,TK110667,141,10.89,CLOTHING,06/08/2015,,Operations Fire Stations,Furniture
800063216,*THOMAS KNEALE & CO LTD,TK110667,142,2.96,CLOTHING,06/08/2015,,Operations Fire Stations,Furniture
800063216,*THOMAS KNEALE & CO LTD,TK110667,143,6.94,CLOTHING,06/08/2015,,Operations Fire Stations,Furniture
800063216,*THOMAS KNEALE & CO LTD,TK110667,144,10.89,CLOTHING,06/08/2015,,Operations Fire Stations,Furniture
800063216,*THOMAS KNEALE & CO LTD,TK110667,145,0.99,CLOTHING,06/08/2015,,Operations Fire Stations,Furniture
800063216,*THOMAS KNEALE & CO LTD,TK110667,146,3.47,CLOTHING,06/08/2015,,Operations Fire Stations,Furniture
800063216,*THOMAS KNEALE & CO LTD,TK110667,147,1.48,CLOTHING,06/08/2015,,Operations Fire Stations,Furniture
800063216,*THOMAS KNEALE & CO LTD,TK110667,148,10.89,CLOTHING,06/08/2015,,Operations Fire Stations,Furniture
800063216,*THOMAS KNEALE & CO LTD,TK110667,149,6.94,CLOTHING,06/08/2015,,Operations Fire Stations,Furniture
800063216,*THOMAS KNEALE & CO LTD,TK110667,150,2.96,CLOTHING,06/08/2015,,Operations Fire Stations,Furniture
800063216,*THOMAS KNEALE & CO LTD,TK110667,151,10.89,CLOTHING,06/08/2015,,Operations Fire Stations,Furniture
800063216,*THOMAS KNEALE & CO LTD,TK110667,152,10.89,CLOTHING,06/08/2015,,Operations Fire Stations,Furniture
800063216,*THOMAS KNEALE & CO LTD,TK110667,153,64.75,OFFICE FURNITURE,06/08/2015,,Property PFI,Furniture
800063216,*THOMAS KNEALE & CO LTD,TK110667,154,10.89,CLOTHING,06/08/2015,,Operations Fire Stations,Furniture
800063216,*THOMAS KNEALE & CO LTD,TK110667,155,10.89,CLOTHING,06/08/2015,,Operations Fire Stations,Furniture
800063216,*THOMAS KNEALE & CO LTD,TK110667,156,6.94,CLOTHING,06/08/2015,,Operations Fire Stations,Furniture
800063216,*THOMAS KNEALE & CO LTD,TK110667,157,2.96,CLOTHING,06/08/2015,,Operations Fire Stations,Furniture
800063216,*THOMAS KNEALE & CO LTD,TK110667,158,6.94,CLOTHING,06/08/2015,,Operations Fire Stations,Furniture
800063216,*THOMAS KNEALE & CO LTD,TK110667,159,10.89,CLOTHING,06/08/2015,,Operations Fire Stations,Furniture
800063216,*THOMAS KNEALE & CO LTD,TK110667,160,10.89,CLOTHING,06/08/2015,,Operations Fire Stations,Furniture
800063216,*THOMAS KNEALE & CO LTD,TK110667,161,3.47,CLOTHING,06/08/2015,,Operations Fire Stations,Furniture
800063216,*THOMAS KNEALE & CO LTD,TK110667,162,1.48,CLOTHING,06/08/2015,,Operations Fire Stations,Furniture
800063216,*THOMAS KNEALE & CO LTD,TK110667,163,10.89,CLOTHING,06/08/2015,,Operations Fire Stations,Furniture
800063216,*THOMAS KNEALE & CO LTD,TK110667,164,1.48,CLOTHING,06/08/2015,,Operations Fire Stations,Furniture
800063216,*THOMAS KNEALE & CO LTD,TK110667,165,10.89,CLOTHING,06/08/2015,,Operations Fire Stations,Furniture
800063216,*THOMAS KNEALE & CO LTD,TK110667,166,0.99,CLOTHING,06/08/2015,,Operations Fire Stations,Furniture
800063216,*THOMAS KNEALE & CO LTD,TK110667,167,10.89,CLOTHING,06/08/2015,,Operations Fire Stations,Furniture
800063216,*THOMAS KNEALE & CO LTD,TK110667,168,0.99,CLOTHING,06/08/2015,,Operations Fire Stations,Furniture
800063216,*THOMAS KNEALE & CO LTD,TK110667,169,3.47,CLOTHING,06/08/2015,,Operations Fire Stations,Furniture
800063216,*THOMAS KNEALE & CO LTD,TK110667,170,1.48,CLOTHING,06/08/2015,,Operations Fire Stations,Furniture
800063216,*THOMAS KNEALE & CO LTD,TK110667,171,10.89,CLOTHING,06/08/2015,,Operations Fire Stations,Furniture
800063216,*THOMAS KNEALE & CO LTD,TK110667,172,10.89,CLOTHING,06/08/2015,,Operations Fire Stations,Furniture
800063216,*THOMAS KNEALE & CO LTD,TK110667,173,1.48,CLOTHING,06/08/2015,,Operations Fire Stations,Furniture
800063216,*THOMAS KNEALE & CO LTD,TK110667,174,10.89,CLOTHING,06/08/2015,,Operations Fire Stations,Furniture
800063216,*THOMAS KNEALE & CO LTD,TK110667,175,0.99,CLOTHING,06/08/2015,,Operations Fire Stations,Furniture
800063216,*THOMAS KNEALE & CO LTD,TK110667,176,10.89,CLOTHING,06/08/2015,,Operations Fire Stations,Furniture
040815G,LINCOLNSHIRE COUNTY COUNCIL===,10003997,1,"3,200.00",PROFESSIONAL DEVELOPMENT,10/08/2015,"3,200.00",Exercise Unified Response,Statutory Bodies
040815G,*SPRUE SAFETY PRODUCTS LTD====,1078601,1,"4,000.00",FIRE DETECTORS,10/08/2015,"4,000.00",Operations Non Fire Stations,Health & Safety
800063995,*JAMES HUNTER (OUTFITTERS) LTD,108223,1,289.84,CLOTHING,10/08/2015,362.71,Fire Safety Regulation,Clothing
800063995,*JAMES HUNTER (OUTFITTERS) LTD,108223,2,72.87,CLOTHING,10/08/2015,,Fire Safety Regulation,Clothing
310715M,HOK INTERNATIONAL LTD,13.33034.00-15,1,265.98,PROFESSIONAL SERVICES,10/08/2015,265.98,Property PFI,Consultancy
310715M,RICOH IMAGING UK LTD,1400162708/1400163035,1,339.54,OPERATIONAL EQUIP-PURCHASE,10/08/2015,339.54,Fire Safety Regulation,Facilities & Management S
800063412,ADECCO UK LIMITED=============,27111325,1,439.6,FRS STAFF AGENCY,10/08/2015,439.6,Technical And Service Support,Human Resources
800063413,ADECCO UK LIMITED=============,27124010,1,351.68,FRS STAFF AGENCY,10/08/2015,351.68,Technical And Service Support,Human Resources
800063301,ADECCO UK LIMITED=============,27130220,1,439.6,FRS STAFF AGENCY,10/08/2015,439.6,HR Development,Human Resources
800063591,ADECCO UK LIMITED=============,27130228,1,"1,076.80",FRS STAFF AGENCY,10/08/2015,"1,076.80",Technical And Service Support,Human Resources
800063414,ADECCO UK LIMITED=============,27130247,1,439.6,FRS STAFF AGENCY,10/08/2015,439.6,Technical And Service Support,Human Resources
800063592,ADECCO UK LIMITED=============,27136273,1,"1,076.80",FRS STAFF AGENCY,10/08/2015,"1,076.80",Technical And Service Support,Human Resources
800063620,ADECCO UK LIMITED=============,27136293,1,624.4,FRS STAFF AGENCY,10/08/2015,624.4,Community Safety Delivery,Human Resources
800063593,ADECCO UK LIMITED=============,27143314,1,"1,076.80",FRS STAFF AGENCY,10/08/2015,"1,076.80",Technical And Service Support,Human Resources
800063621,ADECCO UK LIMITED=============,27143323,1,499.52,FRS STAFF AGENCY,10/08/2015,499.52,Community Safety Delivery,Human Resources
800063594,ADECCO UK LIMITED=============,27149161,1,861.44,FRS STAFF AGENCY,10/08/2015,861.44,Technical And Service Support,Human Resources
800063622,ADECCO UK LIMITED=============,27149190,1,499.52,FRS STAFF AGENCY,10/08/2015,499.52,Community Safety Delivery,Human Resources
800063595,ADECCO UK LIMITED=============,27155285,1,"1,076.80",FRS STAFF AGENCY,10/08/2015,"1,076.80",Technical And Service Support,Human Resources
800063623,ADECCO UK LIMITED=============,27155306,1,446,FRS STAFF AGENCY,10/08/2015,446,Community Safety Delivery,Human Resources
800063271,ADECCO UK LIMITED=============,27155321,1,641.9,FRS STAFF AGENCY,10/08/2015,641.9,Community Safety Delivery,Human Resources
800063596,ADECCO UK LIMITED=============,27162051,1,"1,076.80",FRS STAFF AGENCY,10/08/2015,"1,076.80",Technical And Service Support,Human Resources
800063624,ADECCO UK LIMITED=============,27162072,1,499.52,FRS STAFF AGENCY,10/08/2015,499.52,Community Safety Delivery,Human Resources
800063625,ADECCO UK LIMITED=============,27168532,1,374.64,FRS STAFF AGENCY,10/08/2015,374.64,Community Safety Delivery,Human Resources
800063755,ADECCO UK LIMITED=============,27168542,1,540.12,FRS STAFF AGENCY,10/08/2015,540.12,Information Management,Human Resources
800063597,ADECCO UK LIMITED=============,27168548,1,861.44,FRS STAFF AGENCY,10/08/2015,861.44,Technical And Service Support,Human Resources
800063626,ADECCO UK LIMITED=============,27175049,1,499.52,FRS STAFF AGENCY,10/08/2015,499.52,Community Safety Delivery,Human Resources
800063627,ADECCO UK LIMITED=============,27181419,1,499.52,FRS STAFF AGENCY,10/08/2015,499.52,Community Safety Delivery,Human Resources
800063421,ADECCO UK LIMITED=============,27187707,1,374.64,FRS STAFF AGENCY,10/08/2015,374.64,Technical And Service Support,Human Resources
800063422,ADECCO UK LIMITED=============,27194001,1,624.4,FRS STAFF AGENCY,10/08/2015,624.4,Technical And Service Support,Human Resources
290715M,RS COMPONENTS LTD=============,280030633,1,172.95,PROTECTIVE EQUIPT - PARTS,10/08/2015,260.77,Technical and Service Support,Building Constr Materials
290715M,RS COMPONENTS LTD=============,280030633,2,18.12,STATIONERY CONSUMABLES,10/08/2015,,Technical And Service Support,Building Constr Materials
290715M,RS COMPONENTS LTD=============,280030633,3,69.7,PURCHASE,10/08/2015,,Technical And Service Support,Building Constr Materials
050815M,BRISTOL UNIFORMS LTD==========,305656,1,766.38,CLOTHING,10/08/2015,766.38,Procurement,Clothing
050815M,BRISTOL UNIFORMS LTD==========,305657,1,"4,027.79",CLOTHING,10/08/2015,"4,027.79",Procurement,Clothing
050815M,BRISTOL UNIFORMS LTD==========,305661/613,1,"162,426.81",CLOTHING,10/08/2015,"162,426.81",Procurement,Clothing
050815M,DELTOR COMMUNICATIONS LTD.===,31337,1,343,PRINTING,10/08/2015,"1,650.00",Communications,Facilities & Management S
050815M,DELTOR COMMUNICATIONS LTD.===,31337,2,539,PRINTING,10/08/2015,,Communications,Facilities & Management S
050815M,DELTOR COMMUNICATIONS LTD.===,31337,3,396,PRINTING,10/08/2015,,Communications,Facilities & Management S
050815M,DELTOR COMMUNICATIONS LTD.===,31337,4,372,PRINTING,10/08/2015,,Communications,Facilities & Management S
050815M,FOCUS & VISION TECHNOLOGY LTD,47060,1,407.34,MEDICAL EXPENSES CONTRACT,10/08/2015,407.34,HR Management,Healthcare
040815G,AECOM INFRASTRUCTURE &,47074243,1,"7,850.86",PROF FEES-MISCELLANEOUS,10/08/2015,"10,168.00",Technical and Service Support,Consultancy
040815G,AECOM INFRASTRUCTURE &,47074243,2,450.2,PROF FEES-MISCELLANEOUS,10/08/2015,,Technical and Service Support,Consultancy
040815G,AECOM INFRASTRUCTURE &,47074243,3,"1,866.94",PROF FEES-MISCELLANEOUS,10/08/2015,,Technical and Service Support,Consultancy
050815M,FOCUS & VISION TECHNOLOGY LTD,47078,1,349.76,MEDICAL EXPENSES CONTRACT,10/08/2015,349.76,HR Management,Healthcare
050815M,FOCUS & VISION TECHNOLOGY LTD,47108,1,400.33,MEDICAL EXPENSES CONTRACT,10/08/2015,400.33,HR Management,Healthcare
050815M,FOCUS & VISION TECHNOLOGY LTD,47196,1,266.28,MEDICAL EXPENSES CONTRACT,10/08/2015,266.28,HR Management,Healthcare
040815G,SPORTSAFE UK LTD==============,475110,1,30.67,GYM EQUIPMENT,10/08/2015,287.5,Technical And Service Support,Sports & Playground Equip
040815G,SPORTSAFE UK LTD==============,475110,2,53.73,GYM EQUIPMENT,10/08/2015,,Technical And Service Support,Sports & Playground Equip
040815G,SPORTSAFE UK LTD==============,475110,3,36.1,GYM EQUIPMENT,10/08/2015,,Technical And Service Support,Sports & Playground Equip
040815G,SPORTSAFE UK LTD==============,475110,4,98,GYM EQUIPMENT,10/08/2015,,Technical And Service Support,Sports & Playground Equip
040815G,SPORTSAFE UK LTD==============,475110,5,69,GYM EQUIPMENT,10/08/2015,,Technical And Service Support,Sports & Playground Equip
040815G,SPORTSAFE UK LTD==============,475111,1,453.18,GYM EQUIPMENT,10/08/2015,598.56,Technical And Service Support,Sports & Playground Equip
040815G,SPORTSAFE UK LTD==============,475111,2,24.36,GYM EQUIPMENT,10/08/2015,,Technical And Service Support,Sports & Playground Equip
040815G,SPORTSAFE UK LTD==============,475111,3,121.02,GYM EQUIPMENT,10/08/2015,,Technical And Service Support,Sports & Playground Equip
040815G,SPORTSAFE UK LTD==============,475112,1,102.56,GYM EQUIPMENT,10/08/2015,378.56,Technical And Service Support,Sports & Playground Equip
040815G,SPORTSAFE UK LTD==============,475112,2,276,GYM EQUIPMENT,10/08/2015,,Technical And Service Support,Sports & Playground Equip
040815G,SPORTSAFE UK LTD==============,475114,1,295,GYM EQUIPMENT,10/08/2015,295,Technical And Service Support,Sports & Playground Equip
040815G,SPORTSAFE UK LTD==============,475116,1,56,GYM EQUIPMENT,10/08/2015,981.69,Technical And Service Support,Sports & Playground Equip
040815G,SPORTSAFE UK LTD==============,475116,2,112.5,GYM EQUIPMENT,10/08/2015,,Technical And Service Support,Sports & Playground Equip
040815G,SPORTSAFE UK LTD==============,475116,3,53.4,GYM EQUIPMENT,10/08/2015,,Technical And Service Support,Sports & Playground Equip
040815G,SPORTSAFE UK LTD==============,475116,4,315.72,GYM EQUIPMENT,10/08/2015,,Technical And Service Support,Sports & Playground Equip
040815G,SPORTSAFE UK LTD==============,475116,5,73.94,GYM EQUIPMENT,10/08/2015,,Technical And Service Support,Sports & Playground Equip
040815G,SPORTSAFE UK LTD==============,475116,6,103.88,GYM EQUIPMENT,10/08/2015,,Technical And Service Support,Sports & Playground Equip
040815G,SPORTSAFE UK LTD==============,475116,7,7.25,GYM EQUIPMENT,10/08/2015,,Technical And Service Support,Sports & Playground Equip
040815G,SPORTSAFE UK LTD==============,475116,8,92,GYM EQUIPMENT,10/08/2015,,Technical And Service Support,Sports & Playground Equip
040815G,SPORTSAFE UK LTD==============,475116,9,98,GYM EQUIPMENT,10/08/2015,,Technical And Service Support,Sports & Playground Equip
040815G,SPORTSAFE UK LTD==============,475116,10,69,GYM EQUIPMENT,10/08/2015,,Technical And Service Support,Sports & Playground Equip
040815G,SPORTSAFE UK LTD==============,475119,1,37.24,GYM EQUIPMENT,10/08/2015,352.96,Technical And Service Support,Sports & Playground Equip
040815G,SPORTSAFE UK LTD==============,475119,2,315.72,GYM EQUIPMENT,10/08/2015,,Technical And Service Support,Sports & Playground Equip
800064140,*GREENHAM TRADING LTD=========,5691042,1,79.8,OFFICE EQUIPMENT,10/08/2015,254.62,Operations Fire Stations,Cleaning & Janitorial
800064140,*GREENHAM TRADING LTD=========,5691042,2,55.92,OPERATIONAL EQUIP-PURCHASE,10/08/2015,,Operations Fire Stations,Cleaning & Janitorial
800064140,*GREENHAM TRADING LTD=========,5691042,3,118.9,HYGIENE,10/08/2015,,Operations Fire Stations,Cleaning & Janitorial
800064142,*GREENHAM TRADING LTD=========,5691044,1,37.28,OPERATIONAL EQUIP-PURCHASE,10/08/2015,268.36,Operations Fire Stations,Cleaning & Janitorial
800064142,*GREENHAM TRADING LTD=========,5691044,2,135.96,HYGIENE,10/08/2015,,Operations Fire Stations,Cleaning & Janitorial
800064142,*GREENHAM TRADING LTD=========,5691044,3,95.12,HYGIENE,10/08/2015,,Operations Fire Stations,Cleaning & Janitorial
040815G,AECOM INFRASTRUCTURE &,6279894,1,"8,261.49",PROF FEES-MISCELLANEOUS,10/08/2015,"10,334.51",Technical and Service Support,Consultancy
040815G,AECOM INFRASTRUCTURE &,6279894,2,"2,073.02",PROF FEES-MISCELLANEOUS,10/08/2015,,Technical and Service Support,Consultancy
040815G,FIRE SERVICE COLLEGE LTD======,803935,1,"2,250.00",PROFESSIONAL DEVELOPMENT,10/08/2015,"2,250.00",National Operational Guidance Project,Human Resources
050815M,SHARPE PRITCHARD==============,80800,1,435,LEGAL PROFESSIONAL FEES-GENERL,10/08/2015,435,Central Finance,Legal Services
050815M,SHARPE PRITCHARD==============,81289,1,"2,925.00",DISPOSAL COSTS-ESTATES AGENTS,10/08/2015,"2,925.00",Technical and Service Support,Legal Services
050815M,SHARPE PRITCHARD==============,81554,1,"6,431.69",DISPOSAL COSTS-ESTATES AGENTS,10/08/2015,"6,431.69",Technical and Service Support,Legal Services
040815G,G4S FIRE & SECURITY SYSTEMS UK,886574,1,"2,181.36",STRATEGIC (NON CYCLICAL),10/08/2015,"2,181.36",Technical And Service Support,Facilities & Management S
040815G,CITY UNIVERSITY===============,90324827,1,"6,530.00",MEDICAL EXPENSES CONTRACT,10/08/2015,"6,530.00",HR Management,TRAINING AND EDUCATIONAL
280715M,ASTEC SURVEYS LIMITED=========,ASL-15-193,1,465,ASBESTOS,10/08/2015,465,Technical and Service Support,Environmental Services
040815G,E&S B DAVIS LTD,DAV/57469,1,295,OPERATIONAL EQUIP-PURCHASE,10/08/2015,295,Operations Fire Stations,Environmental Services
800064246,ALLSTAR BUSINESS SOLUTIONS LTD,E2005119886,1,593.3,FUEL,10/08/2015,"13,995.44",Operations Fire Stations,Vehicle Management
800064246,ALLSTAR BUSINESS SOLUTIONS LTD,E2005119886,2,416.66,FUEL,10/08/2015,,Operations Non Fire Stations,Vehicle Management
800064246,ALLSTAR BUSINESS SOLUTIONS LTD,E2005119886,3,400.96,FUEL,10/08/2015,,Procurement,Vehicle Management
800064246,ALLSTAR BUSINESS SOLUTIONS LTD,E2005119886,4,334.15,FUEL,10/08/2015,,Operations Fire Stations,Vehicle Management
800064246,ALLSTAR BUSINESS SOLUTIONS LTD,E2005119886,5,281.39,FUEL,10/08/2015,,Operations Fire Stations,Vehicle Management
800064246,ALLSTAR BUSINESS SOLUTIONS LTD,E2005119886,6,266.25,FUEL,10/08/2015,,Fire Safety Regulation,Vehicle Management
800064246,ALLSTAR BUSINESS SOLUTIONS LTD,E2005119886,7,264.04,FUEL,10/08/2015,,Operations Fire Stations,Vehicle Management
800064246,ALLSTAR BUSINESS SOLUTIONS LTD,E2005119886,8,254.92,FUEL,10/08/2015,,Operations Fire Stations,Vehicle Management
800064246,ALLSTAR BUSINESS SOLUTIONS LTD,E2005119886,9,237.56,FUEL,10/08/2015,,Operations Fire Stations,Vehicle Management
800064246,ALLSTAR BUSINESS SOLUTIONS LTD,E2005119886,10,230.26,FUEL,10/08/2015,,Operations Fire Stations,Vehicle Management
800064246,ALLSTAR BUSINESS SOLUTIONS LTD,E2005119886,11,228.27,FUEL,10/08/2015,,Operations Fire Stations,Vehicle Management
800064246,ALLSTAR BUSINESS SOLUTIONS LTD,E2005119886,12,223.51,FUEL,10/08/2015,,Operations Fire Stations,Vehicle Management
800064246,ALLSTAR BUSINESS SOLUTIONS LTD,E2005119886,13,220.96,FUEL,10/08/2015,,Operations Fire Stations,Vehicle Management
800064246,ALLSTAR BUSINESS SOLUTIONS LTD,E2005119886,14,216.02,FUEL,10/08/2015,,Operations Fire Stations,Vehicle Management
800064246,ALLSTAR BUSINESS SOLUTIONS LTD,E2005119886,15,211.14,FUEL,10/08/2015,,Operations Fire Stations,Vehicle Management
800064246,ALLSTAR BUSINESS SOLUTIONS LTD,E2005119886,16,210.68,FUEL,10/08/2015,,Operations Fire Stations,Vehicle Management
800064246,ALLSTAR BUSINESS SOLUTIONS LTD,E2005119886,17,206.03,FUEL,10/08/2015,,Operations Fire Stations,Vehicle Management
800064246,ALLSTAR BUSINESS SOLUTIONS LTD,E2005119886,18,202.34,FUEL,10/08/2015,,Operations Fire Stations,Vehicle Management
800064246,ALLSTAR BUSINESS SOLUTIONS LTD,E2005119886,19,200.88,FUEL,10/08/2015,,Operations Fire Stations,Vehicle Management
800064246,ALLSTAR BUSINESS SOLUTIONS LTD,E2005119886,20,198.99,FUEL,10/08/2015,,Operations Fire Stations,Vehicle Management
800064246,ALLSTAR BUSINESS SOLUTIONS LTD,E2005119886,21,196.71,FUEL,10/08/2015,,Operations Fire Stations,Vehicle Management
800064246,ALLSTAR BUSINESS SOLUTIONS LTD,E2005119886,22,193.22,FUEL,10/08/2015,,Operations Fire Stations,Vehicle Management
800064246,ALLSTAR BUSINESS SOLUTIONS LTD,E2005119886,23,188.04,FUEL,10/08/2015,,Operations Fire Stations,Vehicle Management
800064246,ALLSTAR BUSINESS SOLUTIONS LTD,E2005119886,24,186.98,FUEL,10/08/2015,,Operations Fire Stations,Vehicle Management
800064246,ALLSTAR BUSINESS SOLUTIONS LTD,E2005119886,25,181.18,FUEL,10/08/2015,,Operations Fire Stations,Vehicle Management
800064246,ALLSTAR BUSINESS SOLUTIONS LTD,E2005119886,26,177.35,FUEL,10/08/2015,,Operations Fire Stations,Vehicle Management
800064246,ALLSTAR BUSINESS SOLUTIONS LTD,E2005119886,27,177.14,FUEL,10/08/2015,,Operations Fire Stations,Vehicle Management
800064246,ALLSTAR BUSINESS SOLUTIONS LTD,E2005119886,28,176.45,FUEL,10/08/2015,,Operations Fire Stations,Vehicle Management
800064246,ALLSTAR BUSINESS SOLUTIONS LTD,E2005119886,29,171.23,FUEL,10/08/2015,,Operations Fire Stations,Vehicle Management
800064246,ALLSTAR BUSINESS SOLUTIONS LTD,E2005119886,30,170.86,FUEL,10/08/2015,,Operations Fire Stations,Vehicle Management
800064246,ALLSTAR BUSINESS SOLUTIONS LTD,E2005119886,31,169.58,FUEL,10/08/2015,,Operations Fire Stations,Vehicle Management
800064246,ALLSTAR BUSINESS SOLUTIONS LTD,E2005119886,32,167.38,FUEL,10/08/2015,,Operations Fire Stations,Vehicle Management
800064246,ALLSTAR BUSINESS SOLUTIONS LTD,E2005119886,33,166.73,FUEL,10/08/2015,,Operations Fire Stations,Vehicle Management
800064246,ALLSTAR BUSINESS SOLUTIONS LTD,E2005119886,34,165,FUEL,10/08/2015,,Operations Fire Stations,Vehicle Management
800064246,ALLSTAR BUSINESS SOLUTIONS LTD,E2005119886,35,164.96,FUEL,10/08/2015,,Operations Fire Stations,Vehicle Management
800064246,ALLSTAR BUSINESS SOLUTIONS LTD,E2005119886,36,164.03,FUEL,10/08/2015,,Operations Fire Stations,Vehicle Management
800064246,ALLSTAR BUSINESS SOLUTIONS LTD,E2005119886,37,163.31,FUEL,10/08/2015,,Operations Fire Stations,Vehicle Management
800064246,ALLSTAR BUSINESS SOLUTIONS LTD,E2005119886,38,162.55,FUEL,10/08/2015,,Operations Fire Stations,Vehicle Management
800064246,ALLSTAR BUSINESS SOLUTIONS LTD,E2005119886,39,160.86,FUEL,10/08/2015,,Operations Fire Stations,Vehicle Management
800064246,ALLSTAR BUSINESS SOLUTIONS LTD,E2005119886,40,159.14,FUEL,10/08/2015,,Operations Fire Stations,Vehicle Management
800064246,ALLSTAR BUSINESS SOLUTIONS LTD,E2005119886,41,152.53,FUEL,10/08/2015,,Command Units,Vehicle Management
800064246,ALLSTAR BUSINESS SOLUTIONS LTD,E2005119886,42,150.33,FUEL,10/08/2015,,Operations Fire Stations,Vehicle Management
800064246,ALLSTAR BUSINESS SOLUTIONS LTD,E2005119886,43,148.6,FUEL,10/08/2015,,Operations Fire Stations,Vehicle Management
800064246,ALLSTAR BUSINESS SOLUTIONS LTD,E2005119886,44,145.74,FUEL,10/08/2015,,Command Units,Vehicle Management
800064246,ALLSTAR BUSINESS SOLUTIONS LTD,E2005119886,45,141.51,FUEL,10/08/2015,,Operations Fire Stations,Vehicle Management
800064246,ALLSTAR BUSINESS SOLUTIONS LTD,E2005119886,46,127.85,FUEL,10/08/2015,,Operations Fire Stations,Vehicle Management
800064246,ALLSTAR BUSINESS SOLUTIONS LTD,E2005119886,47,122.43,FUEL,10/08/2015,,Operations Fire Stations,Vehicle Management
800064246,ALLSTAR BUSINESS SOLUTIONS LTD,E2005119886,48,121.75,FUEL,10/08/2015,,Operations Fire Stations,Vehicle Management
800064246,ALLSTAR BUSINESS SOLUTIONS LTD,E2005119886,49,119.98,FUEL,10/08/2015,,Command Units,Vehicle Management
800064246,ALLSTAR BUSINESS SOLUTIONS LTD,E2005119886,50,119.73,FUEL,10/08/2015,,Operations Fire Stations,Vehicle Management
800064246,ALLSTAR BUSINESS SOLUTIONS LTD,E2005119886,51,116.03,FUEL,10/08/2015,,Operations Fire Stations,Vehicle Management
800064246,ALLSTAR BUSINESS SOLUTIONS LTD,E2005119886,52,113.74,FUEL,10/08/2015,,Operations Fire Stations,Vehicle Management
800064246,ALLSTAR BUSINESS SOLUTIONS LTD,E2005119886,53,113.5,FUEL,10/08/2015,,Operational Resilience,Vehicle Management
800064246,ALLSTAR BUSINESS SOLUTIONS LTD,E2005119886,54,112.79,FUEL,10/08/2015,,Operations Fire Stations,Vehicle Management
800064246,ALLSTAR BUSINESS SOLUTIONS LTD,E2005119886,55,109.14,FUEL,10/08/2015,,Operations Fire Stations,Vehicle Management
800064246,ALLSTAR BUSINESS SOLUTIONS LTD,E2005119886,56,103.29,FUEL,10/08/2015,,Operations Fire Stations,Vehicle Management
800064246,ALLSTAR BUSINESS SOLUTIONS LTD,E2005119886,57,102.4,FUEL,10/08/2015,,Operations Fire Stations,Vehicle Management
800064246,ALLSTAR BUSINESS SOLUTIONS LTD,E2005119886,58,101.52,FUEL,10/08/2015,,Operations Fire Stations,Vehicle Management
800064246,ALLSTAR BUSINESS SOLUTIONS LTD,E2005119886,59,101.06,FUEL,10/08/2015,,Operations Fire Stations,Vehicle Management
800064246,ALLSTAR BUSINESS SOLUTIONS LTD,E2005119886,60,100.89,FUEL,10/08/2015,,Operations Fire Stations,Vehicle Management
800064246,ALLSTAR BUSINESS SOLUTIONS LTD,E2005119886,61,99.47,FUEL,10/08/2015,,Operations Fire Stations,Vehicle Management
800064246,ALLSTAR BUSINESS SOLUTIONS LTD,E2005119886,62,98.92,FUEL,10/08/2015,,Operations Fire Stations,Vehicle Management
800064246,ALLSTAR BUSINESS SOLUTIONS LTD,E2005119886,63,96.91,FUEL,10/08/2015,,Operations Fire Stations,Vehicle Management
800064246,ALLSTAR BUSINESS SOLUTIONS LTD,E2005119886,64,96.4,FUEL,10/08/2015,,Operations Fire Stations,Vehicle Management
800064246,ALLSTAR BUSINESS SOLUTIONS LTD,E2005119886,65,94.29,FUEL,10/08/2015,,Command Units,Vehicle Management
800064246,ALLSTAR BUSINESS SOLUTIONS LTD,E2005119886,66,93.48,FUEL,10/08/2015,,Command Units,Vehicle Management
800064246,ALLSTAR BUSINESS SOLUTIONS LTD,E2005119886,67,91.82,FUEL,10/08/2015,,Operations Fire Stations,Vehicle Management
800064246,ALLSTAR BUSINESS SOLUTIONS LTD,E2005119886,68,91.61,FUEL,10/08/2015,,Operations Fire Stations,Vehicle Management
800064246,ALLSTAR BUSINESS SOLUTIONS LTD,E2005119886,69,87.21,FUEL,10/08/2015,,Operations Fire Stations,Vehicle Management
800064246,ALLSTAR BUSINESS SOLUTIONS LTD,E2005119886,70,86.8,FUEL,10/08/2015,,Operations Fire Stations,Vehicle Management
800064246,ALLSTAR BUSINESS SOLUTIONS LTD,E2005119886,71,86.38,FUEL,10/08/2015,,Operations Fire Stations,Vehicle Management
800064246,ALLSTAR BUSINESS SOLUTIONS LTD,E2005119886,72,85.7,FUEL,10/08/2015,,Operations Fire Stations,Vehicle Management
800064246,ALLSTAR BUSINESS SOLUTIONS LTD,E2005119886,73,83.08,FUEL,10/08/2015,,Operations Fire Stations,Vehicle Management
800064246,ALLSTAR BUSINESS SOLUTIONS LTD,E2005119886,74,81.29,FUEL,10/08/2015,,Operations Fire Stations,Vehicle Management
800064246,ALLSTAR BUSINESS SOLUTIONS LTD,E2005119886,75,81.01,FUEL,10/08/2015,,Operations Fire Stations,Vehicle Management
800064246,ALLSTAR BUSINESS SOLUTIONS LTD,E2005119886,76,79.97,FUEL,10/08/2015,,Operations Fire Stations,Vehicle Management
800064246,ALLSTAR BUSINESS SOLUTIONS LTD,E2005119886,77,77.74,FUEL,10/08/2015,,Operations Fire Stations,Vehicle Management
800064246,ALLSTAR BUSINESS SOLUTIONS LTD,E2005119886,78,77.37,FUEL,10/08/2015,,Operations Fire Stations,Vehicle Management
800064246,ALLSTAR BUSINESS SOLUTIONS LTD,E2005119886,79,75.97,FUEL,10/08/2015,,Operations Fire Stations,Vehicle Management
800064246,ALLSTAR BUSINESS SOLUTIONS LTD,E2005119886,80,75.65,FUEL,10/08/2015,,Information and Communication Technology,Vehicle Management
800064246,ALLSTAR BUSINESS SOLUTIONS LTD,E2005119886,81,74.64,FUEL,10/08/2015,,Operations Fire Stations,Vehicle Management
800064246,ALLSTAR BUSINESS SOLUTIONS LTD,E2005119886,82,67.36,FUEL,10/08/2015,,Operations Fire Stations,Vehicle Management
800064246,ALLSTAR BUSINESS SOLUTIONS LTD,E2005119886,83,66.62,FUEL,10/08/2015,,Command Units,Vehicle Management
800064246,ALLSTAR BUSINESS SOLUTIONS LTD,E2005119886,84,64.1,FUEL,10/08/2015,,Operations Fire Stations,Vehicle Management
800064246,ALLSTAR BUSINESS SOLUTIONS LTD,E2005119886,85,63.78,FUEL,10/08/2015,,Operations Fire Stations,Vehicle Management
800064246,ALLSTAR BUSINESS SOLUTIONS LTD,E2005119886,86,62.68,FUEL,10/08/2015,,Operations Fire Stations,Vehicle Management
800064246,ALLSTAR BUSINESS SOLUTIONS LTD,E2005119886,87,60.57,FUEL,10/08/2015,,Command Units,Vehicle Management
800064246,ALLSTAR BUSINESS SOLUTIONS LTD,E2005119886,88,54.68,FUEL,10/08/2015,,Operations Fire Stations,Vehicle Management
800064246,ALLSTAR BUSINESS SOLUTIONS LTD,E2005119886,89,53.63,FUEL,10/08/2015,,Operations Non Fire Stations,Vehicle Management
800064246,ALLSTAR BUSINESS SOLUTIONS LTD,E2005119886,90,53.37,FUEL,10/08/2015,,Operations Fire Stations,Vehicle Management
800064246,ALLSTAR BUSINESS SOLUTIONS LTD,E2005119886,91,53.2,FUEL,10/08/2015,,Operations Fire Stations,Vehicle Management
800064246,ALLSTAR BUSINESS SOLUTIONS LTD,E2005119886,92,51.16,FUEL,10/08/2015,,Operations Fire Stations,Vehicle Management
800064246,ALLSTAR BUSINESS SOLUTIONS LTD,E2005119886,93,47.83,FUEL,10/08/2015,,Operational Resilience,Vehicle Management
800064246,ALLSTAR BUSINESS SOLUTIONS LTD,E2005119886,94,46.86,FUEL,10/08/2015,,Operations Non Fire Stations,Vehicle Management
800064246,ALLSTAR BUSINESS SOLUTIONS LTD,E2005119886,95,46.47,FUEL,10/08/2015,,LIFE - LFB Funded,Vehicle Management
800064246,ALLSTAR BUSINESS SOLUTIONS LTD,E2005119886,96,22.41,FUEL,10/08/2015,,Technical And Service Support,Vehicle Management
800064246,ALLSTAR BUSINESS SOLUTIONS LTD,E2005119886,97,21.43,FUEL,10/08/2015,,Operations Fire Stations,Vehicle Management
800064246,ALLSTAR BUSINESS SOLUTIONS LTD,E2005119886,98,16.48,FUEL,10/08/2015,,Operations Fire Stations,Vehicle Management
800064246,ALLSTAR BUSINESS SOLUTIONS LTD,E2005119886,99,15.33,FUEL,10/08/2015,,CBRN RRT,Vehicle Management
800064246,ALLSTAR BUSINESS SOLUTIONS LTD,E2005119886,100,13.68,FUEL,10/08/2015,,Technical And Service Support,Vehicle Management
800064246,ALLSTAR BUSINESS SOLUTIONS LTD,E2005119886,101,12.27,FUEL,10/08/2015,,Command Units,Vehicle Management
040815G,HALL FUELS,I07678887,1,"2,807.40",FUEL,10/08/2015,"2,807.40",Operations Fire Stations,Vehicle Management
040815G,HALL FUELS,I07678888,1,"2,807.40",FUEL,10/08/2015,"2,807.40",Operations Fire Stations,Vehicle Management
040815G,HALL FUELS,I07701618,1,"3,239.95",FUEL,10/08/2015,"3,239.95",Operations Fire Stations,Vehicle Management
280715M,HALL FUELS,I07745173,1,"2,703.30",FUEL,10/08/2015,"2,703.30",Operations Fire Stations,Vehicle Management
290715M,HALL FUELS,I07745174,1,"2,703.30",FUEL,10/08/2015,"2,703.30",Operations Fire Stations,Vehicle Management
290715M,HUNTER LODGE==================,SI-05920,1,660,ADVERTISING,10/08/2015,660,HR Management,Facilities & Management S
800064116,*XMA LTD,Y539963,1,134.8,STATIONERY CONSUMABLES,10/08/2015,351.14,Operations Fire Stations,ICT
800064116,*XMA LTD,Y539963,2,54.55,STATIONERY CONSUMABLES,10/08/2015,,Operations Fire Stations,ICT
800064116,*XMA LTD,Y539963,3,51.23,STATIONERY CONSUMABLES,10/08/2015,,Operations Fire Stations,ICT
800064116,*XMA LTD,Y539963,4,55.28,STATIONERY CONSUMABLES,10/08/2015,,Operations Fire Stations,ICT
800064116,*XMA LTD,Y539963,5,55.28,STATIONERY CONSUMABLES,10/08/2015,,Operations Fire Stations,ICT
100815M,ALPHABET (GB) LIMITED,AD5861,1,273,PUBLIC TRANSPORT,12/08/2015,273,Operations Non Fire Stations,Vehicle Management
141139,OGILVIE FLEET LTD=============,346371,1,428.44,LEASE CAR CHARGES,13/08/2015,428.44,Procurement,Vehicle Management
141139,OGILVIE FLEET LTD=============,346371,2,-39.14,VAT CAR LEASING,13/08/2015,,Finance Services,Vehicle Management
141139,OGILVIE FLEET LTD=============,346371,3,39.14,LEASE CAR CHARGES,13/08/2015,,Procurement,Vehicle Management
141139,OGILVIE FLEET LTD=============,346373,1,277.32,LEASE CAR CHARGES,13/08/2015,277.32,Procurement,Vehicle Management
141139,OGILVIE FLEET LTD=============,346373,2,-23.27,VAT CAR LEASING,13/08/2015,,Finance Services,Vehicle Management
141139,OGILVIE FLEET LTD=============,346373,3,23.27,LEASE CAR CHARGES,13/08/2015,,Procurement,Vehicle Management
141139,OGILVIE FLEET LTD=============,346374,1,557.15,LEASE CAR CHARGES,13/08/2015,557.15,Procurement,Vehicle Management
141139,OGILVIE FLEET LTD=============,346374,2,-50.11,VAT CAR LEASING,13/08/2015,,Finance Services,Vehicle Management
141139,OGILVIE FLEET LTD=============,346374,3,50.11,LEASE CAR CHARGES,13/08/2015,,Procurement,Vehicle Management
060815M,GEOGRAPHERS A-Z MAP CO LIMITED,1002610,1,"4,036.50",STATIONERY CONSUMABLES,13/08/2015,"4,036.50",Operations Non Fire Stations,Stationery
070815M,*SPRUE SAFETY PRODUCTS LTD====,1078606,1,"1,600.00",FIRE DETECTORS,13/08/2015,"1,600.00",Operations Non Fire Stations,Health & Safety
060815M,*SPRUE SAFETY PRODUCTS LTD====,1078607,1,880,FIRE DETECTORS,13/08/2015,880,Operations Non Fire Stations,Health & Safety
800063990,*JAMES HUNTER (OUTFITTERS) LTD,108218,1,231.56,CLOTHING,13/08/2015,404.34,Fire Safety Regulation,Clothing
800063990,*JAMES HUNTER (OUTFITTERS) LTD,108218,2,49.2,CLOTHING,13/08/2015,,Fire Safety Regulation,Clothing
800063990,*JAMES HUNTER (OUTFITTERS) LTD,108218,3,123.58,CLOTHING,13/08/2015,,Fire Safety Regulation,Clothing
800063993,*JAMES HUNTER (OUTFITTERS) LTD,108221,1,318.85,CLOTHING,13/08/2015,318.85,Operations Fire Stations,Clothing
800063994,*JAMES HUNTER (OUTFITTERS) LTD,108222,1,289.84,CLOTHING,13/08/2015,435.58,Fire Safety Regulation,Clothing
800063994,*JAMES HUNTER (OUTFITTERS) LTD,108222,2,145.74,CLOTHING,13/08/2015,,Fire Safety Regulation,Clothing
800064008,*JAMES HUNTER (OUTFITTERS) LTD,108236,1,293.13,CLOTHING,13/08/2015,293.13,Operations Fire Stations,Clothing
800063961,*JAMES HUNTER (OUTFITTERS) LTD,108264,1,289.84,CLOTHING,13/08/2015,289.84,Operations Fire Stations,Clothing
800063962,*JAMES HUNTER (OUTFITTERS) LTD,108265,1,362.23,CLOTHING,13/08/2015,362.23,Operations Fire Stations,Clothing
800063963,*JAMES HUNTER (OUTFITTERS) LTD,108266,1,356.81,CLOTHING,13/08/2015,356.81,Operations Fire Stations,Clothing
800063969,*JAMES HUNTER (OUTFITTERS) LTD,108272,1,282.83,CLOTHING,13/08/2015,421.65,Operations Fire Stations,Clothing
800063969,*JAMES HUNTER (OUTFITTERS) LTD,108272,2,138.82,CLOTHING,13/08/2015,,Operations Fire Stations,Clothing
800063972,*JAMES HUNTER (OUTFITTERS) LTD,108275,1,293.13,CLOTHING,13/08/2015,354.92,Operations Fire Stations,Clothing
800063972,*JAMES HUNTER (OUTFITTERS) LTD,108275,2,61.79,CLOTHING,13/08/2015,,Operations Fire Stations,Clothing
070815M,AUXQUIMIA S.A.U,115422,1,"1,320.00",OPERATIONAL EQUIP-PURCHASE,13/08/2015,"1,320.00",Operations Fire Stations,Fire & Rescue
060815M,VISTA LANDSCAPE MANAGEMENT LTD,121043,1,95.83,GROUNDS MAINTENANCE,13/08/2015,"2,232.46",Technical And Service Support,"Works - Construction, R&M"
060815M,VISTA LANDSCAPE MANAGEMENT LTD,121043,2,23,GROUNDS MAINTENANCE,13/08/2015,,Technical And Service Support,"Works - Construction, R&M"
060815M,VISTA LANDSCAPE MANAGEMENT LTD,121043,3,22.12,GROUNDS MAINTENANCE,13/08/2015,,Technical And Service Support,"Works - Construction, R&M"
060815M,VISTA LANDSCAPE MANAGEMENT LTD,121043,4,24.94,GROUNDS MAINTENANCE,13/08/2015,,Technical And Service Support,"Works - Construction, R&M"
060815M,VISTA LANDSCAPE MANAGEMENT LTD,121043,5,75,GROUNDS MAINTENANCE,13/08/2015,,Technical And Service Support,"Works - Construction, R&M"
060815M,VISTA LANDSCAPE MANAGEMENT LTD,121043,6,17.25,GROUNDS MAINTENANCE,13/08/2015,,Technical And Service Support,"Works - Construction, R&M"
060815M,VISTA LANDSCAPE MANAGEMENT LTD,121043,7,25.77,GROUNDS MAINTENANCE,13/08/2015,,Technical And Service Support,"Works - Construction, R&M"
060815M,VISTA LANDSCAPE MANAGEMENT LTD,121043,8,17.25,GROUNDS MAINTENANCE,13/08/2015,,Technical And Service Support,"Works - Construction, R&M"
060815M,VISTA LANDSCAPE MANAGEMENT LTD,121043,9,46,GROUNDS MAINTENANCE,13/08/2015,,Technical And Service Support,"Works - Construction, R&M"
060815M,VISTA LANDSCAPE MANAGEMENT LTD,121043,10,11.5,GROUNDS MAINTENANCE,13/08/2015,,Technical And Service Support,"Works - Construction, R&M"
060815M,VISTA LANDSCAPE MANAGEMENT LTD,121043,11,109.25,GROUNDS MAINTENANCE,13/08/2015,,Technical And Service Support,"Works - Construction, R&M"
060815M,VISTA LANDSCAPE MANAGEMENT LTD,121043,12,11.5,GROUNDS MAINTENANCE,13/08/2015,,Technical And Service Support,"Works - Construction, R&M"
060815M,VISTA LANDSCAPE MANAGEMENT LTD,121043,13,82.52,GROUNDS MAINTENANCE,13/08/2015,,Technical And Service Support,"Works - Construction, R&M"
060815M,VISTA LANDSCAPE MANAGEMENT LTD,121043,14,22.05,GROUNDS MAINTENANCE,13/08/2015,,Technical And Service Support,"Works - Construction, R&M"
060815M,VISTA LANDSCAPE MANAGEMENT LTD,121043,15,17.25,GROUNDS MAINTENANCE,13/08/2015,,Technical And Service Support,"Works - Construction, R&M"
060815M,VISTA LANDSCAPE MANAGEMENT LTD,121043,16,127.05,GROUNDS MAINTENANCE,13/08/2015,,Technical And Service Support,"Works - Construction, R&M"
060815M,VISTA LANDSCAPE MANAGEMENT LTD,121043,17,11.5,GROUNDS MAINTENANCE,13/08/2015,,Technical And Service Support,"Works - Construction, R&M"
060815M,VISTA LANDSCAPE MANAGEMENT LTD,121043,18,17.25,GROUNDS MAINTENANCE,13/08/2015,,Technical And Service Support,"Works - Construction, R&M"
060815M,VISTA LANDSCAPE MANAGEMENT LTD,121043,19,11.5,GROUNDS MAINTENANCE,13/08/2015,,Technical And Service Support,"Works - Construction, R&M"
060815M,VISTA LANDSCAPE MANAGEMENT LTD,121043,20,17.25,GROUNDS MAINTENANCE,13/08/2015,,Technical And Service Support,"Works - Construction, R&M"
060815M,VISTA LANDSCAPE MANAGEMENT LTD,121043,21,22.36,GROUNDS MAINTENANCE,13/08/2015,,Technical And Service Support,"Works - Construction, R&M"
060815M,VISTA LANDSCAPE MANAGEMENT LTD,121043,22,11.5,GROUNDS MAINTENANCE,13/08/2015,,Technical And Service Support,"Works - Construction, R&M"
060815M,VISTA LANDSCAPE MANAGEMENT LTD,121043,23,11.5,GROUNDS MAINTENANCE,13/08/2015,,Technical And Service Support,"Works - Construction, R&M"
060815M,VISTA LANDSCAPE MANAGEMENT LTD,121043,24,79.85,GROUNDS MAINTENANCE,13/08/2015,,Technical And Service Support,"Works - Construction, R&M"
060815M,VISTA LANDSCAPE MANAGEMENT LTD,121043,25,83.96,GROUNDS MAINTENANCE,13/08/2015,,Technical And Service Support,"Works - Construction, R&M"
060815M,VISTA LANDSCAPE MANAGEMENT LTD,121043,26,17.25,GROUNDS MAINTENANCE,13/08/2015,,Technical And Service Support,"Works - Construction, R&M"
060815M,VISTA LANDSCAPE MANAGEMENT LTD,121043,27,256.21,GROUNDS MAINTENANCE,13/08/2015,,Technical And Service Support,"Works - Construction, R&M"
060815M,VISTA LANDSCAPE MANAGEMENT LTD,121043,28,17.26,GROUNDS MAINTENANCE,13/08/2015,,Technical And Service Support,"Works - Construction, R&M"
060815M,VISTA LANDSCAPE MANAGEMENT LTD,121043,29,63.14,GROUNDS MAINTENANCE,13/08/2015,,Technical And Service Support,"Works - Construction, R&M"
060815M,VISTA LANDSCAPE MANAGEMENT LTD,121043,30,11.5,GROUNDS MAINTENANCE,13/08/2015,,Technical And Service Support,"Works - Construction, R&M"
060815M,VISTA LANDSCAPE MANAGEMENT LTD,121043,31,11.5,GROUNDS MAINTENANCE,13/08/2015,,Technical And Service Support,"Works - Construction, R&M"
060815M,VISTA LANDSCAPE MANAGEMENT LTD,121043,32,16.63,GROUNDS MAINTENANCE,13/08/2015,,Technical And Service Support,"Works - Construction, R&M"
060815M,VISTA LANDSCAPE MANAGEMENT LTD,121043,33,73.18,GROUNDS MAINTENANCE,13/08/2015,,Technical And Service Support,"Works - Construction, R&M"
060815M,VISTA LANDSCAPE MANAGEMENT LTD,121043,34,118.23,GROUNDS MAINTENANCE,13/08/2015,,Technical And Service Support,"Works - Construction, R&M"
060815M,VISTA LANDSCAPE MANAGEMENT LTD,121043,35,555,GROUNDS MAINTENANCE,13/08/2015,,Technical And Service Support,"Works - Construction, R&M"
060815M,VISTA LANDSCAPE MANAGEMENT LTD,121043,36,20.83,GROUNDS MAINTENANCE,13/08/2015,,Technical And Service Support,"Works - Construction, R&M"
060815M,VISTA LANDSCAPE MANAGEMENT LTD,121043,37,64.28,GROUNDS MAINTENANCE,13/08/2015,,Technical And Service Support,"Works - Construction, R&M"
060815M,VISTA LANDSCAPE MANAGEMENT LTD,121043,38,12.5,GROUNDS MAINTENANCE,13/08/2015,,Technical And Service Support,"Works - Construction, R&M"
060815M,VISTA LANDSCAPE MANAGEMENT LTD,121101,1,329.83,GROUNDS MAINTENANCE,13/08/2015,329.83,Technical And Service Support,"Works - Construction, R&M"
070815M,BUSINESS IMAGE LTD============,129172,1,439,OPERATIONAL EQUIP-PURCHASE,13/08/2015,439,Operations Fire Stations,Clothing
060815M,THE WYEDEAN WEAVING COMPANY LD,15247,1,320.5,UNIFORMS - POMS,13/08/2015,320.5,Procurement,Clothing
800064269,REDFERN TRAVEL LTD,1539723,1,330.91,PUBLIC TRANSPORT,13/08/2015,330.91,National Operational Guidance Project,Human Resources
800064270,REDFERN TRAVEL LTD,1540688,1,"4,642.01",PUBLIC TRANSPORT,13/08/2015,"4,642.01",National Operational Guidance Project,Human Resources
800064271,REDFERN TRAVEL LTD,1541103,1,333.2,PUBLIC TRANSPORT,13/08/2015,333.2,Operational Resilience,Human Resources
800064285,REDFERN TRAVEL LTD,1543383,1,277.94,PUBLIC TRANSPORT,13/08/2015,277.94,National Operational Guidance Project,Human Resources
800064284,REDFERN TRAVEL LTD,1543386,1,277.94,PUBLIC TRANSPORT,13/08/2015,277.94,National Operational Guidance Project,Human Resources
800064283,REDFERN TRAVEL LTD,1543525,1,325.06,PUBLIC TRANSPORT,13/08/2015,325.06,National Operational Guidance Project,Human Resources
800064287,REDFERN TRAVEL LTD,1544260,1,293.4,PUBLIC TRANSPORT,13/08/2015,293.4,Operational Resilience,Human Resources
800064275,REDFERN TRAVEL LTD,1547059,1,416.1,PUBLIC TRANSPORT,13/08/2015,416.1,Business Continuity,Human Resources
800064297,REDFERN TRAVEL LTD,1547388,1,329.37,PUBLIC TRANSPORT,13/08/2015,329.37,HR Development,Human Resources
800064300,REDFERN TRAVEL LTD,1549634,1,305.04,PUBLIC TRANSPORT,13/08/2015,305.04,Information and Communication Technology,Human Resources
800064305,REDFERN TRAVEL LTD,1553692,1,520.23,PUBLIC TRANSPORT,13/08/2015,520.23,HR Development,Human Resources
070815M,THE WYEDEAN WEAVING COMPANY LD,15573,1,179.6,UNIFORMS - POMS,13/08/2015,274.7,Procurement,Clothing
070815M,THE WYEDEAN WEAVING COMPANY LD,15573,2,95.1,UNIFORMS - POMS,13/08/2015,,Procurement,Clothing
800064302,REDFERN TRAVEL LTD,1560469,1,361.95,SUBSISTENCE,13/08/2015,361.95,Legal & Democratic Services,Human Resources
050815M,THE DOCUMENT WAREHOUSE UK LTD,1668,1,"2,537.75",GENERAL,13/08/2015,"2,537.75",Strategy & Inclusion,Facilities & Management S
310715M,DYSLEXIA ACTION,191175,1,"1,080.00",LEARNING SUPPORT,13/08/2015,"1,080.00",HR Development,Human Resources
141139,THE KITTLE PARTNERSHIP LTD====,2209,1,687.5,OTHER EXPERTS FEES,13/08/2015,687.5,Compensation Budgets,Legal Services
070815M,GRADIENT CONSULTANTS LLP======,2377,1,105,ASBESTOS,13/08/2015,950,Technical and Service Support,"Works - Construction, R&M"
070815M,GRADIENT CONSULTANTS LLP======,2377,2,105,ASBESTOS,13/08/2015,,Technical and Service Support,"Works - Construction, R&M"
070815M,GRADIENT CONSULTANTS LLP======,2377,3,105,ASBESTOS,13/08/2015,,Technical and Service Support,"Works - Construction, R&M"
070815M,GRADIENT CONSULTANTS LLP======,2377,4,105,ASBESTOS,13/08/2015,,Technical and Service Support,"Works - Construction, R&M"
070815M,GRADIENT CONSULTANTS LLP======,2377,5,105,ASBESTOS,13/08/2015,,Technical and Service Support,"Works - Construction, R&M"
070815M,GRADIENT CONSULTANTS LLP======,2377,6,105,ASBESTOS,13/08/2015,,Technical and Service Support,"Works - Construction, R&M"
070815M,GRADIENT CONSULTANTS LLP======,2377,7,105,ASBESTOS,13/08/2015,,Technical and Service Support,"Works - Construction, R&M"
070815M,GRADIENT CONSULTANTS LLP======,2377,8,105,ASBESTOS,13/08/2015,,Technical and Service Support,"Works - Construction, R&M"
070815M,GRADIENT CONSULTANTS LLP======,2377,9,55,ASBESTOS,13/08/2015,,Technical and Service Support,"Works - Construction, R&M"
070815M,GRADIENT CONSULTANTS LLP======,2377,10,55,ASBESTOS,13/08/2015,,Technical and Service Support,"Works - Construction, R&M"
070815M,GRADIENT CONSULTANTS LLP======,2380,1,490,ASBESTOS,13/08/2015,"1,715.00",Technical and Service Support,"Works - Construction, R&M"
070815M,GRADIENT CONSULTANTS LLP======,2380,2,245,ASBESTOS,13/08/2015,,Technical and Service Support,"Works - Construction, R&M"
070815M,GRADIENT CONSULTANTS LLP======,2380,3,245,ASBESTOS,13/08/2015,,Technical and Service Support,"Works - Construction, R&M"
070815M,GRADIENT CONSULTANTS LLP======,2380,4,245,ASBESTOS,13/08/2015,,Technical and Service Support,"Works - Construction, R&M"
070815M,GRADIENT CONSULTANTS LLP======,2380,5,245,ASBESTOS,13/08/2015,,Technical And Service Support,"Works - Construction, R&M"
070815M,GRADIENT CONSULTANTS LLP======,2380,6,245,ASBESTOS,13/08/2015,,Technical and Service Support,"Works - Construction, R&M"
060815M,PAUL EVERS,270515,1,250,GENERAL,13/08/2015,500,Cadets,Human Resources
060815M,PAUL EVERS,270515,2,250,GENERAL,13/08/2015,,Cadets,Human Resources
800063306,ADECCO UK LIMITED=============,27162056,1,624.4,FRS STAFF AGENCY,13/08/2015,624.4,HR Development,Human Resources
800063666,ADECCO UK LIMITED=============,27162087,1,439.6,FRS STAFF AGENCY,13/08/2015,439.6,HR Management,Human Resources
800063307,ADECCO UK LIMITED=============,27168551,1,437.08,FRS STAFF AGENCY,13/08/2015,437.08,HR Development,Human Resources
800063667,ADECCO UK LIMITED=============,27168552,1,263.76,FRS STAFF AGENCY,13/08/2015,263.76,HR Management,Human Resources
800063598,ADECCO UK LIMITED=============,27175061,1,"1,076.80",FRS STAFF AGENCY,13/08/2015,"1,076.80",Technical And Service Support,Human Resources
800063668,ADECCO UK LIMITED=============,27175071,1,439.6,FRS STAFF AGENCY,13/08/2015,439.6,HR Management,Human Resources
800063599,ADECCO UK LIMITED=============,27181431,1,"1,076.80",FRS STAFF AGENCY,13/08/2015,"1,076.80",Technical And Service Support,Human Resources
800063669,ADECCO UK LIMITED=============,27181438,1,439.6,FRS STAFF AGENCY,13/08/2015,439.6,HR Management,Human Resources
800063628,ADECCO UK LIMITED=============,27187681,1,624.4,FRS STAFF AGENCY,13/08/2015,624.4,Community Safety Delivery,Human Resources
800063600,ADECCO UK LIMITED=============,27187690,1,"1,076.80",FRS STAFF AGENCY,13/08/2015,"1,076.80",Technical And Service Support,Human Resources
800063377,ADECCO UK LIMITED=============,27187693,1,376.88,FRS STAFF AGENCY,13/08/2015,376.88,Technical And Service Support,Human Resources
800063251,ADECCO UK LIMITED=============,27187696,1,439.6,FRS STAFF AGENCY,13/08/2015,439.6,Operations Non Fire Stations,Human Resources
800063629,ADECCO UK LIMITED=============,27193970,1,624.4,FRS STAFF AGENCY,13/08/2015,624.4,Community Safety Delivery,Human Resources
800063601,ADECCO UK LIMITED=============,27193977,1,"1,076.80",FRS STAFF AGENCY,13/08/2015,"1,076.80",Technical And Service Support,Human Resources
800063252,ADECCO UK LIMITED=============,27193982,1,439.6,FRS STAFF AGENCY,13/08/2015,439.6,Operations Non Fire Stations,Human Resources
800063566,ADECCO UK LIMITED=============,27193984,1,314,FRS STAFF AGENCY,13/08/2015,314,Fire Safety Regulation,Human Resources
800063458,ADECCO UK LIMITED=============,27193995,1,439.6,FRS STAFF AGENCY,13/08/2015,439.6,Technical And Service Support,Human Resources
070815M,CANON (UK) LTD===============,300878870,1,350,OFFICE EQUIPMENT,13/08/2015,350,Technical And Service Support,ICT
141139,MBL SEMINARS=================,320479,1,480,PROFESSIONAL DEVELOPMENT,13/08/2015,480,Legal & Democratic Services,Human Resources
070815M,CARPETS & FLOOR COVERS DIRECT=,3879,1,"2,326.98",FIXTURES & FITTINGS,13/08/2015,"2,326.98",Technical And Service Support,Building Constr Materials
070815M,CARPETS & FLOOR COVERS DIRECT=,3887,1,"2,826.00",FIXTURES & FITTINGS,13/08/2015,"2,826.00",Technical And Service Support,Building Constr Materials
070815M,CANON (UK) LTD===============,401668896,1,27.24,OFFICE EQUIPMENT,13/08/2015,496.64,Technical And Service Support,ICT
070815M,CANON (UK) LTD===============,401668896,2,469.4,OFFICE EQUIPMENT,13/08/2015,,Technical And Service Support,ICT
070815M,CANON (UK) LTD===============,401671607,1,"1,381.59",OFFICE EQUIPMENT,13/08/2015,"1,381.59",Technical And Service Support,ICT
070815M,ANTIQUE BRONZE LTD============,4192,1,"1,733.00",STRATEGIC (NON CYCLICAL),13/08/2015,"1,733.00",Technical And Service Support,"Works - Construction, R&M"
050815M,MITIE SECURITY (LONDON) LTD===,45/592686,1,"8,646.14",PREMISES SECURITY,13/08/2015,"8,646.14",Technical And Service Support,Facilities & Management S
050815M,MITIE SECURITY (LONDON) LTD===,45/592688,1,"17,245.92",PREMISES SECURITY,13/08/2015,"17,245.92",Technical And Service Support,Facilities & Management S
070815M,KNIGHTON CLEANING SERVICES LTD,46205,1,"1,638.62",HYGIENE,13/08/2015,"1,638.62",Technical And Service Support,Cleaning & Janitorial
070815M,KNIGHTON CLEANING SERVICES LTD,46828,1,"1,812.31",HYGIENE,13/08/2015,"1,812.31",Technical And Service Support,Cleaning & Janitorial
060815M,SPORTSAFE UK LTD==============,475267,1,370,GYM EQUIPMENT,13/08/2015,370,Technical And Service Support,Sports & Playground Equip
060815M,SPORTSAFE UK LTD==============,475268,1,275.5,GYM EQUIPMENT,13/08/2015,603.07,Technical And Service Support,Sports & Playground Equip
060815M,SPORTSAFE UK LTD==============,475268,2,44.18,GYM EQUIPMENT,13/08/2015,,Technical And Service Support,Sports & Playground Equip
060815M,SPORTSAFE UK LTD==============,475268,3,283.39,GYM EQUIPMENT,13/08/2015,,Technical And Service Support,Sports & Playground Equip
070815M,SPORTSAFE UK LTD==============,475373,1,275,GYM EQUIPMENT,13/08/2015,275,Technical And Service Support,Sports & Playground Equip
070815M,SPORTSAFE UK LTD==============,475374,1,407.82,GYM EQUIPMENT,13/08/2015,407.82,Technical And Service Support,Sports & Playground Equip
070815M,SPORTSAFE UK LTD==============,475376,1,495,GYM EQUIPMENT,13/08/2015,495,Technical And Service Support,Sports & Playground Equip
070815M,SPORTSAFE UK LTD==============,475377,1,54.72,GYM EQUIPMENT,13/08/2015,356.72,Technical And Service Support,Sports & Playground Equip
070815M,SPORTSAFE UK LTD==============,475377,2,184,GYM EQUIPMENT,13/08/2015,,Technical And Service Support,Sports & Playground Equip
070815M,SPORTSAFE UK LTD==============,475377,3,69,GYM EQUIPMENT,13/08/2015,,Technical And Service Support,Sports & Playground Equip
070815M,SPORTSAFE UK LTD==============,475377,4,49,GYM EQUIPMENT,13/08/2015,,Technical And Service Support,Sports & Playground Equip
070815M,KNIGHTON CLEANING SERVICES LTD,47647,1,"1,761.44",HYGIENE,13/08/2015,"1,761.44",Technical And Service Support,Cleaning & Janitorial
060815M,PACE PETROLEUM LIMITED========,4798928,1,"3,371.65",FUEL,13/08/2015,"3,371.65",Operations Fire Stations,Vehicle Management
800064249,*OCS GROUP UK LTD,5000113215-1,1,"3,278.55",CATERING,13/08/2015,"3,278.55",Technical And Service Support,Catering
800064251,*OCS GROUP UK LTD,5000113215-3,1,687.72,CATERING,13/08/2015,687.72,Technical And Service Support,Catering
030815H,VWR INTERNATIONAL LTD=========,5062836554,1,625.15,OPERATIONAL EQUIP-PURCHASE,13/08/2015,625.15,Operational Procedures,Environmental Services
070815M,FAHEY BUILDERS LTD============,5279,1,"4,300.00",STRATEGIC (NON CYCLICAL),13/08/2015,"4,300.00",Technical and Service Support,"Works - Construction, R&M"
060815M,MEM EVENTS UK LTD,6164,1,425,PROFESSIONAL DEVELOPMENT,13/08/2015,425,Technical And Service Support,Human Resources
070815M,CONTRACT CATERING CONSULTANTS=,6320,1,500,CONSULTANTS,13/08/2015,500,Technical And Service Support,Catering
060815M,SWEETT  UK LTD,7054965,1,"4,815.00",PROF FEES-MISCELLANEOUS,13/08/2015,"4,815.00",Technical and Service Support,"Works - Construction, R&M"
310715M,VODAFONE LIMITED==============,76897888,1,"8,550.00",CELLULAR TELEPHONES,13/08/2015,"8,550.00",Information and Communication Technology,ICT
070815M,CANON (UK) LTD===============,770519370,1,463.7,OFFICE EQUIPMENT,13/08/2015,463.7,Technical And Service Support,ICT
070815M,CANON (UK) LTD===============,770519372,1,463.7,OFFICE EQUIPMENT,13/08/2015,463.7,Technical And Service Support,ICT
070815M,CANON (UK) LTD===============,770519373,1,463.7,OFFICE EQUIPMENT,13/08/2015,463.7,Technical And Service Support,ICT
060815M,FIRE SERVICE COLLEGE LTD======,803843,1,270,PROFESSIONAL DEVELOPMENT,13/08/2015,270,Challenge Team,Human Resources
060815M,FIRE SERVICE COLLEGE LTD======,803928,1,740,PROFESSIONAL DEVELOPMENT,13/08/2015,740,National Operational Guidance Project,Human Resources
310715M,*OFFICE DEPOT UK LTD,965705619,1,723,STATIONERY CONSUMABLES,13/08/2015,723,Technical And Service Support,Stationery
070815M,E&S B DAVIS LTD,DAV/56978,1,295,OPERATIONAL EQUIP-PURCHASE,13/08/2015,295,Operations Fire Stations,Environmental Services
070815M,KIER BUILDING SERV ENGINEERS==,F00054926,1,"3,142.84",STRATEGIC (NON CYCLICAL),13/08/2015,"3,142.84",Technical And Service Support,"Works - Construction, R&M"
060815M,WM ENGINEERING SERVICES LTD===,I-4500*,1,"1,270.00",STRATEGIC (CYCLICAL),13/08/2015,"1,270.00",Technical and Service Support,"Works - Construction, R&M"
060815M,WM ENGINEERING SERVICES LTD===,I-4992,1,"1,660.00",STRATEGIC (NON CYCLICAL),13/08/2015,"1,660.00",Technical and Service Support,"Works - Construction, R&M"
060815M,WM ENGINEERING SERVICES LTD===,I-4993,1,"1,697.00",STRATEGIC (NON CYCLICAL),13/08/2015,"1,697.00",Technical and Service Support,"Works - Construction, R&M"
060815M,WM ENGINEERING SERVICES LTD===,I-4996,1,"1,697.00",STRATEGIC (NON CYCLICAL),13/08/2015,"1,697.00",Technical and Service Support,"Works - Construction, R&M"
060815M,WM ENGINEERING SERVICES LTD===,I-4997,1,516,TACTICAL DAY TO DAY,13/08/2015,516,Technical And Service Support,"Works - Construction, R&M"
290715M,HALL FUELS,I07747532,1,"2,704.20",FUEL,13/08/2015,"2,704.20",Operations Fire Stations,Vehicle Management
290715M,HALL FUELS,I07747533,1,"4,042.33",FUEL,13/08/2015,"4,042.33",Operations Fire Stations,Vehicle Management
310715M,HALL FUELS,I07749240,1,"2,737.53",FUEL,13/08/2015,"2,737.53",Operations Fire Stations,Vehicle Management
030815H,HALL FUELS,I07753080,1,"2,681.70",FUEL,13/08/2015,"2,681.70",Operations Fire Stations,Vehicle Management
141139,DAYS CONTRACT HIRE,INV00073866,1,"3,747.06",LEASE CAR CHARGES,13/08/2015,"3,998.32",Procurement,Vehicle Management
141139,DAYS CONTRACT HIRE,INV00073866,2,251.26,P/PAYMTS-CAR LEASG-RENTAL,13/08/2015,,Finance Services,Vehicle Management
141139,DAYS CONTRACT HIRE,INV00073866,3,-363.52,VAT CAR LEASING,13/08/2015,,Finance Services,Vehicle Management
141139,DAYS CONTRACT HIRE,INV00073866,4,363.52,LEASE CAR CHARGES,13/08/2015,,Procurement,Vehicle Management
141139,JCT600 VEHICLE LEASING,INV00097695,1,465.78,LEASE CAR CHARGES,13/08/2015,465.78,Procurement,Vehicle Management
141139,JCT600 VEHICLE LEASING,INV00097695,2,-40.31,VAT CAR LEASING,13/08/2015,,Finance Services,Vehicle Management
141139,JCT600 VEHICLE LEASING,INV00097695,3,40.31,LEASE CAR CHARGES,13/08/2015,,Procurement,Vehicle Management
060815M,COFELY WORKPLACE LIMITED,M137331,1,"9,130.72",STRATEGIC (NON CYCLICAL),13/08/2015,"9,130.72",Technical and Service Support,"Works - Construction, R&M"
141139,LEX AUTOLEASE,MRI3463334,1,"3,582.53",LEASE CAR CHARGES,13/08/2015,"5,203.20",Procurement,Vehicle Management
141139,LEX AUTOLEASE,MRI3463334,2,"1,620.67",P/PAYMTS-CAR LEASG-RENTAL,13/08/2015,,Finance Services,Vehicle Management
141139,LEX AUTOLEASE,MRI3463334,3,-468.26,VAT CAR LEASING,13/08/2015,,Finance Services,Vehicle Management
141139,LEX AUTOLEASE,MRI3463334,4,468.26,LEASE CAR CHARGES,13/08/2015,,Procurement,Vehicle Management
141139,LEX AUTOLEASE,MTI3398551,1,"3,961.26",LEASE CAR CHARGES,13/08/2015,"5,123.04",Procurement,Vehicle Management
141139,LEX AUTOLEASE,MTI3398551,2,"1,161.78",P/PAYMTS-CAR LEASG-RENTAL,13/08/2015,,Finance Services,Vehicle Management
141139,LEX AUTOLEASE,MTI3398551,3,-460.48,VAT CAR LEASING,13/08/2015,,Finance Services,Vehicle Management
141139,LEX AUTOLEASE,MTI3398551,4,460.48,LEASE CAR CHARGES,13/08/2015,,Procurement,Vehicle Management
050815M,TOTTENHAM HOTSPUR FOUNDATION,THFS003134,1,673.78,COMMUNITY RELATIONS,13/08/2015,"1,347.57",Community Safety Delivery,Social Community Care S&S
050815M,TOTTENHAM HOTSPUR FOUNDATION,THFS003134,2,673.79,COMMUNITY RELATIONS,13/08/2015,,Community Safety Delivery,Social Community Care S&S
280715M,WESTMINSTER BUSINESS FORUM,W95859-700,1,420,PROFESSIONAL DEVELOPMENT,13/08/2015,420,Operational Procedures,Human Resources
100815M,JEWERS SPECIALIST DOORS=======,10185,1,"1,013.65",DEVELOPMENT  EXPENSES-CONTRACT,17/08/2015,"1,013.65",Technical and Service Support,"Works - Construction, R&M"
100815M,MOOLANDS LTD,2288,1,"1,500.00",STRATEGIC (NON CYCLICAL),17/08/2015,"1,500.00",Technical and Service Support,"Works - Construction, R&M"
100815M,MOOLANDS LTD,2289,1,"1,788.00",STRATEGIC (NON CYCLICAL),17/08/2015,"1,788.00",Technical and Service Support,"Works - Construction, R&M"
100815M,MOOLANDS LTD,2306,1,"8,250.00",STRATEGIC (NON CYCLICAL),17/08/2015,"8,250.00",Technical and Service Support,"Works - Construction, R&M"
120815M,L B SOUTHWARK=================,1000784381 2,1,"25,093.50",COMMUNITY RELATIONS,17/08/2015,"25,093.50",Community Safety Delivery,Social Community Care S&S
800060079,*JAMES HUNTER (OUTFITTERS) LTD,108057,1,362.23,CLOTHING,17/08/2015,362.23,Operations Fire Stations,Clothing
800063967,*JAMES HUNTER (OUTFITTERS) LTD,108270,1,362.23,CLOTHING,17/08/2015,362.23,Command Units,Clothing
120815M,BT GLOBAL SERVICES============,1134231,1,541.66,TELECOMMUNICATIONS,17/08/2015,541.66,Information and Communication Technology,ICT
100815M,VERSEIDAG-SEEMEE UK LTD=======,121391,1,585,OPERATIONAL EQUIP-PURCHASE,17/08/2015,687,Technical And Service Support,Fire & Rescue
100815M,VERSEIDAG-SEEMEE UK LTD=======,121391,2,102,OPERATIONAL EQUIP-PURCHASE,17/08/2015,,Technical And Service Support,Fire & Rescue
120815M,SAFEGUARD PEST CON. & ENV.LTD,135684,1,460,PEST CONTROL,17/08/2015,460,Technical And Service Support,Environmental Services
120815M,SAFEGUARD PEST CON. & ENV.LTD,136027,1,350,PEST CONTROL,17/08/2015,350,Technical And Service Support,Environmental Services
060815M,APPLUS LLT,15070,1,"3,750.00",GENERAL,17/08/2015,"3,750.00",Procurement,Vehicle Management
110815M,PA ASSOCIATES (UK) LTD========,15077,1,467.25,STRATEGIC (NON CYCLICAL),17/08/2015,467.25,Technical and Service Support,Environmental Services
120815M,GP CONTRACTS==================,15326,1,450,OFFICE FURNITURE,17/08/2015,450,Operations Fire Stations,Furniture
100815M,DRON & WRIGHT=================,17820,1,"5,314.50",PROFESSIONAL SERVICES,17/08/2015,"5,314.50",Technical And Service Support,Facilities & Management S
070815M,HERTS COUNTY COUNCIL FIRE & RE,1801748427,1,"36,580.00",FIRE AUTHS-MUTUAL ASSISTANCE,17/08/2015,"36,580.00",Operations Non Fire Stations,Human Resources
110815M,HARRIS INSTALLATION SERVICES,18229,1,553.04,REMOVALS,17/08/2015,553.04,Technical And Service Support,Facilities & Management S
070815M,KENT FIRE & RESCUE SERVICE,201526,1,"13,386.51",FIRE AUTHORITIES,17/08/2015,"13,386.51",National Operational Guidance Project,Statutory Bodies
100815M,GRADIENT CONSULTANTS LLP======,2373,1,545,PROF FEES-MISCELLANEOUS,17/08/2015,"2,440.00",Technical and Service Support,"Works - Construction, R&M"
100815M,GRADIENT CONSULTANTS LLP======,2373,2,300,PROF FEES-MISCELLANEOUS,17/08/2015,,Technical and Service Support,"Works - Construction, R&M"
100815M,GRADIENT CONSULTANTS LLP======,2373,3,300,PROF FEES-MISCELLANEOUS,17/08/2015,,Technical and Service Support,"Works - Construction, R&M"
100815M,GRADIENT CONSULTANTS LLP======,2373,4,290,PROF FEES-MISCELLANEOUS,17/08/2015,,Technical and Service Support,"Works - Construction, R&M"
100815M,GRADIENT CONSULTANTS LLP======,2373,5,290,PROF FEES-MISCELLANEOUS,17/08/2015,,Technical and Service Support,"Works - Construction, R&M"
100815M,GRADIENT CONSULTANTS LLP======,2373,6,300,PROF FEES-MISCELLANEOUS,17/08/2015,,Technical and Service Support,"Works - Construction, R&M"
100815M,GRADIENT CONSULTANTS LLP======,2373,7,290,PROF FEES-MISCELLANEOUS,17/08/2015,,Technical and Service Support,"Works - Construction, R&M"
100815M,GRADIENT CONSULTANTS LLP======,2373,8,125,PROF FEES-MISCELLANEOUS,17/08/2015,,Technical and Service Support,"Works - Construction, R&M"
100815M,FUTURE SAFETY LTD=============,2531,1,730,OPERATIONAL EQUIP-PURCHASE,17/08/2015,905,Technical And Service Support,Clothing
100815M,FUTURE SAFETY LTD=============,2531,2,165,OPERATIONAL EQUIP-PURCHASE,17/08/2015,,Technical And Service Support,Clothing
100815M,FUTURE SAFETY LTD=============,2531,3,10,OPERATIONAL EQUIP-PURCHASE,17/08/2015,,Technical And Service Support,Clothing
120815M,FIRE SERVICES YOUTH TRAIN.ASS.,2580,1,"2,587.00",GENERAL,17/08/2015,"2,587.00",Community Safety Delivery,Human Resources
120815M,FIRE SERVICES YOUTH TRAIN.ASS.,2581,1,800,GENERAL,17/08/2015,800,Community Safety Delivery,Human Resources
110815M,DRAEGER SAFETY UK LIMITED=====,2910025057,1,144.43,PROTECTIVE EQUIPT - PARTS,17/08/2015,"2,384.03",Technical and Service Support,Fire & Rescue
110815M,DRAEGER SAFETY UK LIMITED=====,2910025057,2,865.2,PROTECTIVE EQUIPT - PARTS,17/08/2015,,Technical and Service Support,Fire & Rescue
110815M,DRAEGER SAFETY UK LIMITED=====,2910025057,3,567.4,PROTECTIVE EQUIPT - PARTS,17/08/2015,,Technical and Service Support,Fire & Rescue
110815M,DRAEGER SAFETY UK LIMITED=====,2910025057,4,46.6,PROTECTIVE EQUIPT - PARTS,17/08/2015,,Technical and Service Support,Fire & Rescue
110815M,DRAEGER SAFETY UK LIMITED=====,2910025057,5,760.4,PROTECTIVE EQUIPT - PARTS,17/08/2015,,Technical and Service Support,Fire & Rescue
110815M,DRAEGER SAFETY UK LIMITED=====,2910025239,1,466.2,PROTECTIVE EQUIPT - PARTS,17/08/2015,466.2,Technical and Service Support,Fire & Rescue
120815M,TEAM PURPLE LIMITED===========,3167,1,99.6,CLOTHING,17/08/2015,310.92,Operations Fire Stations,Fire & Rescue
120815M,TEAM PURPLE LIMITED===========,3167,2,22.5,CLOTHING,17/08/2015,,Operations Fire Stations,Fire & Rescue
120815M,TEAM PURPLE LIMITED===========,3167,3,39.82,CLOTHING,17/08/2015,,Operations Fire Stations,Fire & Rescue
120815M,TEAM PURPLE LIMITED===========,3167,4,149,CLOTHING,17/08/2015,,Operations Fire Stations,Fire & Rescue
120815M,CARPETS & FLOOR COVERS DIRECT=,3913,1,"4,559.50",STRATEGIC (NON CYCLICAL),17/08/2015,"4,559.50",Technical and Service Support,Building Constr Materials
030815H,GLOBAL TO LOCAL LTD,437/28/AF206,1,600,CONSULTANTS,17/08/2015,"5,090.19",EU Fired-Up Project,Consultancy
030815H,GLOBAL TO LOCAL LTD,437/28/AF206,2,"4,000.00",CONSULTANTS,17/08/2015,,EU Fired-Up Project,Consultancy
030815H,GLOBAL TO LOCAL LTD,437/28/AF206,3,490.19,CONSULTANTS,17/08/2015,,EU Fired-Up Project,Consultancy
120815M,THE HEIGHTEC GROUP LTD========,46815,1,481.88,OPERATIONAL EQUIP-PURCHASE,17/08/2015,"2,370.23",Technical And Service Support,Fire & Rescue
120815M,THE HEIGHTEC GROUP LTD========,46815,2,"1,725.30",OPERATIONAL EQUIP-PURCHASE,17/08/2015,,Technical And Service Support,Fire & Rescue
120815M,THE HEIGHTEC GROUP LTD========,46815,3,163.05,OPERATIONAL EQUIP-PURCHASE,17/08/2015,,Technical And Service Support,Fire & Rescue
100815M,CPC===========================,4733580,1,34.51,HYGIENE,17/08/2015,277,Information and Communication Technology,Building Constr Materials
100815M,CPC===========================,4733580,2,208.84,HYGIENE,17/08/2015,,Information and Communication Technology,Building Constr Materials
100815M,CPC===========================,4733580,3,6.18,RADIO,17/08/2015,,Information and Communication Technology,Building Constr Materials
100815M,CPC===========================,4733580,4,2.58,RADIO,17/08/2015,,Information and Communication Technology,Building Constr Materials
100815M,CPC===========================,4733580,5,24.89,RADIO,17/08/2015,,Information and Communication Technology,Building Constr Materials
110815M,FOCUS & VISION TECHNOLOGY LTD,47386,1,365.6,MEDICAL EXPENSES CONTRACT,17/08/2015,365.6,HR Management,Healthcare
110815M,FOCUS & VISION TECHNOLOGY LTD,47402,1,884.14,MEDICAL EXPENSES CONTRACT,17/08/2015,884.14,HR Management,Healthcare
120815M,KNIGHTON CLEANING SERVICES LTD,48092,1,300.91,GENERAL CLEANS,17/08/2015,"63,102.76",Technical And Service Support,Cleaning & Janitorial
120815M,KNIGHTON CLEANING SERVICES LTD,48092,2,"1,053.55",GENERAL CLEANS,17/08/2015,,Technical And Service Support,Cleaning & Janitorial
120815M,KNIGHTON CLEANING SERVICES LTD,48092,3,"1,005.24",GENERAL CLEANS,17/08/2015,,Technical And Service Support,Cleaning & Janitorial
120815M,KNIGHTON CLEANING SERVICES LTD,48092,4,"1,197.97",GENERAL CLEANS,17/08/2015,,Technical And Service Support,Cleaning & Janitorial
120815M,KNIGHTON CLEANING SERVICES LTD,48092,5,570.13,GENERAL CLEANS,17/08/2015,,Technical And Service Support,Cleaning & Janitorial
120815M,KNIGHTON CLEANING SERVICES LTD,48092,6,"1,368.30",GENERAL CLEANS,17/08/2015,,Technical And Service Support,Cleaning & Janitorial
120815M,KNIGHTON CLEANING SERVICES LTD,48092,7,"2,041.79",GENERAL CLEANS,17/08/2015,,Technical And Service Support,Cleaning & Janitorial
120815M,KNIGHTON CLEANING SERVICES LTD,48092,8,"1,966.48",GENERAL CLEANS,17/08/2015,,Technical And Service Support,Cleaning & Janitorial
120815M,KNIGHTON CLEANING SERVICES LTD,48092,9,"3,166.56",GENERAL CLEANS,17/08/2015,,Technical And Service Support,Cleaning & Janitorial
120815M,KNIGHTON CLEANING SERVICES LTD,48092,10,994.31,GENERAL CLEANS,17/08/2015,,Technical And Service Support,Cleaning & Janitorial
120815M,KNIGHTON CLEANING SERVICES LTD,48092,11,"1,215.82",GENERAL CLEANS,17/08/2015,,Technical And Service Support,Cleaning & Janitorial
120815M,KNIGHTON CLEANING SERVICES LTD,48092,12,"1,002.00",GENERAL CLEANS,17/08/2015,,Technical And Service Support,Cleaning & Janitorial
120815M,KNIGHTON CLEANING SERVICES LTD,48092,13,"1,048.06",GENERAL CLEANS,17/08/2015,,Technical And Service Support,Cleaning & Janitorial
120815M,KNIGHTON CLEANING SERVICES LTD,48092,14,"1,052.11",GENERAL CLEANS,17/08/2015,,Technical And Service Support,Cleaning & Janitorial
120815M,KNIGHTON CLEANING SERVICES LTD,48092,15,"1,418.09",GENERAL CLEANS,17/08/2015,,Technical And Service Support,Cleaning & Janitorial
120815M,KNIGHTON CLEANING SERVICES LTD,48092,16,"1,152.59",GENERAL CLEANS,17/08/2015,,Technical And Service Support,Cleaning & Janitorial
120815M,KNIGHTON CLEANING SERVICES LTD,48092,17,600.12,GENERAL CLEANS,17/08/2015,,Technical And Service Support,Cleaning & Janitorial
120815M,KNIGHTON CLEANING SERVICES LTD,48092,18,"12,136.16",GENERAL CLEANS,17/08/2015,,Technical And Service Support,Cleaning & Janitorial
120815M,KNIGHTON CLEANING SERVICES LTD,48092,19,"1,130.59",GENERAL CLEANS,17/08/2015,,Technical And Service Support,Cleaning & Janitorial
120815M,KNIGHTON CLEANING SERVICES LTD,48092,20,443.58,GENERAL CLEANS,17/08/2015,,Technical And Service Support,Cleaning & Janitorial
120815M,KNIGHTON CLEANING SERVICES LTD,48092,21,"1,501.17",GENERAL CLEANS,17/08/2015,,Technical And Service Support,Cleaning & Janitorial
120815M,KNIGHTON CLEANING SERVICES LTD,48092,22,"3,128.63",GENERAL CLEANS,17/08/2015,,Technical And Service Support,Cleaning & Janitorial
120815M,KNIGHTON CLEANING SERVICES LTD,48092,23,"1,701.28",GENERAL CLEANS,17/08/2015,,Technical And Service Support,Cleaning & Janitorial
120815M,KNIGHTON CLEANING SERVICES LTD,48092,24,827.92,GENERAL CLEANS,17/08/2015,,Technical And Service Support,Cleaning & Janitorial
120815M,KNIGHTON CLEANING SERVICES LTD,48092,25,"1,266.82",GENERAL CLEANS,17/08/2015,,Technical And Service Support,Cleaning & Janitorial
120815M,KNIGHTON CLEANING SERVICES LTD,48092,26,"1,928.03",GENERAL CLEANS,17/08/2015,,Technical And Service Support,Cleaning & Janitorial
120815M,KNIGHTON CLEANING SERVICES LTD,48092,27,"1,225.82",GENERAL CLEANS,17/08/2015,,Technical And Service Support,Cleaning & Janitorial
120815M,KNIGHTON CLEANING SERVICES LTD,48092,28,"1,039.90",GENERAL CLEANS,17/08/2015,,Technical And Service Support,Cleaning & Janitorial
120815M,KNIGHTON CLEANING SERVICES LTD,48092,29,"1,243.09",GENERAL CLEANS,17/08/2015,,Technical And Service Support,Cleaning & Janitorial
120815M,KNIGHTON CLEANING SERVICES LTD,48092,30,"2,965.43",GENERAL CLEANS,17/08/2015,,Technical And Service Support,Cleaning & Janitorial
120815M,KNIGHTON CLEANING SERVICES LTD,48092,31,753.6,GENERAL CLEANS,17/08/2015,,Technical And Service Support,Cleaning & Janitorial
120815M,KNIGHTON CLEANING SERVICES LTD,48092,32,951.27,GENERAL CLEANS,17/08/2015,,Technical And Service Support,Cleaning & Janitorial
120815M,KNIGHTON CLEANING SERVICES LTD,48092,33,"1,856.01",GENERAL CLEANS,17/08/2015,,Technical And Service Support,Cleaning & Janitorial
120815M,KNIGHTON CLEANING SERVICES LTD,48092,34,941.84,GENERAL CLEANS,17/08/2015,,Technical And Service Support,Cleaning & Janitorial
120815M,KNIGHTON CLEANING SERVICES LTD,48092,35,836.79,GENERAL CLEANS,17/08/2015,,Technical And Service Support,Cleaning & Janitorial
120815M,KNIGHTON CLEANING SERVICES LTD,48092,36,"1,564.97",GENERAL CLEANS,17/08/2015,,Technical And Service Support,Cleaning & Janitorial
120815M,KNIGHTON CLEANING SERVICES LTD,48092,37,"1,569.11",GENERAL CLEANS,17/08/2015,,Technical And Service Support,Cleaning & Janitorial
120815M,KNIGHTON CLEANING SERVICES LTD,48092,38,"1,272.89",GENERAL CLEANS,17/08/2015,,Technical And Service Support,Cleaning & Janitorial
120815M,KNIGHTON CLEANING SERVICES LTD,48092,39,"1,195.49",GENERAL CLEANS,17/08/2015,,Technical And Service Support,Cleaning & Janitorial
120815M,KNIGHTON CLEANING SERVICES LTD,48092,40,468.34,GENERAL CLEANS,17/08/2015,,Technical And Service Support,Cleaning & Janitorial
120815M,KNIGHTON CLEANING SERVICES LTD,48093,1,"1,937.39",GENERAL CLEANS,17/08/2015,"72,593.22",Technical And Service Support,Cleaning & Janitorial
120815M,KNIGHTON CLEANING SERVICES LTD,48093,2,"1,981.02",GENERAL CLEANS,17/08/2015,,Technical And Service Support,Cleaning & Janitorial
120815M,KNIGHTON CLEANING SERVICES LTD,48093,3,"1,392.51",GENERAL CLEANS,17/08/2015,,Technical And Service Support,Cleaning & Janitorial
120815M,KNIGHTON CLEANING SERVICES LTD,48093,4,"1,111.46",GENERAL CLEANS,17/08/2015,,Technical And Service Support,Cleaning & Janitorial
120815M,KNIGHTON CLEANING SERVICES LTD,48093,5,"1,128.39",GENERAL CLEANS,17/08/2015,,Technical And Service Support,Cleaning & Janitorial
120815M,KNIGHTON CLEANING SERVICES LTD,48093,6,"1,015.32",GENERAL CLEANS,17/08/2015,,Technical And Service Support,Cleaning & Janitorial
120815M,KNIGHTON CLEANING SERVICES LTD,48093,7,669.23,GENERAL CLEANS,17/08/2015,,Technical And Service Support,Cleaning & Janitorial
120815M,KNIGHTON CLEANING SERVICES LTD,48093,8,"1,223.11",GENERAL CLEANS,17/08/2015,,Technical And Service Support,Cleaning & Janitorial
120815M,KNIGHTON CLEANING SERVICES LTD,48093,9,"1,032.81",GENERAL CLEANS,17/08/2015,,Technical And Service Support,Cleaning & Janitorial
120815M,KNIGHTON CLEANING SERVICES LTD,48093,10,"1,852.47",GENERAL CLEANS,17/08/2015,,Technical And Service Support,Cleaning & Janitorial
120815M,KNIGHTON CLEANING SERVICES LTD,48093,11,"2,157.21",GENERAL CLEANS,17/08/2015,,Technical And Service Support,Cleaning & Janitorial
120815M,KNIGHTON CLEANING SERVICES LTD,48093,12,747,GENERAL CLEANS,17/08/2015,,Technical And Service Support,Cleaning & Janitorial
120815M,KNIGHTON CLEANING SERVICES LTD,48093,13,"1,412.19",GENERAL CLEANS,17/08/2015,,Technical And Service Support,Cleaning & Janitorial
120815M,KNIGHTON CLEANING SERVICES LTD,48093,14,669.23,GENERAL CLEANS,17/08/2015,,Technical And Service Support,Cleaning & Janitorial
120815M,KNIGHTON CLEANING SERVICES LTD,48093,15,"1,459.69",GENERAL CLEANS,17/08/2015,,Technical And Service Support,Cleaning & Janitorial
120815M,KNIGHTON CLEANING SERVICES LTD,48093,16,"1,773.54",GENERAL CLEANS,17/08/2015,,Technical And Service Support,Cleaning & Janitorial
120815M,KNIGHTON CLEANING SERVICES LTD,48093,17,497.49,GENERAL CLEANS,17/08/2015,,Technical And Service Support,Cleaning & Janitorial
120815M,KNIGHTON CLEANING SERVICES LTD,48093,18,"2,326.67",GENERAL CLEANS,17/08/2015,,Technical And Service Support,Cleaning & Janitorial
120815M,KNIGHTON CLEANING SERVICES LTD,48093,19,"1,810.82",GENERAL CLEANS,17/08/2015,,Technical And Service Support,Cleaning & Janitorial
120815M,KNIGHTON CLEANING SERVICES LTD,48093,20,908.28,GENERAL CLEANS,17/08/2015,,Technical And Service Support,Cleaning & Janitorial
120815M,KNIGHTON CLEANING SERVICES LTD,48093,21,904.47,GENERAL CLEANS,17/08/2015,,Technical And Service Support,Cleaning & Janitorial
120815M,KNIGHTON CLEANING SERVICES LTD,48093,22,"1,037.70",GENERAL CLEANS,17/08/2015,,Technical And Service Support,Cleaning & Janitorial
120815M,KNIGHTON CLEANING SERVICES LTD,48093,23,"1,641.36",GENERAL CLEANS,17/08/2015,,Technical And Service Support,Cleaning & Janitorial
120815M,KNIGHTON CLEANING SERVICES LTD,48093,24,"1,041.03",GENERAL CLEANS,17/08/2015,,Technical And Service Support,Cleaning & Janitorial
120815M,KNIGHTON CLEANING SERVICES LTD,48093,25,811.24,GENERAL CLEANS,17/08/2015,,Technical And Service Support,Cleaning & Janitorial
120815M,KNIGHTON CLEANING SERVICES LTD,48093,26,947.55,GENERAL CLEANS,17/08/2015,,Technical And Service Support,Cleaning & Janitorial
120815M,KNIGHTON CLEANING SERVICES LTD,48093,27,"1,336.03",GENERAL CLEANS,17/08/2015,,Technical And Service Support,Cleaning & Janitorial
120815M,KNIGHTON CLEANING SERVICES LTD,48093,28,743.61,GENERAL CLEANS,17/08/2015,,Technical And Service Support,Cleaning & Janitorial
120815M,KNIGHTON CLEANING SERVICES LTD,48093,29,"1,582.09",GENERAL CLEANS,17/08/2015,,Technical And Service Support,Cleaning & Janitorial
120815M,KNIGHTON CLEANING SERVICES LTD,48093,30,"1,232.72",GENERAL CLEANS,17/08/2015,,Technical And Service Support,Cleaning & Janitorial
120815M,KNIGHTON CLEANING SERVICES LTD,48093,31,"1,412.86",GENERAL CLEANS,17/08/2015,,Technical And Service Support,Cleaning & Janitorial
120815M,KNIGHTON CLEANING SERVICES LTD,48093,32,755.87,GENERAL CLEANS,17/08/2015,,Technical And Service Support,Cleaning & Janitorial
120815M,KNIGHTON CLEANING SERVICES LTD,48093,33,946.73,GENERAL CLEANS,17/08/2015,,Technical And Service Support,Cleaning & Janitorial
120815M,KNIGHTON CLEANING SERVICES LTD,48093,34,582.98,GENERAL CLEANS,17/08/2015,,Technical And Service Support,Cleaning & Janitorial
120815M,KNIGHTON CLEANING SERVICES LTD,48093,35,"1,456.30",GENERAL CLEANS,17/08/2015,,Technical And Service Support,Cleaning & Janitorial
120815M,KNIGHTON CLEANING SERVICES LTD,48093,36,"1,342.90",GENERAL CLEANS,17/08/2015,,Technical And Service Support,Cleaning & Janitorial
120815M,KNIGHTON CLEANING SERVICES LTD,48093,37,927.61,GENERAL CLEANS,17/08/2015,,Technical And Service Support,Cleaning & Janitorial
120815M,KNIGHTON CLEANING SERVICES LTD,48093,38,"2,752.85",GENERAL CLEANS,17/08/2015,,Technical And Service Support,Cleaning & Janitorial
120815M,KNIGHTON CLEANING SERVICES LTD,48093,39,"1,013.29",GENERAL CLEANS,17/08/2015,,Technical And Service Support,Cleaning & Janitorial
120815M,KNIGHTON CLEANING SERVICES LTD,48093,40,"1,067.45",GENERAL CLEANS,17/08/2015,,Technical And Service Support,Cleaning & Janitorial
120815M,KNIGHTON CLEANING SERVICES LTD,48093,41,"1,001.55",GENERAL CLEANS,17/08/2015,,Technical And Service Support,Cleaning & Janitorial
120815M,KNIGHTON CLEANING SERVICES LTD,48093,42,926.1,GENERAL CLEANS,17/08/2015,,Technical And Service Support,Cleaning & Janitorial
120815M,KNIGHTON CLEANING SERVICES LTD,48093,43,"2,189.11",GENERAL CLEANS,17/08/2015,,Technical And Service Support,Cleaning & Janitorial
120815M,KNIGHTON CLEANING SERVICES LTD,48093,44,"1,809.45",GENERAL CLEANS,17/08/2015,,Technical And Service Support,Cleaning & Janitorial
120815M,KNIGHTON CLEANING SERVICES LTD,48093,45,933.59,GENERAL CLEANS,17/08/2015,,Technical And Service Support,Cleaning & Janitorial
120815M,KNIGHTON CLEANING SERVICES LTD,48093,46,658.54,GENERAL CLEANS,17/08/2015,,Technical And Service Support,Cleaning & Janitorial
120815M,KNIGHTON CLEANING SERVICES LTD,48093,47,649.96,GENERAL CLEANS,17/08/2015,,Technical And Service Support,Cleaning & Janitorial
120815M,KNIGHTON CLEANING SERVICES LTD,48093,48,762.65,GENERAL CLEANS,17/08/2015,,Technical And Service Support,Cleaning & Janitorial
120815M,KNIGHTON CLEANING SERVICES LTD,48093,49,"2,282.17",GENERAL CLEANS,17/08/2015,,Technical And Service Support,Cleaning & Janitorial
120815M,KNIGHTON CLEANING SERVICES LTD,48093,50,"1,023.20",GENERAL CLEANS,17/08/2015,,Technical And Service Support,Cleaning & Janitorial
120815M,KNIGHTON CLEANING SERVICES LTD,48093,51,"1,535.80",GENERAL CLEANS,17/08/2015,,Technical And Service Support,Cleaning & Janitorial
120815M,KNIGHTON CLEANING SERVICES LTD,48093,52,"2,610.43",GENERAL CLEANS,17/08/2015,,Technical And Service Support,Cleaning & Janitorial
120815M,KNIGHTON CLEANING SERVICES LTD,48093,53,740.87,GENERAL CLEANS,17/08/2015,,Technical And Service Support,Cleaning & Janitorial
120815M,KNIGHTON CLEANING SERVICES LTD,48093,54,757.73,GENERAL CLEANS,17/08/2015,,Technical And Service Support,Cleaning & Janitorial
120815M,KNIGHTON CLEANING SERVICES LTD,48093,55,13.61,GENERAL CLEANS,17/08/2015,,Technical And Service Support,Cleaning & Janitorial
120815M,KNIGHTON CLEANING SERVICES LTD,48093,56,"1,023.28",GENERAL CLEANS,17/08/2015,,Technical And Service Support,Cleaning & Janitorial
120815M,KNIGHTON CLEANING SERVICES LTD,48093,57,826.33,GENERAL CLEANS,17/08/2015,,Technical And Service Support,Cleaning & Janitorial
120815M,KNIGHTON CLEANING SERVICES LTD,48093,58,966,GENERAL CLEANS,17/08/2015,,Technical And Service Support,Cleaning & Janitorial
120815M,KNIGHTON CLEANING SERVICES LTD,48093,59,"1,240.38",GENERAL CLEANS,17/08/2015,,Technical And Service Support,Cleaning & Janitorial
800064364,*OCS GROUP UK LTD,5800012278-25,1,435,REFRESHMENTS,17/08/2015,435,Fire Safety Regulation,Catering
800064369,*OCS GROUP UK LTD,5800012278-30,1,261,REFRESHMENTS,17/08/2015,261,Operations Non Fire Stations,Catering
800064372,*OCS GROUP UK LTD,5800012278-33,1,348,REFRESHMENTS,17/08/2015,348,Operational Resilience,Catering
800064377,*OCS GROUP UK LTD,5800012278-38,1,529.5,REFRESHMENTS,17/08/2015,529.5,Community Safety Delivery,Catering
800064383,*OCS GROUP UK LTD,5800012278-44,1,261,REFRESHMENTS,17/08/2015,261,Operational Resilience,Catering
800064391,*OCS GROUP UK LTD,5800012278-52,1,435,REFRESHMENTS,17/08/2015,435,Operations Non Fire Stations,Catering
040815G,PRESSURE COOLERS LTD,581302,1,8.25,CATERING FIXTURES,17/08/2015,"1,155.75",Technical And Service Support,Facilities & Management S
040815G,PRESSURE COOLERS LTD,581302,2,8.25,CATERING FIXTURES,17/08/2015,,Technical And Service Support,Facilities & Management S
040815G,PRESSURE COOLERS LTD,581302,3,8.25,CATERING FIXTURES,17/08/2015,,Technical And Service Support,Facilities & Management S
040815G,PRESSURE COOLERS LTD,581302,4,8.25,CATERING FIXTURES,17/08/2015,,Technical And Service Support,Facilities & Management S
040815G,PRESSURE COOLERS LTD,581302,5,8,CATERING FIXTURES,17/08/2015,,Technical And Service Support,Facilities & Management S
040815G,PRESSURE COOLERS LTD,581302,6,8.25,CATERING FIXTURES,17/08/2015,,Technical And Service Support,Facilities & Management S
040815G,PRESSURE COOLERS LTD,581302,7,8,CATERING FIXTURES,17/08/2015,,Technical And Service Support,Facilities & Management S
040815G,PRESSURE COOLERS LTD,581302,8,8.25,CATERING FIXTURES,17/08/2015,,Technical And Service Support,Facilities & Management S
040815G,PRESSURE COOLERS LTD,581302,9,8.25,CATERING FIXTURES,17/08/2015,,Technical And Service Support,Facilities & Management S
040815G,PRESSURE COOLERS LTD,581302,10,8.25,CATERING FIXTURES,17/08/2015,,Technical And Service Support,Facilities & Management S
040815G,PRESSURE COOLERS LTD,581302,11,8.25,CATERING EQUIPMENT,17/08/2015,,Technical And Service Support,Facilities & Management S
040815G,PRESSURE COOLERS LTD,581302,12,8.25,CATERING FIXTURES,17/08/2015,,Technical And Service Support,Facilities & Management S
040815G,PRESSURE COOLERS LTD,581302,13,8.25,CATERING FIXTURES,17/08/2015,,Technical And Service Support,Facilities & Management S
040815G,PRESSURE COOLERS LTD,581302,14,8.25,CATERING FIXTURES,17/08/2015,,Technical And Service Support,Facilities & Management S
040815G,PRESSURE COOLERS LTD,581302,15,8,CATERING FIXTURES,17/08/2015,,Technical And Service Support,Facilities & Management S
040815G,PRESSURE COOLERS LTD,581302,16,8.25,CATERING FIXTURES,17/08/2015,,Technical And Service Support,Facilities & Management S
040815G,PRESSURE COOLERS LTD,581302,17,8,CATERING FIXTURES,17/08/2015,,Technical And Service Support,Facilities & Management S
040815G,PRESSURE COOLERS LTD,581302,18,8.25,CATERING FIXTURES,17/08/2015,,Technical And Service Support,Facilities & Management S
040815G,PRESSURE COOLERS LTD,581302,19,8.25,CATERING FIXTURES,17/08/2015,,Technical And Service Support,Facilities & Management S
040815G,PRESSURE COOLERS LTD,581302,20,8,CATERING FIXTURES,17/08/2015,,Technical And Service Support,Facilities & Management S
040815G,PRESSURE COOLERS LTD,581302,21,8.25,CATERING FIXTURES,17/08/2015,,Technical And Service Support,Facilities & Management S
040815G,PRESSURE COOLERS LTD,581302,22,8.25,CATERING FIXTURES,17/08/2015,,Technical And Service Support,Facilities & Management S
040815G,PRESSURE COOLERS LTD,581302,23,8.25,CATERING FIXTURES,17/08/2015,,Technical And Service Support,Facilities & Management S
040815G,PRESSURE COOLERS LTD,581302,24,8,CATERING FIXTURES,17/08/2015,,Technical And Service Support,Facilities & Management S
040815G,PRESSURE COOLERS LTD,581302,25,8.25,CATERING FIXTURES,17/08/2015,,Technical And Service Support,Facilities & Management S
040815G,PRESSURE COOLERS LTD,581302,26,8.25,CATERING FIXTURES,17/08/2015,,Technical And Service Support,Facilities & Management S
040815G,PRESSURE COOLERS LTD,581302,27,8.25,CATERING FIXTURES,17/08/2015,,Technical And Service Support,Facilities & Management S
040815G,PRESSURE COOLERS LTD,581302,28,8.25,CATERING EQUIPMENT,17/08/2015,,Procurement,Facilities & Management S
040815G,PRESSURE COOLERS LTD,581302,29,8.25,CATERING FIXTURES,17/08/2015,,Technical And Service Support,Facilities & Management S
040815G,PRESSURE COOLERS LTD,581302,30,8.25,CATERING EQUIPMENT,17/08/2015,,Technical And Service Support,Facilities & Management S
040815G,PRESSURE COOLERS LTD,581302,31,8.25,CATERING FIXTURES,17/08/2015,,Technical And Service Support,Facilities & Management S
040815G,PRESSURE COOLERS LTD,581302,32,8.25,CATERING FIXTURES,17/08/2015,,Technical And Service Support,Facilities & Management S
040815G,PRESSURE COOLERS LTD,581302,33,8.25,OFFICE EQUIPMENT,17/08/2015,,Fire Safety Regulation,Facilities & Management S
040815G,PRESSURE COOLERS LTD,581302,34,8.25,CATERING FIXTURES,17/08/2015,,Technical And Service Support,Facilities & Management S
040815G,PRESSURE COOLERS LTD,581302,35,8.25,CATERING FIXTURES,17/08/2015,,Technical And Service Support,Facilities & Management S
040815G,PRESSURE COOLERS LTD,581302,36,8.25,CATERING FIXTURES,17/08/2015,,Technical And Service Support,Facilities & Management S
040815G,PRESSURE COOLERS LTD,581302,37,8,CATERING FIXTURES,17/08/2015,,Technical And Service Support,Facilities & Management S
040815G,PRESSURE COOLERS LTD,581302,38,8,CATERING FIXTURES,17/08/2015,,Technical And Service Support,Facilities & Management S
040815G,PRESSURE COOLERS LTD,581302,39,8.25,CATERING FIXTURES,17/08/2015,,Technical And Service Support,Facilities & Management S
040815G,PRESSURE COOLERS LTD,581302,40,8.25,CATERING FIXTURES,17/08/2015,,Technical And Service Support,Facilities & Management S
040815G,PRESSURE COOLERS LTD,581302,41,8.25,CATERING FIXTURES,17/08/2015,,Technical And Service Support,Facilities & Management S
040815G,PRESSURE COOLERS LTD,581302,42,8.25,CATERING FIXTURES,17/08/2015,,Technical And Service Support,Facilities & Management S
040815G,PRESSURE COOLERS LTD,581302,43,8,CATERING FIXTURES,17/08/2015,,Technical And Service Support,Facilities & Management S
040815G,PRESSURE COOLERS LTD,581302,44,8.25,CATERING FIXTURES,17/08/2015,,Technical And Service Support,Facilities & Management S
040815G,PRESSURE COOLERS LTD,581302,45,8.25,CATERING FIXTURES,17/08/2015,,Technical And Service Support,Facilities & Management S
040815G,PRESSURE COOLERS LTD,581302,46,8.25,CATERING FIXTURES,17/08/2015,,Technical And Service Support,Facilities & Management S
040815G,PRESSURE COOLERS LTD,581302,47,8.25,CATERING FIXTURES,17/08/2015,,Technical And Service Support,Facilities & Management S
040815G,PRESSURE COOLERS LTD,581302,48,8.25,CATERING FIXTURES,17/08/2015,,Technical And Service Support,Facilities & Management S
040815G,PRESSURE COOLERS LTD,581302,49,8.25,CATERING FIXTURES,17/08/2015,,Technical And Service Support,Facilities & Management S
040815G,PRESSURE COOLERS LTD,581302,50,8,CATERING FIXTURES,17/08/2015,,Technical And Service Support,Facilities & Management S
040815G,PRESSURE COOLERS LTD,581302,51,8.25,CATERING FIXTURES,17/08/2015,,Technical And Service Support,Facilities & Management S
040815G,PRESSURE COOLERS LTD,581302,52,8.25,CATERING EQUIPMENT,17/08/2015,,HR Management,Facilities & Management S
040815G,PRESSURE COOLERS LTD,581302,53,8.25,CATERING FIXTURES,17/08/2015,,Technical And Service Support,Facilities & Management S
040815G,PRESSURE COOLERS LTD,581302,54,8.25,CATERING FIXTURES,17/08/2015,,Technical And Service Support,Facilities & Management S
040815G,PRESSURE COOLERS LTD,581302,55,8.25,CATERING FIXTURES,17/08/2015,,Technical And Service Support,Facilities & Management S
040815G,PRESSURE COOLERS LTD,581302,56,8.25,CATERING FIXTURES,17/08/2015,,Technical And Service Support,Facilities & Management S
040815G,PRESSURE COOLERS LTD,581302,57,8.25,CATERING FIXTURES,17/08/2015,,Technical And Service Support,Facilities & Management S
040815G,PRESSURE COOLERS LTD,581302,58,8.25,CATERING FIXTURES,17/08/2015,,Technical And Service Support,Facilities & Management S
040815G,PRESSURE COOLERS LTD,581302,59,8.25,CATERING FIXTURES,17/08/2015,,Technical And Service Support,Facilities & Management S
040815G,PRESSURE COOLERS LTD,581302,60,8,CATERING FIXTURES,17/08/2015,,Technical And Service Support,Facilities & Management S
040815G,PRESSURE COOLERS LTD,581302,61,8.25,CATERING FIXTURES,17/08/2015,,Technical And Service Support,Facilities & Management S
040815G,PRESSURE COOLERS LTD,581302,62,8.25,CATERING FIXTURES,17/08/2015,,Technical And Service Support,Facilities & Management S
040815G,PRESSURE COOLERS LTD,581302,63,8.25,CATERING FIXTURES,17/08/2015,,Technical And Service Support,Facilities & Management S
040815G,PRESSURE COOLERS LTD,581302,64,8.25,CATERING FIXTURES,17/08/2015,,Technical And Service Support,Facilities & Management S
040815G,PRESSURE COOLERS LTD,581302,65,8.25,CATERING FIXTURES,17/08/2015,,Technical And Service Support,Facilities & Management S
040815G,PRESSURE COOLERS LTD,581302,66,8.25,CATERING FIXTURES,17/08/2015,,Technical And Service Support,Facilities & Management S
040815G,PRESSURE COOLERS LTD,581302,67,8.25,CATERING FIXTURES,17/08/2015,,Technical And Service Support,Facilities & Management S
040815G,PRESSURE COOLERS LTD,581302,68,8.25,CATERING FIXTURES,17/08/2015,,Technical And Service Support,Facilities & Management S
040815G,PRESSURE COOLERS LTD,581302,69,8.25,CATERING FIXTURES,17/08/2015,,Technical And Service Support,Facilities & Management S
040815G,PRESSURE COOLERS LTD,581302,70,8.25,CATERING FIXTURES,17/08/2015,,Technical And Service Support,Facilities & Management S
040815G,PRESSURE COOLERS LTD,581302,71,8.25,CATERING FIXTURES,17/08/2015,,Technical And Service Support,Facilities & Management S
040815G,PRESSURE COOLERS LTD,581302,72,8.25,CATERING FIXTURES,17/08/2015,,Technical And Service Support,Facilities & Management S
040815G,PRESSURE COOLERS LTD,581302,73,8.25,CATERING FIXTURES,17/08/2015,,Technical And Service Support,Facilities & Management S
040815G,PRESSURE COOLERS LTD,581302,74,8.25,OFFICE EQUIPMENT,17/08/2015,,CBRN RRT,Facilities & Management S
040815G,PRESSURE COOLERS LTD,581302,75,8.25,CATERING FIXTURES,17/08/2015,,Technical And Service Support,Facilities & Management S
040815G,PRESSURE COOLERS LTD,581302,76,8,CATERING FIXTURES,17/08/2015,,Technical And Service Support,Facilities & Management S
040815G,PRESSURE COOLERS LTD,581302,77,8,CATERING FIXTURES,17/08/2015,,Technical And Service Support,Facilities & Management S
040815G,PRESSURE COOLERS LTD,581302,78,8.25,CATERING FIXTURES,17/08/2015,,Technical And Service Support,Facilities & Management S
040815G,PRESSURE COOLERS LTD,581302,79,8,CATERING FIXTURES,17/08/2015,,Technical And Service Support,Facilities & Management S
040815G,PRESSURE COOLERS LTD,581302,80,8,OFFICE EQUIPMENT,17/08/2015,,Information and Communication Technology,Facilities & Management S
040815G,PRESSURE COOLERS LTD,581302,81,8.25,CATERING FIXTURES,17/08/2015,,Technical And Service Support,Facilities & Management S
040815G,PRESSURE COOLERS LTD,581302,82,8,CATERING FIXTURES,17/08/2015,,Technical And Service Support,Facilities & Management S
040815G,PRESSURE COOLERS LTD,581302,83,8.25,CATERING FIXTURES,17/08/2015,,Technical And Service Support,Facilities & Management S
040815G,PRESSURE COOLERS LTD,581302,84,8,CATERING FIXTURES,17/08/2015,,Technical And Service Support,Facilities & Management S
040815G,PRESSURE COOLERS LTD,581302,85,8.25,CATERING FIXTURES,17/08/2015,,Technical And Service Support,Facilities & Management S
040815G,PRESSURE COOLERS LTD,581302,86,8,CATERING FIXTURES,17/08/2015,,Technical And Service Support,Facilities & Management S
040815G,PRESSURE COOLERS LTD,581302,87,8.25,CATERING FIXTURES,17/08/2015,,Technical And Service Support,Facilities & Management S
040815G,PRESSURE COOLERS LTD,581302,88,8.25,CATERING FIXTURES,17/08/2015,,Technical And Service Support,Facilities & Management S
040815G,PRESSURE COOLERS LTD,581302,89,8.25,CATERING FIXTURES,17/08/2015,,Technical And Service Support,Facilities & Management S
040815G,PRESSURE COOLERS LTD,581302,90,8.25,CATERING FIXTURES,17/08/2015,,Technical And Service Support,Facilities & Management S
040815G,PRESSURE COOLERS LTD,581302,91,8.25,CATERING FIXTURES,17/08/2015,,Technical And Service Support,Facilities & Management S
040815G,PRESSURE COOLERS LTD,581302,92,8.25,CATERING FIXTURES,17/08/2015,,Technical And Service Support,Facilities & Management S
040815G,PRESSURE COOLERS LTD,581302,93,8,CATERING FIXTURES,17/08/2015,,Technical And Service Support,Facilities & Management S
040815G,PRESSURE COOLERS LTD,581302,94,8.25,CATERING FIXTURES,17/08/2015,,Technical And Service Support,Facilities & Management S
040815G,PRESSURE COOLERS LTD,581302,95,8.25,CATERING FIXTURES,17/08/2015,,Technical And Service Support,Facilities & Management S
040815G,PRESSURE COOLERS LTD,581302,96,8.25,CATERING FIXTURES,17/08/2015,,Technical And Service Support,Facilities & Management S
040815G,PRESSURE COOLERS LTD,581302,97,8,CATERING FIXTURES,17/08/2015,,Technical And Service Support,Facilities & Management S
040815G,PRESSURE COOLERS LTD,581302,98,8,CATERING FIXTURES,17/08/2015,,Technical And Service Support,Facilities & Management S
040815G,PRESSURE COOLERS LTD,581302,99,8.25,CATERING FIXTURES,17/08/2015,,Technical And Service Support,Facilities & Management S
040815G,PRESSURE COOLERS LTD,581302,100,8,CATERING FIXTURES,17/08/2015,,Technical And Service Support,Facilities & Management S
040815G,PRESSURE COOLERS LTD,581302,101,8.25,CATERING FIXTURES,17/08/2015,,Technical And Service Support,Facilities & Management S
040815G,PRESSURE COOLERS LTD,581302,102,8.25,RADIO,17/08/2015,,Information and Communication Technology,Facilities & Management S
040815G,PRESSURE COOLERS LTD,581302,103,8.25,CATERING FIXTURES,17/08/2015,,Technical And Service Support,Facilities & Management S
040815G,PRESSURE COOLERS LTD,581302,104,8.25,CATERING FIXTURES,17/08/2015,,Technical And Service Support,Facilities & Management S
040815G,PRESSURE COOLERS LTD,581302,105,8,CATERING FIXTURES,17/08/2015,,Technical And Service Support,Facilities & Management S
040815G,PRESSURE COOLERS LTD,581302,106,8.25,CATERING FIXTURES,17/08/2015,,Technical And Service Support,Facilities & Management S
040815G,PRESSURE COOLERS LTD,581302,107,8.25,CATERING FIXTURES,17/08/2015,,Technical And Service Support,Facilities & Management S
040815G,PRESSURE COOLERS LTD,581302,108,8.25,CATERING FIXTURES,17/08/2015,,Technical And Service Support,Facilities & Management S
040815G,PRESSURE COOLERS LTD,581302,109,8.25,CATERING FIXTURES,17/08/2015,,Technical And Service Support,Facilities & Management S
040815G,PRESSURE COOLERS LTD,581302,110,8.25,CATERING FIXTURES,17/08/2015,,Technical And Service Support,Facilities & Management S
040815G,PRESSURE COOLERS LTD,581302,111,8,CATERING EQUIPMENT,17/08/2015,,HR Management,Facilities & Management S
040815G,PRESSURE COOLERS LTD,581302,112,8.25,CATERING FIXTURES,17/08/2015,,Technical And Service Support,Facilities & Management S
040815G,PRESSURE COOLERS LTD,581302,113,8.25,CATERING FIXTURES,17/08/2015,,Technical And Service Support,Facilities & Management S
040815G,PRESSURE COOLERS LTD,581302,114,8.25,CATERING FIXTURES,17/08/2015,,Technical And Service Support,Facilities & Management S
040815G,PRESSURE COOLERS LTD,581302,115,8.25,CATERING FIXTURES,17/08/2015,,Technical And Service Support,Facilities & Management S
040815G,PRESSURE COOLERS LTD,581302,116,8.25,STATIONERY CONSUMABLES,17/08/2015,,Control and Mobilising,Facilities & Management S
040815G,PRESSURE COOLERS LTD,581302,117,8.25,CATERING FIXTURES,17/08/2015,,Technical And Service Support,Facilities & Management S
040815G,PRESSURE COOLERS LTD,581302,118,8.25,CATERING FIXTURES,17/08/2015,,Technical And Service Support,Facilities & Management S
040815G,PRESSURE COOLERS LTD,581302,119,8,CATERING FIXTURES,17/08/2015,,Technical And Service Support,Facilities & Management S
040815G,PRESSURE COOLERS LTD,581302,120,8.25,CATERING FIXTURES,17/08/2015,,Technical And Service Support,Facilities & Management S
040815G,PRESSURE COOLERS LTD,581302,121,8.25,CATERING FIXTURES,17/08/2015,,Technical And Service Support,Facilities & Management S
040815G,PRESSURE COOLERS LTD,581302,122,8.25,CATERING FIXTURES,17/08/2015,,Technical And Service Support,Facilities & Management S
040815G,PRESSURE COOLERS LTD,581302,123,8.25,CATERING FIXTURES,17/08/2015,,Technical And Service Support,Facilities & Management S
040815G,PRESSURE COOLERS LTD,581302,124,8.25,CATERING FIXTURES,17/08/2015,,Technical And Service Support,Facilities & Management S
040815G,PRESSURE COOLERS LTD,581302,125,8.25,CATERING FIXTURES,17/08/2015,,Technical And Service Support,Facilities & Management S
040815G,PRESSURE COOLERS LTD,581302,126,8,CATERING FIXTURES,17/08/2015,,Technical And Service Support,Facilities & Management S
040815G,PRESSURE COOLERS LTD,581302,127,8,CATERING FIXTURES,17/08/2015,,Technical And Service Support,Facilities & Management S
040815G,PRESSURE COOLERS LTD,581302,128,8.25,CATERING FIXTURES,17/08/2015,,Technical And Service Support,Facilities & Management S
040815G,PRESSURE COOLERS LTD,581302,129,8.25,CATERING FIXTURES,17/08/2015,,Technical And Service Support,Facilities & Management S
040815G,PRESSURE COOLERS LTD,581302,130,8,CATERING FIXTURES,17/08/2015,,Technical And Service Support,Facilities & Management S
040815G,PRESSURE COOLERS LTD,581302,131,8.25,CATERING FIXTURES,17/08/2015,,Technical And Service Support,Facilities & Management S
040815G,PRESSURE COOLERS LTD,581302,132,8.25,CATERING FIXTURES,17/08/2015,,Technical And Service Support,Facilities & Management S
040815G,PRESSURE COOLERS LTD,581302,133,8.25,CATERING FIXTURES,17/08/2015,,Technical And Service Support,Facilities & Management S
040815G,PRESSURE COOLERS LTD,581302,134,8.25,CATERING FIXTURES,17/08/2015,,Technical And Service Support,Facilities & Management S
040815G,PRESSURE COOLERS LTD,581302,135,8,CATERING FIXTURES,17/08/2015,,Technical And Service Support,Facilities & Management S
040815G,PRESSURE COOLERS LTD,581302,136,8.25,CATERING FIXTURES,17/08/2015,,Technical And Service Support,Facilities & Management S
040815G,PRESSURE COOLERS LTD,581302,137,8.25,CATERING FIXTURES,17/08/2015,,Technical And Service Support,Facilities & Management S
040815G,PRESSURE COOLERS LTD,581302,138,8,CATERING FIXTURES,17/08/2015,,Technical And Service Support,Facilities & Management S
040815G,PRESSURE COOLERS LTD,581302,139,8.25,OPERATIONAL EQUIP-PURCHASE,17/08/2015,,Command Units,Facilities & Management S
040815G,PRESSURE COOLERS LTD,581302,140,8.25,CATERING EQUIPMENT,17/08/2015,,Cadets,Facilities & Management S
040815G,PRESSURE COOLERS LTD,581302,141,8.25,CATERING FIXTURES,17/08/2015,,Technical And Service Support,Facilities & Management S
110815M,CORE SURVEYSLTD===============,6212/2567,1,"1,960.50",ASBESTOS,17/08/2015,"1,960.50",Technical and Service Support,"Works - Construction, R&M"
110815M,CORE SURVEYSLTD===============,6215,1,760.5,ASBESTOS,17/08/2015,760.5,Technical and Service Support,"Works - Construction, R&M"
110815M,CORE SURVEYSLTD===============,6232,1,170,ASBESTOS,17/08/2015,340,Technical and Service Support,"Works - Construction, R&M"
110815M,CORE SURVEYSLTD===============,6232,2,170,ASBESTOS,17/08/2015,,Technical and Service Support,"Works - Construction, R&M"
110815M,CORE SURVEYSLTD===============,6236,1,"1,750.00",ASBESTOS,17/08/2015,"1,750.00",Technical and Service Support,"Works - Construction, R&M"
100815M,MOORE STEPHENS CONSULTING LTD=,673996,1,"1,070.00",PURCHASES-COMPUTER/EQUIPMENT,17/08/2015,"2,570.00",Information and Communication Technology,ICT
100815M,MOORE STEPHENS CONSULTING LTD=,673996,2,"1,500.00",PURCHASES-COMPUTER/EQUIPMENT,17/08/2015,,Information and Communication Technology,ICT
100815M,MOORE STEPHENS CONSULTING LTD=,673997,1,"15,140.00",CAMS PURCHASES,17/08/2015,"15,140.00",Information and Communication Technology,ICT
120815M,CANON (UK) LTD===============,770518128,1,225.06,OFFICE EQUIPMENT,17/08/2015,675.18,Procurement,ICT
120815M,CANON (UK) LTD===============,770518128,2,225.06,OFFICE EQUIPMENT,17/08/2015,,HR Management,ICT
120815M,CANON (UK) LTD===============,770518128,3,225.06,OFFICE EQUIPMENT,17/08/2015,,Operations Non Fire Stations,ICT
100815M,CANON (UK) LTD===============,770519371,1,463.7,OFFICE EQUIPMENT,17/08/2015,463.7,Technical And Service Support,ICT
110815M,H & V HEATING & VENTILATING==,7811/144/TR,1,"76,059.04",DEVELOPMENT  EXPENSES-CONTRACT,17/08/2015,"76,059.04",Technical and Service Support,Building Constr Materials
100815M,WEST SUSSEX COUNTY COUNCIL,8001084394,1,"21,931.00",SUBSCRIPTIONS,17/08/2015,"21,931.00",HR Development,Financial Services
070815M,EAST SUSSEX FIRE & RESCUE=====,8022001788,1,"10,867.37",FIRE AUTHORITIES,17/08/2015,"10,867.37",National Operational Guidance Project,Human Resources
100815M,TWO SERVICES LTD==============,83473,1,735.5,CATERING EQUIPMENT,17/08/2015,735.5,Operations Fire Stations,Catering
100815M,G4S FIRE & SECURITY SYSTEMS UK,885523,1,"7,272.31",STRATEGIC (CYCLICAL),17/08/2015,"7,272.31",Technical And Service Support,Facilities & Management S
110815M,G4S SECURE SOLUTIONS (UK) LTD,887039,1,314.5,PREMISES SECURITY,17/08/2015,314.5,Technical And Service Support,Facilities & Management S
110815M,NORTHUMBRIAN WATER LTD========,913525944,1,439,CURRENT HYDRANT COSTS,17/08/2015,439,Operational Resilience,Utilities
120815M,ASTEC SURVEYS LIMITED=========,ASL-15-196,1,195,ASBESTOS,17/08/2015,380,Technical and Service Support,Environmental Services
120815M,ASTEC SURVEYS LIMITED=========,ASL-15-196,2,185,ASBESTOS,17/08/2015,,Technical and Service Support,Environmental Services
120815M,AWARDPRODUCTIONS,CADETS,1,"1,335.00",GENERAL,17/08/2015,"1,335.00",Cadets,Facilities & Management S
110815M,THAMES WATER UTILITIES LTD====,CBA1408956,1,459,CURRENT HYDRANT COSTS,17/08/2015,459,Operational Resilience,Utilities
110815M,THAMES WATER UTILITIES LTD====,CBA1502580,1,459,CURRENT HYDRANT COSTS,17/08/2015,459,Operational Resilience,Utilities
110815M,THAMES WATER UTILITIES LTD====,CBA1502641,1,307,CURRENT HYDRANT COSTS,17/08/2015,307,Operational Resilience,Utilities
120815M,THAMES WATER UTILITIES LTD====,CBA1502862,1,"1,185.00",CURRENT HYDRANT COSTS,17/08/2015,"1,185.00",Operational Resilience,Utilities
110815M,THAMES WATER UTILITIES LTD====,CBA1506550,1,"1,185.00",CURRENT HYDRANT COSTS,17/08/2015,"1,185.00",Operational Resilience,Utilities
110815M,THAMES WATER UTILITIES LTD====,CBA1506551,1,"1,185.00",CURRENT HYDRANT COSTS,17/08/2015,"1,185.00",Operational Resilience,Utilities
110815M,THAMES WATER UTILITIES LTD====,CBA1506552,1,477,CURRENT HYDRANT COSTS,17/08/2015,477,Operational Resilience,Utilities
110815M,THAMES WATER UTILITIES LTD====,CBA1506560,1,307,CURRENT HYDRANT COSTS,17/08/2015,307,Operational Resilience,Utilities
110815M,THAMES WATER UTILITIES LTD====,CBA1506631,1,"1,185.00",CURRENT HYDRANT COSTS,17/08/2015,"1,185.00",Operational Resilience,Utilities
110815M,THAMES WATER UTILITIES LTD====,CBA1506642,1,"1,185.00",CURRENT HYDRANT COSTS,17/08/2015,"1,185.00",Operational Resilience,Utilities
110815M,THAMES WATER UTILITIES LTD====,CBA1506648,1,"1,185.00",CURRENT HYDRANT COSTS,17/08/2015,"1,185.00",Operational Resilience,Utilities
110815M,THAMES WATER UTILITIES LTD====,CBA1506649,1,477,CURRENT HYDRANT COSTS,17/08/2015,477,Operational Resilience,Utilities
110815M,THAMES WATER UTILITIES LTD====,CBA1506652,1,134,CURRENT HYDRANT COSTS,17/08/2015,611,Operational Resilience,Utilities
110815M,THAMES WATER UTILITIES LTD====,CBA1506652,2,477,CURRENT HYDRANT COSTS,17/08/2015,,Operational Resilience,Utilities
110815M,THAMES WATER UTILITIES LTD====,CBA1506654,1,"1,111.00",CURRENT HYDRANT COSTS,17/08/2015,"1,111.00",Operational Resilience,Utilities
110815M,THAMES WATER UTILITIES LTD====,CBA1506966,1,477,CURRENT HYDRANT COSTS,17/08/2015,477,Operational Resilience,Utilities
110815M,THAMES WATER UTILITIES LTD====,CBA1506991,1,"1,185.00",CURRENT HYDRANT COSTS,17/08/2015,"1,185.00",Operational Resilience,Utilities
110815M,THAMES WATER UTILITIES LTD====,CBA1507004,1,"1,185.00",CURRENT HYDRANT COSTS,17/08/2015,"1,185.00",Operational Resilience,Utilities
120815M,RADIOCOMS SYSTEMS LIMITED=====,CF295721,1,"1,311.00",RADIO,17/08/2015,"5,202.60",Information and Communication Technology,ICT
120815M,RADIOCOMS SYSTEMS LIMITED=====,CF295721,2,"3,891.60",RADIO,17/08/2015,,Information and Communication Technology,ICT
120815M,ASIAN FIRE SERVICE ASSOCIATION,CM2015/16-18,1,800,SUBSCRIPTIONS,17/08/2015,800,Corporate Management Team,Financial Services
100815M,E&S B DAVIS LTD,DAV/56510,1,295,OPERATIONAL EQUIP-PURCHASE,17/08/2015,295,Operations Fire Stations,Environmental Services
110815M,KIER BUILDING SERV ENGINEERS==,F00054925,1,697.54,STRATEGIC (NON CYCLICAL),17/08/2015,697.54,Technical and Service Support,"Works - Construction, R&M"
120815M,HALL FUELS,I07742769,1,"1,801.30",FUEL,17/08/2015,"1,801.30",Operations Fire Stations,Vehicle Management
050815M,HALL FUELS,I07755952,1,"2,682.60",FUEL,17/08/2015,"2,682.60",Operations Fire Stations,Vehicle Management
100815M,SKYGUARD LTD,INV17981,1,"1,701.70",OPERATIONAL EQUIP-PURCHASE,17/08/2015,"1,701.70",Fire Safety Regulation,Fire & Rescue
100815M,BOTTOMLINE TECHNOLOGIES LTD,INV453460,1,"6,300.00",MAINTENANCE & SUPPORT,17/08/2015,"7,200.00",Information and Communication Technology,ICT
100815M,BOTTOMLINE TECHNOLOGIES LTD,INV453460,2,900,MAINTENANCE & SUPPORT,17/08/2015,,Information and Communication Technology,ICT
110815M,COFELY WORKPLACE LIMITED,M136788,1,"1,933.05",STRATEGIC (NON CYCLICAL),17/08/2015,"1,933.05",Technical and Service Support,"Works - Construction, R&M"
030815H,HUNTER LODGE==================,SI-05931,1,950,ADVERTISING,17/08/2015,950,Procurement,Facilities & Management S
800064086,*THOMAS KNEALE & CO LTD,TK111202,1,429.8,COMMUNITY RELATIONS,17/08/2015,931.09,Community Safety Delivery,Furniture
800064086,*THOMAS KNEALE & CO LTD,TK111202,2,2.59,OFFICE FURNITURE,17/08/2015,,Operations Fire Stations,Furniture
800064086,*THOMAS KNEALE & CO LTD,TK111202,3,10.89,CLOTHING,17/08/2015,,Operations Fire Stations,Furniture
800064086,*THOMAS KNEALE & CO LTD,TK111202,4,3.47,CLOTHING,17/08/2015,,Operations Fire Stations,Furniture
800064086,*THOMAS KNEALE & CO LTD,TK111202,5,1.48,CLOTHING,17/08/2015,,Operations Fire Stations,Furniture
800064086,*THOMAS KNEALE & CO LTD,TK111202,6,10.89,CLOTHING,17/08/2015,,Operations Fire Stations,Furniture
800064086,*THOMAS KNEALE & CO LTD,TK111202,7,3.47,CLOTHING,17/08/2015,,Operations Fire Stations,Furniture
800064086,*THOMAS KNEALE & CO LTD,TK111202,8,1.48,CLOTHING,17/08/2015,,Operations Fire Stations,Furniture
800064086,*THOMAS KNEALE & CO LTD,TK111202,9,10.89,CLOTHING,17/08/2015,,Operations Fire Stations,Furniture
800064086,*THOMAS KNEALE & CO LTD,TK111202,10,0.99,CLOTHING,17/08/2015,,Operations Fire Stations,Furniture
800064086,*THOMAS KNEALE & CO LTD,TK111202,11,10.89,CLOTHING,17/08/2015,,Operations Fire Stations,Furniture
800064086,*THOMAS KNEALE & CO LTD,TK111202,12,0.99,CLOTHING,17/08/2015,,Operations Fire Stations,Furniture
800064086,*THOMAS KNEALE & CO LTD,TK111202,13,10.89,CLOTHING,17/08/2015,,Operations Fire Stations,Furniture
800064086,*THOMAS KNEALE & CO LTD,TK111202,14,3.47,CLOTHING,17/08/2015,,Operations Fire Stations,Furniture
800064086,*THOMAS KNEALE & CO LTD,TK111202,15,1.48,CLOTHING,17/08/2015,,Operations Fire Stations,Furniture
800064086,*THOMAS KNEALE & CO LTD,TK111202,16,10.89,CLOTHING,17/08/2015,,Operations Fire Stations,Furniture
800064086,*THOMAS KNEALE & CO LTD,TK111202,17,67.95,OFFICE FURNITURE,17/08/2015,,Operations Fire Stations,Furniture
800064086,*THOMAS KNEALE & CO LTD,TK111202,18,6.94,CLOTHING,17/08/2015,,Operations Fire Stations,Furniture
800064086,*THOMAS KNEALE & CO LTD,TK111202,19,6.94,CLOTHING,17/08/2015,,Operations Fire Stations,Furniture
800064086,*THOMAS KNEALE & CO LTD,TK111202,20,1.48,CLOTHING,17/08/2015,,Operations Fire Stations,Furniture
800064086,*THOMAS KNEALE & CO LTD,TK111202,21,3.47,CLOTHING,17/08/2015,,Operations Fire Stations,Furniture
800064086,*THOMAS KNEALE & CO LTD,TK111202,22,10.89,CLOTHING,17/08/2015,,Operations Fire Stations,Furniture
800064086,*THOMAS KNEALE & CO LTD,TK111202,23,0.99,CLOTHING,17/08/2015,,Operations Fire Stations,Furniture
800064086,*THOMAS KNEALE & CO LTD,TK111202,24,10.89,CLOTHING,17/08/2015,,Operations Fire Stations,Furniture
800064086,*THOMAS KNEALE & CO LTD,TK111202,25,10.89,CLOTHING,17/08/2015,,Operations Fire Stations,Furniture
800064086,*THOMAS KNEALE & CO LTD,TK111202,26,1.48,CLOTHING,17/08/2015,,Operations Fire Stations,Furniture
800064086,*THOMAS KNEALE & CO LTD,TK111202,27,10.89,CLOTHING,17/08/2015,,Operations Fire Stations,Furniture
800064086,*THOMAS KNEALE & CO LTD,TK111202,28,3.47,CLOTHING,17/08/2015,,Operations Fire Stations,Furniture
800064086,*THOMAS KNEALE & CO LTD,TK111202,29,1.48,CLOTHING,17/08/2015,,Operations Fire Stations,Furniture
800064086,*THOMAS KNEALE & CO LTD,TK111202,30,2.96,CLOTHING,17/08/2015,,Operations Fire Stations,Furniture
800064086,*THOMAS KNEALE & CO LTD,TK111202,31,10.89,CLOTHING,17/08/2015,,Operations Fire Stations,Furniture
800064086,*THOMAS KNEALE & CO LTD,TK111202,32,3.47,CLOTHING,17/08/2015,,Operations Fire Stations,Furniture
800064086,*THOMAS KNEALE & CO LTD,TK111202,33,1.48,CLOTHING,17/08/2015,,Operations Fire Stations,Furniture
800064086,*THOMAS KNEALE & CO LTD,TK111202,34,3.47,CLOTHING,17/08/2015,,Operations Fire Stations,Furniture
800064086,*THOMAS KNEALE & CO LTD,TK111202,35,3.47,CLOTHING,17/08/2015,,Operations Fire Stations,Furniture
800064086,*THOMAS KNEALE & CO LTD,TK111202,36,1.48,CLOTHING,17/08/2015,,Operations Fire Stations,Furniture
800064086,*THOMAS KNEALE & CO LTD,TK111202,37,10.89,CLOTHING,17/08/2015,,Operations Fire Stations,Furniture
800064086,*THOMAS KNEALE & CO LTD,TK111202,38,0.99,CLOTHING,17/08/2015,,Operations Fire Stations,Furniture
800064086,*THOMAS KNEALE & CO LTD,TK111202,39,10.89,CLOTHING,17/08/2015,,Operations Fire Stations,Furniture
800064086,*THOMAS KNEALE & CO LTD,TK111202,40,3.47,CLOTHING,17/08/2015,,Operations Fire Stations,Furniture
800064086,*THOMAS KNEALE & CO LTD,TK111202,41,1.48,CLOTHING,17/08/2015,,Operations Fire Stations,Furniture
800064086,*THOMAS KNEALE & CO LTD,TK111202,42,10.89,CLOTHING,17/08/2015,,Fire Safety Regulation,Furniture
800064086,*THOMAS KNEALE & CO LTD,TK111202,43,3.47,CLOTHING,17/08/2015,,Operations Fire Stations,Furniture
800064086,*THOMAS KNEALE & CO LTD,TK111202,44,1.48,CLOTHING,17/08/2015,,Operations Fire Stations,Furniture
800064086,*THOMAS KNEALE & CO LTD,TK111202,45,10.89,CLOTHING,17/08/2015,,Operations Fire Stations,Furniture
800064086,*THOMAS KNEALE & CO LTD,TK111202,46,10.89,CLOTHING,17/08/2015,,Operations Fire Stations,Furniture
800064086,*THOMAS KNEALE & CO LTD,TK111202,47,3.47,CLOTHING,17/08/2015,,Operations Fire Stations,Furniture
800064086,*THOMAS KNEALE & CO LTD,TK111202,48,2.96,CLOTHING,17/08/2015,,Operations Fire Stations,Furniture
800064086,*THOMAS KNEALE & CO LTD,TK111202,49,3.47,CLOTHING,17/08/2015,,Operations Fire Stations,Furniture
800064086,*THOMAS KNEALE & CO LTD,TK111202,50,4.98,OFFICE FURNITURE,17/08/2015,,Operations Fire Stations,Furniture
800064086,*THOMAS KNEALE & CO LTD,TK111202,51,10.89,CLOTHING,17/08/2015,,Operations Fire Stations,Furniture
800064086,*THOMAS KNEALE & CO LTD,TK111202,52,10.89,CLOTHING,17/08/2015,,Operations Fire Stations,Furniture
800064086,*THOMAS KNEALE & CO LTD,TK111202,53,3.47,CLOTHING,17/08/2015,,Operations Fire Stations,Furniture
800064086,*THOMAS KNEALE & CO LTD,TK111202,54,1.48,CLOTHING,17/08/2015,,Operations Fire Stations,Furniture
800064086,*THOMAS KNEALE & CO LTD,TK111202,55,5.35,CLOTHING,17/08/2015,,Operations Fire Stations,Furniture
800064086,*THOMAS KNEALE & CO LTD,TK111202,56,3.47,CLOTHING,17/08/2015,,Operations Fire Stations,Furniture
800064086,*THOMAS KNEALE & CO LTD,TK111202,57,1.48,CLOTHING,17/08/2015,,Operations Fire Stations,Furniture
800064086,*THOMAS KNEALE & CO LTD,TK111202,58,10.89,CLOTHING,17/08/2015,,Operations Fire Stations,Furniture
800064086,*THOMAS KNEALE & CO LTD,TK111202,59,3.47,CLOTHING,17/08/2015,,Operations Fire Stations,Furniture
800064086,*THOMAS KNEALE & CO LTD,TK111202,60,1.48,CLOTHING,17/08/2015,,Operations Fire Stations,Furniture
800064086,*THOMAS KNEALE & CO LTD,TK111202,61,10.89,CLOTHING,17/08/2015,,Operations Fire Stations,Furniture
800064086,*THOMAS KNEALE & CO LTD,TK111202,62,3.47,CLOTHING,17/08/2015,,Operations Fire Stations,Furniture
800064086,*THOMAS KNEALE & CO LTD,TK111202,63,2.59,OFFICE FURNITURE,17/08/2015,,Operations Fire Stations,Furniture
800064086,*THOMAS KNEALE & CO LTD,TK111202,64,3.47,CLOTHING,17/08/2015,,Operations Fire Stations,Furniture
800064086,*THOMAS KNEALE & CO LTD,TK111202,65,10.89,CLOTHING,17/08/2015,,Operations Fire Stations,Furniture
800064086,*THOMAS KNEALE & CO LTD,TK111202,66,0.99,CLOTHING,17/08/2015,,Operations Fire Stations,Furniture
800064086,*THOMAS KNEALE & CO LTD,TK111202,67,10.89,CLOTHING,17/08/2015,,Operations Fire Stations,Furniture
800064086,*THOMAS KNEALE & CO LTD,TK111202,68,10.89,CLOTHING,17/08/2015,,Operations Fire Stations,Furniture
800064086,*THOMAS KNEALE & CO LTD,TK111202,69,0.99,CLOTHING,17/08/2015,,Operations Fire Stations,Furniture
800064086,*THOMAS KNEALE & CO LTD,TK111202,70,2.96,CLOTHING,17/08/2015,,Operations Fire Stations,Furniture
800064086,*THOMAS KNEALE & CO LTD,TK111202,71,6.94,CLOTHING,17/08/2015,,Operations Fire Stations,Furniture
800064086,*THOMAS KNEALE & CO LTD,TK111202,72,10.89,CLOTHING,17/08/2015,,Operations Fire Stations,Furniture
800064086,*THOMAS KNEALE & CO LTD,TK111202,73,6.94,CLOTHING,17/08/2015,,Operations Fire Stations,Furniture
800064086,*THOMAS KNEALE & CO LTD,TK111202,74,4.98,OFFICE FURNITURE,17/08/2015,,Operations Fire Stations,Furniture
800064086,*THOMAS KNEALE & CO LTD,TK111202,75,10.89,CLOTHING,17/08/2015,,Operations Fire Stations,Furniture
800064086,*THOMAS KNEALE & CO LTD,TK111202,76,2.96,CLOTHING,17/08/2015,,Operations Fire Stations,Furniture
800064086,*THOMAS KNEALE & CO LTD,TK111202,77,10.89,CLOTHING,17/08/2015,,Operations Fire Stations,Furniture
800064086,*THOMAS KNEALE & CO LTD,TK111202,78,0.99,CLOTHING,17/08/2015,,Operations Fire Stations,Furniture
800064086,*THOMAS KNEALE & CO LTD,TK111202,79,3.47,CLOTHING,17/08/2015,,Operations Fire Stations,Furniture
800064086,*THOMAS KNEALE & CO LTD,TK111202,80,1.48,CLOTHING,17/08/2015,,Operations Fire Stations,Furniture
902553,LONDON PENSIONS FUND AUTHORITY,PENSION AUG 15,2,"348,507.50",PENSION PAST SERVICE COSTS,19/08/2015,"348,507.50",Central Finance,Financial Services
902553,LONDON PENSIONS FUND AUTHORITY,TOM BRADY,1,"29,308.97",FRS STAFF SUPERANNUATION,19/08/2015,"29,308.97",Operational Resilience,Financial Services
170815H,VCG KESTREL LIMITED===========,1296,1,272,COMMUNITY RELATIONS,20/08/2015,272,Community Safety Delivery,Facilities & Management S
170815H,VCG KESTREL LIMITED===========,1648,1,360,PRINTING,20/08/2015,360,Corporate Management Team,Facilities & Management S
130815M,BLACK BOX NETWORK SERVICES UK,950530,1,"1,230.85",ACQUISITIONS,20/08/2015,"4,486.21",Information and Communication Technology,ICT
130815M,BLACK BOX NETWORK SERVICES UK,950530,2,973.26,ACQUISITIONS,20/08/2015,,Information and Communication Technology,ICT
130815M,BLACK BOX NETWORK SERVICES UK,950530,3,"1,766.12",ACQUISITIONS,20/08/2015,,Information and Communication Technology,ICT
130815M,BLACK BOX NETWORK SERVICES UK,950530,4,212.08,ACQUISITIONS,20/08/2015,,Information and Communication Technology,ICT
130815M,BLACK BOX NETWORK SERVICES UK,950530,5,110.36,ACQUISITIONS,20/08/2015,,Information and Communication Technology,ICT
130815M,BLACK BOX NETWORK SERVICES UK,950530,6,46.74,ACQUISITIONS,20/08/2015,,Information and Communication Technology,ICT
130815M,BLACK BOX NETWORK SERVICES UK,950530,7,131.8,ACQUISITIONS,20/08/2015,,Information and Communication Technology,ICT
130815M,BLACK BOX NETWORK SERVICES UK,950530,8,15,ACQUISITIONS,20/08/2015,,Information and Communication Technology,ICT
141141,THAMES WATER UTILITIES LTD====,0213662018G,1,805.64,WATER & SEWERAGE RATES,20/08/2015,805.64,Technical And Service Support,Utilities
130815M,*HUNTER APPAREL SOLUTIONS LTD,66387,1,734.3,UNIFORMS - POMS,20/08/2015,"1,311.25",Procurement,Clothing
130815M,*HUNTER APPAREL SOLUTIONS LTD,66387,2,52.45,UNIFORMS - POMS,20/08/2015,,Procurement,Clothing
130815M,*HUNTER APPAREL SOLUTIONS LTD,66387,3,524.5,UNIFORMS - POMS,20/08/2015,,Procurement,Clothing
170815H,ESRI (UK) LIMITED=============,85923,1,"3,905.50",MAINTENANCE & SUPPORT,20/08/2015,"3,905.50",Information and Communication Technology,ICT
140815H,AFFINITY WATER,101061862,1,510,CURRENT HYDRANT COSTS,20/08/2015,510,Operational Resilience,Utilities
140815H,AFFINITY WATER,101061866,1,520,CURRENT HYDRANT COSTS,20/08/2015,520,Operational Resilience,Utilities
140815M,AFFINITY WATER,101061868,1,520,CURRENT HYDRANT COSTS,20/08/2015,520,Operational Resilience,Utilities
140815M,AFFINITY WATER,101061869,1,520,CURRENT HYDRANT COSTS,20/08/2015,520,Operational Resilience,Utilities
140815M,AFFINITY WATER,101061871,1,300,CURRENT HYDRANT COSTS,20/08/2015,300,Operational Resilience,Utilities
140815M,AFFINITY WATER,101061872,1,520,CURRENT HYDRANT COSTS,20/08/2015,520,Operational Resilience,Utilities
141141,THAMES WATER UTILITIES LTD====,1038570223G,1,317.54,WATER & SEWERAGE RATES,20/08/2015,317.54,Technical And Service Support,Utilities
170815H,G WORRALL & SON LIMITED=======,111767,1,356,TACTICAL DAY TO DAY,20/08/2015,356,Technical And Service Support,Facilities & Management S
170815H,G WORRALL & SON LIMITED=======,111769,1,272,TACTICAL DAY TO DAY,20/08/2015,272,Technical And Service Support,Facilities & Management S
140815M,INFOR (UNITED KINGDOM) LIMITED,11516891-GB04G,1,535.12,CONSULTANTS,20/08/2015,535.12,Information and Communication Technology,ICT
140815M,INFOR (UNITED KINGDOM) LIMITED,11516893-GB04G,1,"1,280.00",MAINTENANCE & SUPPORT,20/08/2015,"1,920.00",Information and Communication Technology,ICT
140815M,INFOR (UNITED KINGDOM) LIMITED,11516893-GB04G,2,640,MAINTENANCE & SUPPORT,20/08/2015,,Information and Communication Technology,ICT
140815M,INFOR (UNITED KINGDOM) LIMITED,11516895-GB04G,1,640,MAINTENANCE & SUPPORT,20/08/2015,729.65,Information and Communication Technology,ICT
140815M,INFOR (UNITED KINGDOM) LIMITED,11516895-GB04G,2,47,MAINTENANCE & SUPPORT,20/08/2015,,Information and Communication Technology,ICT
140815M,INFOR (UNITED KINGDOM) LIMITED,11516895-GB04G,3,36.05,MAINTENANCE & SUPPORT,20/08/2015,,Information and Communication Technology,ICT
140815M,INFOR (UNITED KINGDOM) LIMITED,11516895-GB04G,4,6.6,MAINTENANCE & SUPPORT,20/08/2015,,Information and Communication Technology,ICT
140815M,INFOR (UNITED KINGDOM) LIMITED,11516911-GB04G,1,"1,280.00",MAINTENANCE & SUPPORT,20/08/2015,"1,310.80",Information and Communication Technology,ICT
140815M,INFOR (UNITED KINGDOM) LIMITED,11516911-GB04G,2,20.5,MAINTENANCE & SUPPORT,20/08/2015,,Information and Communication Technology,ICT
140815M,INFOR (UNITED KINGDOM) LIMITED,11516911-GB04G,3,10.3,MAINTENANCE & SUPPORT,20/08/2015,,Information and Communication Technology,ICT
140815M,VISTA LANDSCAPE MANAGEMENT LTD,121103,1,484.25,REFUSE COLLECTION,20/08/2015,484.25,Technical And Service Support,"Works - Construction, R&M"
140815M,PARTNERS BY DESIGN LTD,1221026458,1,640,OFFICE EQUIPMENT,20/08/2015,640,Central Finance,Facilities & Management S
170815H,SILVERSANDS LIMITED===========,122573,1,"2,850.00",MAINTENANCE & SUPPORT,20/08/2015,"2,850.00",Information and Communication Technology,ICT
140815M,INSTITUTION OF FIRE ENGINEERS=,12317,1,"2,154.17",PROFESSIONAL DEVELOPMENT,20/08/2015,"2,154.17",Corporate Management Team,Human Resources
141141,THAMES WATER UTILITIES LTD====,1295196012,1,305.28,WATER & SEWERAGE RATES,20/08/2015,305.28,Technical And Service Support,Utilities
170815H,PA ASSOCIATES (UK) LTD========,15078,1,"1,071.25",STRATEGIC (NON CYCLICAL),20/08/2015,"1,071.25",Technical and Service Support,Environmental Services
170815H,RESPIREX======================,151809,1,"4,045.50",OPERATIONAL EQUIP-PURCHASE,20/08/2015,"4,045.50",Hazmat Project,Clothing
100815M,IRON MOUNTAIN (UK) LTD========,16197533,1,"2,330.27",MAINTENANCE & SUPPORT,20/08/2015,"2,330.27",Information and Communication Technology,ICT
050815M,GREATER LONDON AUTHORITY======,1800005047,1,"2,950.00",PROFESSIONAL DEVELOPMENT,20/08/2015,"2,950.00",EU Fired-Up Project,Fire & Rescue
310715M,DYSLEXIA ACTION,191403,1,"1,820.00",LEARNING SUPPORT,20/08/2015,"1,820.00",HR Development,Human Resources
170815H,GRADIENT CONSULTANTS LLP======,2372,1,97.5,ASBESTOS,20/08/2015,"7,325.50",Technical and Service Support,"Works - Construction, R&M"
170815H,GRADIENT CONSULTANTS LLP======,2372,2,125,ASBESTOS,20/08/2015,,Technical and Service Support,"Works - Construction, R&M"
170815H,GRADIENT CONSULTANTS LLP======,2372,3,97.5,ASBESTOS,20/08/2015,,Technical and Service Support,"Works - Construction, R&M"
170815H,GRADIENT CONSULTANTS LLP======,2372,4,146.25,ASBESTOS,20/08/2015,,Technical and Service Support,"Works - Construction, R&M"
170815H,GRADIENT CONSULTANTS LLP======,2372,5,97.5,ASBESTOS,20/08/2015,,Technical and Service Support,"Works - Construction, R&M"
170815H,GRADIENT CONSULTANTS LLP======,2372,6,55,ASBESTOS,20/08/2015,,Technical and Service Support,"Works - Construction, R&M"
170815H,GRADIENT CONSULTANTS LLP======,2372,7,97.5,ASBESTOS,20/08/2015,,Technical and Service Support,"Works - Construction, R&M"
170815H,GRADIENT CONSULTANTS LLP======,2372,8,290,ASBESTOS,20/08/2015,,Technical and Service Support,"Works - Construction, R&M"
170815H,GRADIENT CONSULTANTS LLP======,2372,9,290,ASBESTOS,20/08/2015,,Technical and Service Support,"Works - Construction, R&M"
170815H,GRADIENT CONSULTANTS LLP======,2372,10,245,ASBESTOS,20/08/2015,,Technical and Service Support,"Works - Construction, R&M"
170815H,GRADIENT CONSULTANTS LLP======,2372,11,245,ASBESTOS,20/08/2015,,Technical and Service Support,"Works - Construction, R&M"
170815H,GRADIENT CONSULTANTS LLP======,2372,12,290,ASBESTOS,20/08/2015,,Technical and Service Support,"Works - Construction, R&M"
170815H,GRADIENT CONSULTANTS LLP======,2372,13,62.5,ASBESTOS,20/08/2015,,Technical and Service Support,"Works - Construction, R&M"
170815H,GRADIENT CONSULTANTS LLP======,2372,14,290,ASBESTOS,20/08/2015,,Technical and Service Support,"Works - Construction, R&M"
170815H,GRADIENT CONSULTANTS LLP======,2372,15,290,ASBESTOS,20/08/2015,,Technical and Service Support,"Works - Construction, R&M"
170815H,GRADIENT CONSULTANTS LLP======,2372,16,62.5,ASBESTOS,20/08/2015,,Technical and Service Support,"Works - Construction, R&M"
170815H,GRADIENT CONSULTANTS LLP======,2372,17,55,ASBESTOS,20/08/2015,,Technical and Service Support,"Works - Construction, R&M"
170815H,GRADIENT CONSULTANTS LLP======,2372,18,290,ASBESTOS,20/08/2015,,Technical and Service Support,"Works - Construction, R&M"
170815H,GRADIENT CONSULTANTS LLP======,2372,19,225,ASBESTOS,20/08/2015,,Technical and Service Support,"Works - Construction, R&M"
170815H,GRADIENT CONSULTANTS LLP======,2372,20,62.5,ASBESTOS,20/08/2015,,Technical and Service Support,"Works - Construction, R&M"
170815H,GRADIENT CONSULTANTS LLP======,2372,21,300,ASBESTOS,20/08/2015,,Technical and Service Support,"Works - Construction, R&M"
170815H,GRADIENT CONSULTANTS LLP======,2372,22,55,ASBESTOS,20/08/2015,,Technical and Service Support,"Works - Construction, R&M"
170815H,GRADIENT CONSULTANTS LLP======,2372,23,545,ASBESTOS,20/08/2015,,Technical and Service Support,"Works - Construction, R&M"
170815H,GRADIENT CONSULTANTS LLP======,2372,24,80,ASBESTOS,20/08/2015,,Technical and Service Support,"Works - Construction, R&M"
170815H,GRADIENT CONSULTANTS LLP======,2372,25,290,ASBESTOS,20/08/2015,,Technical and Service Support,"Works - Construction, R&M"
170815H,GRADIENT CONSULTANTS LLP======,2372,26,290,ASBESTOS,20/08/2015,,Technical and Service Support,"Works - Construction, R&M"
170815H,GRADIENT CONSULTANTS LLP======,2372,27,290,ASBESTOS,20/08/2015,,Technical and Service Support,"Works - Construction, R&M"
170815H,GRADIENT CONSULTANTS LLP======,2372,28,55,ASBESTOS,20/08/2015,,Technical and Service Support,"Works - Construction, R&M"
170815H,GRADIENT CONSULTANTS LLP======,2372,29,205,ASBESTOS,20/08/2015,,Technical and Service Support,"Works - Construction, R&M"
170815H,GRADIENT CONSULTANTS LLP======,2372,30,55,ASBESTOS,20/08/2015,,Technical and Service Support,"Works - Construction, R&M"
170815H,GRADIENT CONSULTANTS LLP======,2372,31,55,ASBESTOS,20/08/2015,,Technical and Service Support,"Works - Construction, R&M"
170815H,GRADIENT CONSULTANTS LLP======,2372,32,290,ASBESTOS,20/08/2015,,Technical and Service Support,"Works - Construction, R&M"
170815H,GRADIENT CONSULTANTS LLP======,2372,33,55,ASBESTOS,20/08/2015,,Technical and Service Support,"Works - Construction, R&M"
170815H,GRADIENT CONSULTANTS LLP======,2372,34,45.5,ASBESTOS,20/08/2015,,Technical and Service Support,"Works - Construction, R&M"
170815H,GRADIENT CONSULTANTS LLP======,2372,35,97.5,ASBESTOS,20/08/2015,,Technical and Service Support,"Works - Construction, R&M"
170815H,GRADIENT CONSULTANTS LLP======,2372,36,290,ASBESTOS,20/08/2015,,Technical and Service Support,"Works - Construction, R&M"
170815H,GRADIENT CONSULTANTS LLP======,2372,37,290,ASBESTOS,20/08/2015,,Technical and Service Support,"Works - Construction, R&M"
170815H,GRADIENT CONSULTANTS LLP======,2372,38,125,ASBESTOS,20/08/2015,,Technical and Service Support,"Works - Construction, R&M"
170815H,GRADIENT CONSULTANTS LLP======,2372,39,48.75,ASBESTOS,20/08/2015,,Technical and Service Support,"Works - Construction, R&M"
170815H,GRADIENT CONSULTANTS LLP======,2372,40,160,ASBESTOS,20/08/2015,,Technical And Service Support,"Works - Construction, R&M"
170815H,GRADIENT CONSULTANTS LLP======,2372,41,290,ASBESTOS,20/08/2015,,Technical and Service Support,"Works - Construction, R&M"
120815M,VODAFONE DATA SOLUTIONS======,237854,1,"1,015.00",TELECOMMUNICATIONS,20/08/2015,"1,092.73",Information and Communication Technology,ICT
120815M,VODAFONE DATA SOLUTIONS======,237854,2,77.73,TELECOMMUNICATIONS,20/08/2015,,Information and Communication Technology,ICT
140815M,INSIGHT DIRECT (UK) LTD=======,2470945,1,"10,037.30",STATIONERY CONSUMABLES,20/08/2015,"10,037.30",Information and Communication Technology,ICT
140815M,INSIGHT DIRECT (UK) LTD=======,2471990,1,"12,905.10",STATIONERY CONSUMABLES,20/08/2015,"12,905.10",Information and Communication Technology,ICT
170815H,CHARTERBRAE LIMITED===========,24989,1,"1,146.50",UNIFORMS - POMS,20/08/2015,"1,146.50",Procurement,Furniture
800064462,ADECCO UK LIMITED=============,27097787,1,351.68,FRS STAFF AGENCY,20/08/2015,351.68,Fire Safety Regulation,Human Resources
800064463,ADECCO UK LIMITED=============,27104427,1,439.6,FRS STAFF AGENCY,20/08/2015,439.6,Fire Safety Regulation,Human Resources
800064464,ADECCO UK LIMITED=============,27111291,1,439.6,FRS STAFF AGENCY,20/08/2015,439.6,Fire Safety Regulation,Human Resources
800064466,ADECCO UK LIMITED=============,27133500,1,942.2,FRS STAFF AGENCY,20/08/2015,942.2,Operational Assurance,Human Resources
800064467,ADECCO UK LIMITED=============,27133501,1,942.2,FRS STAFF AGENCY,20/08/2015,942.2,Operational Assurance,Human Resources
800064468,ADECCO UK LIMITED=============,27140674,1,807.6,FRS STAFF AGENCY,20/08/2015,807.6,Operational Assurance,Human Resources
800064469,ADECCO UK LIMITED=============,27140675,1,753.76,FRS STAFF AGENCY,20/08/2015,753.76,Operational Assurance,Human Resources
800064470,ADECCO UK LIMITED=============,27140676,1,753.76,FRS STAFF AGENCY,20/08/2015,753.76,Operational Assurance,Human Resources
800064471,ADECCO UK LIMITED=============,27140677,1,753.76,FRS STAFF AGENCY,20/08/2015,753.76,Operational Assurance,Human Resources
800064472,ADECCO UK LIMITED=============,27178659,1,861.44,FRS STAFF AGENCY,20/08/2015,861.44,Operational Assurance,Human Resources
170815H,ARKAS LIMITED=================,27454,1,197.5,STRATEGIC (CYCLICAL),20/08/2015,806.5,Technical And Service Support,"Works - Construction, R&M"
170815H,ARKAS LIMITED=================,27454,2,247,STRATEGIC (CYCLICAL),20/08/2015,,Technical And Service Support,"Works - Construction, R&M"
170815H,ARKAS LIMITED=================,27454,3,181,STRATEGIC (CYCLICAL),20/08/2015,,Technical And Service Support,"Works - Construction, R&M"
170815H,ARKAS LIMITED=================,27454,4,181,STRATEGIC (CYCLICAL),20/08/2015,,Technical And Service Support,"Works - Construction, R&M"
170815H,ARKAS LIMITED=================,27551,1,230.5,STRATEGIC (CYCLICAL),20/08/2015,985.21,Technical And Service Support,"Works - Construction, R&M"
170815H,ARKAS LIMITED=================,27551,2,336.27,STRATEGIC (CYCLICAL),20/08/2015,,Technical And Service Support,"Works - Construction, R&M"
170815H,ARKAS LIMITED=================,27551,3,197.5,STRATEGIC (CYCLICAL),20/08/2015,,Technical And Service Support,"Works - Construction, R&M"
170815H,ARKAS LIMITED=================,27551,4,220.94,STRATEGIC (CYCLICAL),20/08/2015,,Technical And Service Support,"Works - Construction, R&M"
170815H,ARKAS LIMITED=================,27569,1,444.1,STRATEGIC (CYCLICAL),20/08/2015,"1,296.68",Technical And Service Support,"Works - Construction, R&M"
170815H,ARKAS LIMITED=================,27569,2,247,STRATEGIC (CYCLICAL),20/08/2015,,Technical And Service Support,"Works - Construction, R&M"
170815H,ARKAS LIMITED=================,27569,3,190.84,STRATEGIC (CYCLICAL),20/08/2015,,Technical And Service Support,"Works - Construction, R&M"
170815H,ARKAS LIMITED=================,27569,4,414.74,STRATEGIC (CYCLICAL),20/08/2015,,Technical And Service Support,"Works - Construction, R&M"
130815M,BROWNS OF BEXLEY,280715,1,420,REFRESHMENTS,20/08/2015,420,Community Safety Delivery,Catering
170815H,PRECISE MEDIA MONITORING LTD==,330465,1,798.6,PRESS OFFICE,20/08/2015,798.6,Communications,Education
170815H,PRECISE MEDIA MONITORING LTD==,330466,1,660.04,PRESS OFFICE,20/08/2015,660.04,Communications,Education
170815H,DEALERSHIP SERVICES LTD,3486,1,138,CLOTHING,20/08/2015,276,Cadets,Clothing
170815H,DEALERSHIP SERVICES LTD,3486,2,138,CLOTHING,20/08/2015,,Cadets,Clothing
170815H,DEALERSHIP SERVICES LTD,3487,1,138,CLOTHING,20/08/2015,345,Cadets,Clothing
170815H,DEALERSHIP SERVICES LTD,3487,2,69,CLOTHING,20/08/2015,,Cadets,Clothing
170815H,DEALERSHIP SERVICES LTD,3487,3,138,CLOTHING,20/08/2015,,Cadets,Clothing
170815H,DEALERSHIP SERVICES LTD,3544,1,69,CLOTHING,20/08/2015,690,Cadets,Clothing
170815H,DEALERSHIP SERVICES LTD,3544,2,69,CLOTHING,20/08/2015,,Cadets,Clothing
170815H,DEALERSHIP SERVICES LTD,3544,3,69,CLOTHING,20/08/2015,,Cadets,Clothing
170815H,DEALERSHIP SERVICES LTD,3544,4,69,CLOTHING,20/08/2015,,Cadets,Clothing
170815H,DEALERSHIP SERVICES LTD,3544,5,69,CLOTHING,20/08/2015,,Cadets,Clothing
170815H,DEALERSHIP SERVICES LTD,3544,6,138,CLOTHING,20/08/2015,,Cadets,Clothing
170815H,DEALERSHIP SERVICES LTD,3544,7,69,CLOTHING,20/08/2015,,Cadets,Clothing
170815H,DEALERSHIP SERVICES LTD,3544,8,69,CLOTHING,20/08/2015,,Cadets,Clothing
170815H,DEALERSHIP SERVICES LTD,3544,9,69,CLOTHING,20/08/2015,,Cadets,Clothing
140815H,MCGRATH BROS (WASTE CONTROL) L,360268,1,923.08,REFUSE COLLECTION,20/08/2015,923.08,Technical And Service Support,Environmental Services
170815H,BOND DICKINSON LLP,4208546,1,280,PROFESSIONAL SERVICES,20/08/2015,280,Property PFI,Legal Services
170815H,BOND DICKINSON LLP,4210559,1,280,PROFESSIONAL SERVICES,20/08/2015,280,Property PFI,Legal Services
141141,THAMES WATER UTILITIES LTD====,4462607098,1,"1,425.07",WATER & SEWERAGE RATES,20/08/2015,"1,425.07",Technical And Service Support,Utilities
170815H,SPORTSAFE UK LTD==============,475655,1,385,GYM EQUIPMENT,20/08/2015,385,Technical And Service Support,Sports & Playground Equip
800064474,*OCS GROUP UK LTD,5000113216-1,1,"3,278.55",CATERING,20/08/2015,"3,278.55",Technical And Service Support,Catering
800064476,*OCS GROUP UK LTD,5000113216-3,1,687.72,CATERING,20/08/2015,687.72,Technical And Service Support,Catering
140815H,FAHEY BUILDERS LTD============,5282,1,420,TACTICAL DAY TO DAY,20/08/2015,420,Technical And Service Support,"Works - Construction, R&M"
050815M,WILLIAM SUGDEN & SONS LTD=====,54661,1,412.5,UNIFORMS - POMS,20/08/2015,412.5,Procurement,Clothing
140815H,WEST MIDLANDS FIRE SERVICE====,600034348,1,"4,809.85",FIRE AUTHORITIES,20/08/2015,"4,809.85",National Operational Guidance Project,Statutory Bodies
141141,ESSEX & SUFFOLK WATER PLC=====,603455300010R,1,"1,568.08",WATER & SEWERAGE RATES,20/08/2015,"1,568.08",Technical And Service Support,Utilities
170815H,AECOM INFRASTRUCTURE &,6265731,1,"9,658.17",PROF FEES-MISCELLANEOUS,20/08/2015,"9,658.17",Technical and Service Support,Consultancy
130815M,AECOM INFRASTRUCTURE &,6280185,1,"2,208.54",PROF FEES-MISCELLANEOUS,20/08/2015,"2,208.54",Technical and Service Support,Consultancy
170815H,BRE GLOBAL LTD,65000897,1,"28,000.00",CONSULTANTS,20/08/2015,"28,000.00",Fire Safety Regulation,Consultancy
140815M,GAS & AIR SERVICES (UK)=======,6709,1,674.84,REPAIR & MAINTENANCE,20/08/2015,"1,299.20",Technical And Service Support,Building Constr Materials
140815M,GAS & AIR SERVICES (UK)=======,6709,2,604.36,REPAIR & MAINTENANCE,20/08/2015,,Technical And Service Support,Building Constr Materials
140815M,GAS & AIR SERVICES (UK)=======,6709,3,20,REPAIR & MAINTENANCE,20/08/2015,,Technical And Service Support,Building Constr Materials
140815M,GAS & AIR SERVICES (UK)=======,6711,1,"1,321.42",REPAIR & MAINTENANCE,20/08/2015,"1,321.42",Technical And Service Support,Building Constr Materials
170815H,MOORE STEPHENS CONSULTING LTD=,673390,1,"19,000.00",MAINTENANCE & SUPPORT,20/08/2015,"24,785.74",Community Safety Delivery,ICT
170815H,MOORE STEPHENS CONSULTING LTD=,673390,2,"3,500.00",MAINTENANCE & SUPPORT,20/08/2015,,Operations Non Fire Stations,ICT
170815H,MOORE STEPHENS CONSULTING LTD=,673390,3,"1,000.00",MAINTENANCE & SUPPORT,20/08/2015,,Operations Non Fire Stations,ICT
170815H,MOORE STEPHENS CONSULTING LTD=,673390,4,"1,285.74",MAINTENANCE & SUPPORT,20/08/2015,,HR Management,ICT
170815H,MOORE STEPHENS CONSULTING LTD=,673931,1,"39,175.40",MAINTENANCE & SUPPORT,20/08/2015,"39,175.40",Information and Communication Technology,ICT
141141,THAMES WATER UTILITIES LTD====,6976687560G,1,416.84,WATER & SEWERAGE RATES,20/08/2015,416.84,Technical And Service Support,Utilities
050815M,SWEETT  UK LTD,7059762,1,315.96,PROF FEES-MISCELLANEOUS,20/08/2015,315.96,Technical and Service Support,"Works - Construction, R&M"
070815M,SWEETT  UK LTD,7059763,1,760.62,STRATEGIC (NON CYCLICAL),20/08/2015,760.62,Technical and Service Support,"Works - Construction, R&M"
070815M,SWEETT  UK LTD,7059769,1,"2,158.97",STRATEGIC (NON CYCLICAL),20/08/2015,"2,158.97",Technical and Service Support,"Works - Construction, R&M"
141141,THAMES WATER UTILITIES LTD====,7679825012G,1,702.39,WATER & SEWERAGE RATES,20/08/2015,702.39,Technical And Service Support,Utilities
141141,THAMES WATER UTILITIES LTD====,7732808460G,1,261.94,WATER & SEWERAGE RATES,20/08/2015,261.94,Technical And Service Support,Utilities
141141,THAMES WATER UTILITIES LTD====,8903905446G,1,319.51,WATER & SEWERAGE RATES,20/08/2015,319.51,Technical And Service Support,Utilities
140815H,LINCOLNSHIRE COUNTY COUNCIL===,90823829,1,"22,762.91",FIRE AUTHORITIES,20/08/2015,"22,762.91",National Operational Guidance Project,Statutory Bodies
170815H,NORTHUMBRIAN WATER LTD========,913526401,1,934,CURRENT HYDRANT COSTS,20/08/2015,934,Operational Resilience,Utilities
170815H,NORTHUMBRIAN WATER LTD========,913526460,1,934,CURRENT HYDRANT COSTS,20/08/2015,934,Operational Resilience,Utilities
170815H,NORTHUMBRIAN WATER LTD========,913526517,1,934,CURRENT HYDRANT COSTS,20/08/2015,934,Operational Resilience,Utilities
170815H,NORTHUMBRIAN WATER LTD========,913526525,1,973,CURRENT HYDRANT COSTS,20/08/2015,973,Operational Resilience,Utilities
141143,P OLDHAM======================,92576,1,"1,000.00",PROFESSIONAL FEES GENERAL,20/08/2015,"1,000.00",Legal & Democratic Services,Legal Services
140815M,BRISTOL UNIFORMS LTD==========,BC-07-15-S1428,1,552.77,CLOTHING,20/08/2015,552.77,Operations Non Fire Stations,Clothing
140815M,GL HEARN,C10000970,1,"13,000.00",DISPOSAL COSTS-ESTATES AGENTS,20/08/2015,"13,000.00",Technical and Service Support,Consultancy
140815H,THAMES WATER UTILITIES LTD====,CBA1502554,1,"1,185.00",CURRENT HYDRANT COSTS,20/08/2015,"1,185.00",Operational Resilience,Utilities
140815H,THAMES WATER UTILITIES LTD====,CBA1506561,1,307,CURRENT HYDRANT COSTS,20/08/2015,307,Operational Resilience,Utilities
140815H,THAMES WATER UTILITIES LTD====,CBA1506632,1,"1,185.00",CURRENT HYDRANT COSTS,20/08/2015,"1,185.00",Operational Resilience,Utilities
170815H,THAMES WATER UTILITIES LTD====,CBA1506708,1,"1,185.00",CURRENT HYDRANT COSTS,20/08/2015,"1,185.00",Operational Resilience,Utilities
170815H,THAMES WATER UTILITIES LTD====,CBA1506709,1,"1,185.00",CURRENT HYDRANT COSTS,20/08/2015,"1,185.00",Operational Resilience,Utilities
140815H,THAMES WATER UTILITIES LTD====,CBA1506725,1,"1,185.00",CURRENT HYDRANT COSTS,20/08/2015,"1,185.00",Operational Resilience,Utilities
170815H,THAMES WATER UTILITIES LTD====,CBA1507125,1,"1,185.00",CURRENT HYDRANT COSTS,20/08/2015,"1,185.00",Operational Resilience,Utilities
170815H,THAMES WATER UTILITIES LTD====,CBA1507253,1,"1,185.00",CURRENT HYDRANT COSTS,20/08/2015,"1,185.00",Operational Resilience,Utilities
170815H,THAMES WATER UTILITIES LTD====,CBA1507254,1,"1,185.00",CURRENT HYDRANT COSTS,20/08/2015,"1,185.00",Operational Resilience,Utilities
170815H,THAMES WATER UTILITIES LTD====,CBA1507255,1,"1,185.00",CURRENT HYDRANT COSTS,20/08/2015,"1,185.00",Operational Resilience,Utilities
170815H,THAMES WATER UTILITIES LTD====,CBA1507256,1,"1,185.00",CURRENT HYDRANT COSTS,20/08/2015,"1,185.00",Operational Resilience,Utilities
170815H,THAMES WATER UTILITIES LTD====,CBA1507258,1,"1,185.00",CURRENT HYDRANT COSTS,20/08/2015,"1,185.00",Operational Resilience,Utilities
170815H,THAMES WATER UTILITIES LTD====,CBA1507277,1,"1,185.00",CURRENT HYDRANT COSTS,20/08/2015,"1,185.00",Operational Resilience,Utilities
170815H,THAMES WATER UTILITIES LTD====,CBA1507280,1,"1,185.00",CURRENT HYDRANT COSTS,20/08/2015,"1,185.00",Operational Resilience,Utilities
140815M,CFOA (SERVICES) LTD===========,CSL 14978,1,330,PROFESSIONAL DEVELOPMENT,20/08/2015,330,National Operational Guidance Project,Human Resources
170815H,CFOA (SERVICES) LTD===========,CSL14971,1,660,PROFESSIONAL DEVELOPMENT,20/08/2015,660,Operational Assurance,Human Resources
140815M,CFOA (SERVICES) LTD===========,CSL14978,1,350,PROFESSIONAL DEVELOPMENT,20/08/2015,350,National Operational Guidance Project,Human Resources
120815M,ESSEX FIRE AUTHORITY==========,FSIN 7835,1,"25,075.00",FIRE AUTHS-MUTUAL ASSISTANCE,20/08/2015,"42,185.00",Operations Non Fire Stations,Human Resources
120815M,ESSEX FIRE AUTHORITY==========,FSIN 7835,2,"17,110.00",FIRE AUTHS-MUTUAL ASSISTANCE,20/08/2015,,Operations Non Fire Stations,Human Resources
070815M,ERNST AND YOUNG,GB10100089679,1,"16,871.00",EXTERNAL AUDIT,20/08/2015,"16,871.00",Central Finance,Financial Services
130815M,BABCOCK CIVIL INFRASTRUCTURE,II5001256,1,"6,611.57",STRATEGIC (CYCLICAL),20/08/2015,"6,611.57",Technical And Service Support,"Works - Construction, R&M"
130815M,BABCOCK CIVIL INFRASTRUCTURE,II5001257,1,"31,161.87",STRATEGIC (CYCLICAL),20/08/2015,"31,161.87",Technical And Service Support,"Works - Construction, R&M"
070815M,MOTT MACDONALD============,IN00321943,1,"19,251.00",GENERAL,20/08/2015,"19,251.00",London Coordination Centre,Consultancy
140815M,AIRBUS DEFENCE AND SPACE,IN030013,1,"125,160.00",PURCHASES-SOFTWARE,20/08/2015,"138,660.00",Information and Communication Technology,ICT
140815M,AIRBUS DEFENCE AND SPACE,IN030013,2,"13,500.00",PURCHASES-SOFTWARE,20/08/2015,,Information and Communication Technology,ICT
140815M,AIRBUS DEFENCE AND SPACE,IN030014,1,"58,287.00",PURCHASES-SOFTWARE,20/08/2015,"58,287.00",Information and Communication Technology,ICT
140815M,UNIVERSITY OF SALFORD,INV009648,1,440,PROFESSIONAL DEVELOPMENT,20/08/2015,440,Operational Resilience,Building Constr Materials
100815M,SKYGUARD LTD,INV19189,1,"1,701.70",OPERATIONAL EQUIP-PURCHASE,20/08/2015,"1,701.70",Fire Safety Regulation,Fire & Rescue
140815H,PHOENIX SOFTWARE LTD==========,OP/I759313,1,"1,392.96",MAINTENANCE & SUPPORT,20/08/2015,"1,392.96",Information and Communication Technology,ICT
100815M,PULLMAN MOTORS================,PULL 304,1,300,OPERATIONAL EQUIP-PURCHASE,20/08/2015,300,Procurement,Vehicle Management
070815M,HUNTER LODGE==================,S-016271,1,"8,494.00",ADVERTISING,20/08/2015,"8,494.00",National Operational Guidance Project,Facilities & Management S
800064718,ALLSTAR BUSINESS SOLUTIONS LTD,E2005162840,1,465.16,FUEL,21/08/2015,"17,186.14",Procurement,Vehicle Management
800064718,ALLSTAR BUSINESS SOLUTIONS LTD,E2005162840,2,462.92,FUEL,21/08/2015,,Operations Fire Stations,Vehicle Management
800064718,ALLSTAR BUSINESS SOLUTIONS LTD,E2005162840,3,404.14,FUEL,21/08/2015,,Operations Fire Stations,Vehicle Management
800064718,ALLSTAR BUSINESS SOLUTIONS LTD,E2005162840,4,401.65,FUEL,21/08/2015,,Operations Non Fire Stations,Vehicle Management
800064718,ALLSTAR BUSINESS SOLUTIONS LTD,E2005162840,5,389.89,FUEL,21/08/2015,,Operations Fire Stations,Vehicle Management
800064718,ALLSTAR BUSINESS SOLUTIONS LTD,E2005162840,6,381.83,FUEL,21/08/2015,,Operations Fire Stations,Vehicle Management
800064718,ALLSTAR BUSINESS SOLUTIONS LTD,E2005162840,7,323.16,FUEL,21/08/2015,,Operations Fire Stations,Vehicle Management
800064718,ALLSTAR BUSINESS SOLUTIONS LTD,E2005162840,8,315.52,FUEL,21/08/2015,,Operations Fire Stations,Vehicle Management
800064718,ALLSTAR BUSINESS SOLUTIONS LTD,E2005162840,9,312.9,FUEL,21/08/2015,,Operations Fire Stations,Vehicle Management
800064718,ALLSTAR BUSINESS SOLUTIONS LTD,E2005162840,10,306.46,FUEL,21/08/2015,,Operations Fire Stations,Vehicle Management
800064718,ALLSTAR BUSINESS SOLUTIONS LTD,E2005162840,11,305.25,FUEL,21/08/2015,,Operations Fire Stations,Vehicle Management
800064718,ALLSTAR BUSINESS SOLUTIONS LTD,E2005162840,12,301.26,FUEL,21/08/2015,,Operations Fire Stations,Vehicle Management
800064718,ALLSTAR BUSINESS SOLUTIONS LTD,E2005162840,13,294.61,FUEL,21/08/2015,,Operations Fire Stations,Vehicle Management
800064718,ALLSTAR BUSINESS SOLUTIONS LTD,E2005162840,14,290.52,FUEL,21/08/2015,,Operations Fire Stations,Vehicle Management
800064718,ALLSTAR BUSINESS SOLUTIONS LTD,E2005162840,15,288.99,FUEL,21/08/2015,,Operations Fire Stations,Vehicle Management
800064718,ALLSTAR BUSINESS SOLUTIONS LTD,E2005162840,16,287.7,FUEL,21/08/2015,,Operations Fire Stations,Vehicle Management
800064718,ALLSTAR BUSINESS SOLUTIONS LTD,E2005162840,17,285.25,FUEL,21/08/2015,,Operations Fire Stations,Vehicle Management
800064718,ALLSTAR BUSINESS SOLUTIONS LTD,E2005162840,18,280.85,FUEL,21/08/2015,,Operations Fire Stations,Vehicle Management
800064718,ALLSTAR BUSINESS SOLUTIONS LTD,E2005162840,19,277.6,FUEL,21/08/2015,,Operations Fire Stations,Vehicle Management
800064718,ALLSTAR BUSINESS SOLUTIONS LTD,E2005162840,20,267.5,FUEL,21/08/2015,,Operations Fire Stations,Vehicle Management
800064718,ALLSTAR BUSINESS SOLUTIONS LTD,E2005162840,21,262.21,FUEL,21/08/2015,,Operations Fire Stations,Vehicle Management
800064718,ALLSTAR BUSINESS SOLUTIONS LTD,E2005162840,22,257.74,FUEL,21/08/2015,,Operations Fire Stations,Vehicle Management
800064718,ALLSTAR BUSINESS SOLUTIONS LTD,E2005162840,23,253.15,FUEL,21/08/2015,,Operations Fire Stations,Vehicle Management
800064718,ALLSTAR BUSINESS SOLUTIONS LTD,E2005162840,24,251.48,FUEL,21/08/2015,,Operations Fire Stations,Vehicle Management
800064718,ALLSTAR BUSINESS SOLUTIONS LTD,E2005162840,25,246.62,FUEL,21/08/2015,,Operations Fire Stations,Vehicle Management
800064718,ALLSTAR BUSINESS SOLUTIONS LTD,E2005162840,26,241.56,FUEL,21/08/2015,,Operations Fire Stations,Vehicle Management
800064718,ALLSTAR BUSINESS SOLUTIONS LTD,E2005162840,27,239.68,FUEL,21/08/2015,,Operations Fire Stations,Vehicle Management
800064718,ALLSTAR BUSINESS SOLUTIONS LTD,E2005162840,28,239.03,FUEL,21/08/2015,,Operations Fire Stations,Vehicle Management
800064718,ALLSTAR BUSINESS SOLUTIONS LTD,E2005162840,29,234.47,FUEL,21/08/2015,,Operations Fire Stations,Vehicle Management
800064718,ALLSTAR BUSINESS SOLUTIONS LTD,E2005162840,30,233.75,FUEL,21/08/2015,,Operations Fire Stations,Vehicle Management
800064718,ALLSTAR BUSINESS SOLUTIONS LTD,E2005162840,31,233.09,FUEL,21/08/2015,,Operations Fire Stations,Vehicle Management
800064718,ALLSTAR BUSINESS SOLUTIONS LTD,E2005162840,32,225.09,FUEL,21/08/2015,,Operations Fire Stations,Vehicle Management
800064718,ALLSTAR BUSINESS SOLUTIONS LTD,E2005162840,33,215.52,FUEL,21/08/2015,,Operations Fire Stations,Vehicle Management
800064718,ALLSTAR BUSINESS SOLUTIONS LTD,E2005162840,34,213.76,FUEL,21/08/2015,,Operations Fire Stations,Vehicle Management
800064718,ALLSTAR BUSINESS SOLUTIONS LTD,E2005162840,35,208.18,FUEL,21/08/2015,,Operations Fire Stations,Vehicle Management
800064718,ALLSTAR BUSINESS SOLUTIONS LTD,E2005162840,36,207.27,FUEL,21/08/2015,,Operations Fire Stations,Vehicle Management
800064718,ALLSTAR BUSINESS SOLUTIONS LTD,E2005162840,37,189.66,FUEL,21/08/2015,,Operations Fire Stations,Vehicle Management
800064718,ALLSTAR BUSINESS SOLUTIONS LTD,E2005162840,38,185.67,FUEL,21/08/2015,,Operations Fire Stations,Vehicle Management
800064718,ALLSTAR BUSINESS SOLUTIONS LTD,E2005162840,39,181.89,FUEL,21/08/2015,,Operations Fire Stations,Vehicle Management
800064718,ALLSTAR BUSINESS SOLUTIONS LTD,E2005162840,40,180.04,FUEL,21/08/2015,,Operations Fire Stations,Vehicle Management
800064718,ALLSTAR BUSINESS SOLUTIONS LTD,E2005162840,41,179.98,FUEL,21/08/2015,,Operations Fire Stations,Vehicle Management
800064718,ALLSTAR BUSINESS SOLUTIONS LTD,E2005162840,42,177.58,FUEL,21/08/2015,,Operations Fire Stations,Vehicle Management
800064718,ALLSTAR BUSINESS SOLUTIONS LTD,E2005162840,43,176.56,FUEL,21/08/2015,,Operations Fire Stations,Vehicle Management
800064718,ALLSTAR BUSINESS SOLUTIONS LTD,E2005162840,44,175.84,FUEL,21/08/2015,,Operations Fire Stations,Vehicle Management
800064718,ALLSTAR BUSINESS SOLUTIONS LTD,E2005162840,45,174.92,FUEL,21/08/2015,,Operations Fire Stations,Vehicle Management
800064718,ALLSTAR BUSINESS SOLUTIONS LTD,E2005162840,46,173.26,FUEL,21/08/2015,,Fire Safety Regulation,Vehicle Management
800064718,ALLSTAR BUSINESS SOLUTIONS LTD,E2005162840,47,164.91,FUEL,21/08/2015,,Operations Fire Stations,Vehicle Management
800064718,ALLSTAR BUSINESS SOLUTIONS LTD,E2005162840,48,156.86,FUEL,21/08/2015,,Operations Fire Stations,Vehicle Management
800064718,ALLSTAR BUSINESS SOLUTIONS LTD,E2005162840,49,155.19,FUEL,21/08/2015,,Operations Fire Stations,Vehicle Management
800064718,ALLSTAR BUSINESS SOLUTIONS LTD,E2005162840,50,155.13,FUEL,21/08/2015,,Operations Fire Stations,Vehicle Management
800064718,ALLSTAR BUSINESS SOLUTIONS LTD,E2005162840,51,149.94,FUEL,21/08/2015,,Operations Fire Stations,Vehicle Management
800064718,ALLSTAR BUSINESS SOLUTIONS LTD,E2005162840,52,147.74,FUEL,21/08/2015,,Operations Fire Stations,Vehicle Management
800064718,ALLSTAR BUSINESS SOLUTIONS LTD,E2005162840,53,141.26,FUEL,21/08/2015,,Operations Fire Stations,Vehicle Management
800064718,ALLSTAR BUSINESS SOLUTIONS LTD,E2005162840,54,133.54,FUEL,21/08/2015,,Command Units,Vehicle Management
800064718,ALLSTAR BUSINESS SOLUTIONS LTD,E2005162840,55,130.73,FUEL,21/08/2015,,Operations Fire Stations,Vehicle Management
800064718,ALLSTAR BUSINESS SOLUTIONS LTD,E2005162840,56,123.18,FUEL,21/08/2015,,Operations Fire Stations,Vehicle Management
800064718,ALLSTAR BUSINESS SOLUTIONS LTD,E2005162840,57,121.54,FUEL,21/08/2015,,Operations Fire Stations,Vehicle Management
800064718,ALLSTAR BUSINESS SOLUTIONS LTD,E2005162840,58,116.69,FUEL,21/08/2015,,Operations Fire Stations,Vehicle Management
800064718,ALLSTAR BUSINESS SOLUTIONS LTD,E2005162840,59,116.3,FUEL,21/08/2015,,Command Units,Vehicle Management
800064718,ALLSTAR BUSINESS SOLUTIONS LTD,E2005162840,60,115.27,FUEL,21/08/2015,,Operations Fire Stations,Vehicle Management
800064718,ALLSTAR BUSINESS SOLUTIONS LTD,E2005162840,61,112.62,FUEL,21/08/2015,,Operations Fire Stations,Vehicle Management
800064718,ALLSTAR BUSINESS SOLUTIONS LTD,E2005162840,62,111.67,FUEL,21/08/2015,,Operations Non Fire Stations,Vehicle Management
800064718,ALLSTAR BUSINESS SOLUTIONS LTD,E2005162840,63,109.51,FUEL,21/08/2015,,Operations Fire Stations,Vehicle Management
800064718,ALLSTAR BUSINESS SOLUTIONS LTD,E2005162840,64,104.71,FUEL,21/08/2015,,Operations Fire Stations,Vehicle Management
800064718,ALLSTAR BUSINESS SOLUTIONS LTD,E2005162840,65,101.82,FUEL,21/08/2015,,Operations Fire Stations,Vehicle Management
800064718,ALLSTAR BUSINESS SOLUTIONS LTD,E2005162840,66,100.78,FUEL,21/08/2015,,Operations Fire Stations,Vehicle Management
800064718,ALLSTAR BUSINESS SOLUTIONS LTD,E2005162840,67,98.63,FUEL,21/08/2015,,Operations Fire Stations,Vehicle Management
800064718,ALLSTAR BUSINESS SOLUTIONS LTD,E2005162840,68,97.74,FUEL,21/08/2015,,Operations Fire Stations,Vehicle Management
800064718,ALLSTAR BUSINESS SOLUTIONS LTD,E2005162840,69,97.54,FUEL,21/08/2015,,Operations Fire Stations,Vehicle Management
800064718,ALLSTAR BUSINESS SOLUTIONS LTD,E2005162840,70,95.27,FUEL,21/08/2015,,Operations Fire Stations,Vehicle Management
800064718,ALLSTAR BUSINESS SOLUTIONS LTD,E2005162840,71,92.63,FUEL,21/08/2015,,Operations Fire Stations,Vehicle Management
800064718,ALLSTAR BUSINESS SOLUTIONS LTD,E2005162840,72,90.57,FUEL,21/08/2015,,Information and Communication Technology,Vehicle Management
800064718,ALLSTAR BUSINESS SOLUTIONS LTD,E2005162840,73,86.77,FUEL,21/08/2015,,Operations Fire Stations,Vehicle Management
800064718,ALLSTAR BUSINESS SOLUTIONS LTD,E2005162840,74,85.01,FUEL,21/08/2015,,Operations Fire Stations,Vehicle Management
800064718,ALLSTAR BUSINESS SOLUTIONS LTD,E2005162840,75,84.45,FUEL,21/08/2015,,Command Units,Vehicle Management
800064718,ALLSTAR BUSINESS SOLUTIONS LTD,E2005162840,76,83.38,FUEL,21/08/2015,,Operations Fire Stations,Vehicle Management
800064718,ALLSTAR BUSINESS SOLUTIONS LTD,E2005162840,77,81.8,FUEL,21/08/2015,,Operations Fire Stations,Vehicle Management
800064718,ALLSTAR BUSINESS SOLUTIONS LTD,E2005162840,78,80.49,FUEL,21/08/2015,,Command Units,Vehicle Management
800064718,ALLSTAR BUSINESS SOLUTIONS LTD,E2005162840,79,77.67,FUEL,21/08/2015,,Operations Fire Stations,Vehicle Management
800064718,ALLSTAR BUSINESS SOLUTIONS LTD,E2005162840,80,76.85,FUEL,21/08/2015,,Operations Fire Stations,Vehicle Management
800064718,ALLSTAR BUSINESS SOLUTIONS LTD,E2005162840,81,75.31,FUEL,21/08/2015,,Command Units,Vehicle Management
800064718,ALLSTAR BUSINESS SOLUTIONS LTD,E2005162840,82,75.23,FUEL,21/08/2015,,Command Units,Vehicle Management
800064718,ALLSTAR BUSINESS SOLUTIONS LTD,E2005162840,83,67.56,FUEL,21/08/2015,,Operations Non Fire Stations,Vehicle Management
800064718,ALLSTAR BUSINESS SOLUTIONS LTD,E2005162840,84,67.31,FUEL,21/08/2015,,Operations Fire Stations,Vehicle Management
800064718,ALLSTAR BUSINESS SOLUTIONS LTD,E2005162840,85,66.23,FUEL,21/08/2015,,Operations Fire Stations,Vehicle Management
800064718,ALLSTAR BUSINESS SOLUTIONS LTD,E2005162840,86,65.28,FUEL,21/08/2015,,Command Units,Vehicle Management
800064718,ALLSTAR BUSINESS SOLUTIONS LTD,E2005162840,87,62.33,FUEL,21/08/2015,,Operations Fire Stations,Vehicle Management
800064718,ALLSTAR BUSINESS SOLUTIONS LTD,E2005162840,88,54.71,FUEL,21/08/2015,,LIFE - LFB Funded,Vehicle Management
800064718,ALLSTAR BUSINESS SOLUTIONS LTD,E2005162840,89,52.67,FUEL,21/08/2015,,Command Units,Vehicle Management
800064718,ALLSTAR BUSINESS SOLUTIONS LTD,E2005162840,90,52.5,FUEL,21/08/2015,,Operations Fire Stations,Vehicle Management
800064718,ALLSTAR BUSINESS SOLUTIONS LTD,E2005162840,91,52.34,FUEL,21/08/2015,,Operations Fire Stations,Vehicle Management
800064718,ALLSTAR BUSINESS SOLUTIONS LTD,E2005162840,92,52.33,FUEL,21/08/2015,,Operational Resilience,Vehicle Management
